Workbook

Sheet Data
D1: JOU | E1: Non- | H1: Transferred | I1: Contingent
C2: Net | D2: Dynamic | E2: Conforming | F2: Pumped | G2: Ramping | H2: Frequency | I2: BA | J2: BA | K2: BA
C3: Actual | D3: Schedules | E3: Load | F3: Hydro | G3: Units | H3: Response | I3: Lost Generation | J3: Bias | K3: Load
C4: Interchange | D4: Imp(-) Exp (+) | E4: Load (-) | F4: Load (-) Gen (+) | G4: Gen (+) | H4: Rec (-) Del (+) | I4: Load (-) Gen (+) | J4: Setting
A5: Time (T) | B5: Hz | C5: MW | D5: MW | E5: MW | F5: MW | G5: MW | H5: MW/0.1 Hz | I5: MW | J5: MW/0.1 Hz | K5: MW
A6: 2009-10-12T02:17:21 | B6: 60.00699997 | C6: 3679.946045 | D6: 350 | E6: 339.7124023 | F6: 0 | G6: 53.5 | H6: 10 | I6: 15 | J6: -103 | K6: 7535.31
A7: 2009-10-12T02:17:24 | B7: 60.00899887 | C7: 3679.439941 | D7: 350 | E7: 332.0246582 | F7: 0 | G7: 54 | H7: 10 | I7: 15 | J7: -103 | K7: 7535.64
A8: 2009-10-12T02:17:27 | B8: 60.00600052 | C8: 3679.516602 | D8: 350 | E8: 332.0246582 | F8: 0 | G8: 54.5 | H8: 10 | I8: 15 | J8: -103 | K8: 7535.97
A9: 2009-10-12T02:17:30 | B9: 60.00899887 | C9: 3679.887939 | D9: 350 | E9: 332.0246582 | F9: 0 | G9: 55 | H9: 10 | I9: 15 | J9: -103 | K9: 7536.3
A10: 2009-10-12T02:17:33 | B10: 60.00899887 | C10: 3679.05957 | D10: 350 | E10: 332.0246582 | F10: 0 | G10: 55.5 | H10: 10 | I10: 15 | J10: -103 | K10: 7536.63
A11: 2009-10-12T02:17:36 | B11: 60.00899887 | C11: 3679.260742 | D11: 350 | E11: 332.0246582 | F11: 0 | G11: 56 | H11: 10 | I11: 15 | J11: -103 | K11: 7536.96
A12: 2009-10-12T02:17:39 | B12: 60.00899887 | C12: 3679.024658 | D12: 350 | E12: 330.7590332 | F12: 0 | G12: 56.5 | H12: 10 | I12: 15 | J12: -103 | K12: 7537.29
A13: 2009-10-12T02:17:42 | B13: 60.00400162 | C13: 3679.1521 | D13: 350 | E13: 330.7590332 | F13: 0 | G13: 57 | H13: 10 | I13: 15 | J13: -103 | K13: 7537.62
A14: 2009-10-12T02:17:45 | B14: 60.00099945 | C14: 3678.295166 | D14: 350 | E14: 330.7590332 | F14: 0 | G14: 57.5 | H14: 10 | I14: 15 | J14: -103 | K14: 7537.95
A15: 2009-10-12T02:17:48 | B15: 59.99300003 | C15: 3678.248779 | D15: 350 | E15: 330.7590332 | F15: 0 | G15: 58 | H15: 10 | I15: 15 | J15: -103 | K15: 7538.28
A16: 2009-10-12T02:17:51 | B16: 59.99100113 | C16: 3677.82959 | D16: 350 | E16: 330.7590332 | F16: 0 | G16: 58.5 | H16: 10 | I16: 15 | J16: -103 | K16: 7538.61
A17: 2009-10-12T02:17:54 | B17: 59.99200058 | C17: 3677.954834 | D17: 350 | E17: 323.4199524 | F17: 0 | G17: 59 | H17: 10 | I17: 15 | J17: -103 | K17: 7538.94
A18: 2009-10-12T02:17:57 | B18: 59.99399948 | C18: 3676.665771 | D18: 350 | E18: 323.4199524 | F18: 0 | G18: 59.5 | H18: 10 | I18: 15 | J18: -103 | K18: 7539.27
A19: 2009-10-12T02:18:00 | B19: 59.99399948 | C19: 3677.093262 | D19: 350 | E19: 323.4199524 | F19: 0 | G19: 60 | H19: 10 | I19: 15 | J19: -103 | K19: 7539.6
A20: 2009-10-12T02:18:03 | B20: 59.99499893 | C20: 3676.400635 | D20: 350 | E20: 323.4199524 | F20: 0 | G20: 60.5 | H20: 10 | I20: 15 | J20: -103 | K20: 7539.93
A21: 2009-10-12T02:18:06 | B21: 59.99000168 | C21: 3678.515625 | D21: 350 | E21: 323.4199524 | F21: 0 | G21: 61 | H21: 10 | I21: 15 | J21: -103 | K21: 7540.26
A22: 2009-10-12T02:18:09 | B22: 59.99000168 | C22: 3680.196533 | D22: 350 | E22: 342.3509216 | F22: 0 | G22: 61.5 | H22: 10 | I22: 15 | J22: -103 | K22: 7540.59
A23: 2009-10-12T02:18:12 | B23: 59.98300171 | C23: 3678.743164 | D23: 350 | E23: 342.3509216 | F23: 0 | G23: 62 | H23: 10 | I23: 15 | J23: -103 | K23: 7540.92
A24: 2009-10-12T02:18:15 | B24: 59.97700119 | C24: 3677.921143 | D24: 350 | E24: 342.3509216 | F24: 0 | G24: 62.5 | H24: 10 | I24: 15 | J24: -103 | K24: 7541.25
A25: 2009-10-12T02:18:18 | B25: 59.98899841 | C25: 3680.253662 | D25: 350 | E25: 342.3509216 | F25: 0 | G25: 63 | H25: 10 | I25: 15 | J25: -103 | K25: 7541.58
A26: 2009-10-12T02:18:21 | B26: 59.99499893 | C26: 3681.329346 | D26: 350 | E26: 342.3509216 | F26: 0 | G26: 63.5 | H26: 10 | I26: 15 | J26: -103 | K26: 7541.91
A27: 2009-10-12T02:18:24 | B27: 59.99399948 | C27: 3678.655518 | D27: 350 | E27: 345.0818176 | F27: 0 | G27: 64 | H27: 10 | I27: 15 | J27: -103 | K27: 7542.24
A28: 2009-10-12T02:18:27 | B28: 59.98899841 | C28: 3677.780029 | D28: 350 | E28: 345.0818176 | F28: 0 | G28: 64.5 | H28: 10 | I28: 15 | J28: -103 | K28: 7542.57
A29: 2009-10-12T02:18:30 | B29: 59.98600006 | C29: 3678.426758 | D29: 350 | E29: 345.0818176 | F29: 0 | G29: 65 | H29: 10 | I29: 15 | J29: -103 | K29: 7542.9
A30: 2009-10-12T02:18:33 | B30: 59.98400116 | C30: 3678.277832 | D30: 350 | E30: 345.0818176 | F30: 0 | G30: 65.5 | H30: 10 | I30: 15 | J30: -103 | K30: 7543.23
A31: 2009-10-12T02:18:36 | B31: 59.98500061 | C31: 3677.822266 | D31: 350 | E31: 345.0818176 | F31: 0 | G31: 66 | H31: 10 | I31: 15 | J31: -103 | K31: 7543.56
A32: 2009-10-12T02:18:39 | B32: 59.98600006 | C32: 3677.397461 | D32: 350 | E32: 346.537384 | F32: 0 | G32: 66.5 | H32: 10 | I32: 15 | J32: -103 | K32: 7543.89
A33: 2009-10-12T02:18:42 | B33: 59.98600006 | C33: 3677.916992 | D33: 350 | E33: 346.537384 | F33: 0 | G33: 67 | H33: 10 | I33: 15 | J33: -103 | K33: 7544.22
A34: 2009-10-12T02:18:45 | B34: 59.97999954 | C34: 3678.616699 | D34: 350 | E34: 346.537384 | F34: 0 | G34: 67.5 | H34: 10 | I34: 15 | J34: -103 | K34: 7544.55
A35: 2009-10-12T02:18:48 | B35: 59.98099899 | C35: 3678.962646 | D35: 350 | E35: 346.537384 | F35: 0 | G35: 68 | H35: 10 | I35: 15 | J35: -103 | K35: 7544.88
A36: 2009-10-12T02:18:51 | B36: 59.98899841 | C36: 3680.737305 | D36: 350 | E36: 346.537384 | F36: 0 | G36: 68.5 | H36: 10 | I36: 15 | J36: -103 | K36: 7545.21
A37: 2009-10-12T02:18:54 | B37: 60.00699997 | C37: 3680.044922 | D37: 350 | E37: 342.9057617 | F37: 0 | G37: 69 | H37: 10 | I37: 15 | J37: -103 | K37: 7545.54
A38: 2009-10-12T02:18:57 | B38: 60.00699997 | C38: 3674.076172 | D38: 350 | E38: 342.9057617 | F38: 0 | G38: 69.5 | H38: 10 | I38: 15 | J38: -103 | K38: 7545.87
A39: 2009-10-12T02:19:00 | B39: 59.98600006 | C39: 3676.222168 | D39: 350 | E39: 342.9057617 | F39: 0 | G39: 70 | H39: 10 | I39: 15 | J39: -103 | K39: 7546.2
A40: 2009-10-12T02:19:03 | B40: 59.98099899 | C40: 3677.49707 | D40: 350 | E40: 342.9057617 | F40: 0 | G40: 70.5 | H40: 10 | I40: 15 | J40: -103 | K40: 7546.53
A41: 2009-10-12T02:19:06 | B41: 59.97399902 | C41: 3677.48999 | D41: 350 | E41: 342.9057617 | F41: 0 | G41: 71 | H41: 10 | I41: 15 | J41: -103 | K41: 7546.86
A42: 2009-10-12T02:19:09 | B42: 59.97600174 | C42: 3675.437012 | D42: 350 | E42: 340.0943909 | F42: 0 | G42: 71.5 | H42: 10 | I42: 15 | J42: -103 | K42: 7547.19
A43: 2009-10-12T02:19:12 | B43: 59.97399902 | C43: 3680.450928 | D43: 350 | E43: 340.0943909 | F43: 0 | G43: 72 | H43: 10 | I43: 15 | J43: -103 | K43: 7547.52
A44: 2009-10-12T02:19:15 | B44: 59.97700119 | C44: 3683.828613 | D44: 350 | E44: 340.0943909 | F44: 0 | G44: 72.5 | H44: 10 | I44: 15 | J44: -103 | K44: 7547.85
A45: 2009-10-12T02:19:18 | B45: 59.97900009 | C45: 3682.843262 | D45: 350 | E45: 340.0943909 | F45: 0 | G45: 73 | H45: 10 | I45: 15 | J45: -103 | K45: 7548.18
A46: 2009-10-12T02:19:21 | B46: 59.98199844 | C46: 3680.565674 | D46: 350 | E46: 340.0943909 | F46: 0 | G46: 73.5 | H46: 10 | I46: 15 | J46: -103 | K46: 7548.51
A47: 2009-10-12T02:19:24 | B47: 59.98699951 | C47: 3678.229004 | D47: 350 | E47: 342.7711792 | F47: 0 | G47: 74 | H47: 10 | I47: 15 | J47: -103 | K47: 7548.84
A48: 2009-10-12T02:19:27 | B48: 59.98799896 | C48: 3675.759277 | D48: 350 | E48: 342.7711792 | F48: 0 | G48: 74.5 | H48: 10 | I48: 15 | J48: -103 | K48: 7549.17
A49: 2009-10-12T02:19:30 | B49: 59.98699951 | C49: 3671.942383 | D49: 350 | E49: 342.7711792 | F49: 0 | G49: 75 | H49: 10 | I49: 15 | J49: -103 | K49: 7549.5
A50: 2009-10-12T02:19:33 | B50: 59.98699951 | C50: 3670.47583 | D50: 350 | E50: 342.7711792 | F50: 0 | G50: 75.5 | H50: 10 | I50: 15 | J50: -103 | K50: 7549.83
A51: 2009-10-12T02:19:36 | B51: 59.98500061 | C51: 3670.128662 | D51: 350 | E51: 342.7711792 | F51: 0 | G51: 76 | H51: 10 | I51: 15 | J51: -103 | K51: 7550.16
A52: 2009-10-12T02:19:39 | B52: 59.98400116 | C52: 3672.047852 | D52: 350 | E52: 342.9099121 | F52: 0 | G52: 76.5 | H52: 10 | I52: 15 | J52: -103 | K52: 7550.49
A53: 2009-10-12T02:19:42 | B53: 59.98300171 | C53: 3671.575684 | D53: 350 | E53: 342.9099121 | F53: 0 | G53: 77 | H53: 10 | I53: 15 | J53: -103 | K53: 7550.82
A54: 2009-10-12T02:19:45 | B54: 59.98899841 | C54: 3672.413574 | D54: 350 | E54: 342.9099121 | F54: 0 | G54: 77.5 | H54: 10 | I54: 15 | J54: -103 | K54: 7551.15
A55: 2009-10-12T02:19:48 | B55: 59.98799896 | C55: 3671.882324 | D55: 350 | E55: 342.9099121 | F55: 0 | G55: 78 | H55: 10 | I55: 15 | J55: -103 | K55: 7551.48
A56: 2009-10-12T02:19:51 | B56: 59.98400116 | C56: 3671.335938 | D56: 350 | E56: 342.9099121 | F56: 0 | G56: 78.5 | H56: 10 | I56: 15 | J56: -103 | K56: 7551.81
A57: 2009-10-12T02:19:54 | B57: 59.98300171 | C57: 3670.72583 | D57: 350 | E57: 343.2860107 | F57: 0 | G57: 79 | H57: 10 | I57: 15 | J57: -103 | K57: 7552.14
A58: 2009-10-12T02:19:57 | B58: 59.98099899 | C58: 3671.364014 | D58: 350 | E58: 343.2860107 | F58: 0 | G58: 79.5 | H58: 10 | I58: 15 | J58: -103 | K58: 7552.47
A59: 2009-10-12T02:20:00 | B59: 59.98300171 | C59: 3671.400879 | D59: 350 | E59: 343.2860107 | F59: 0 | G59: 80 | H59: 10 | I59: 15 | J59: -103 | K59: 7552.8
A60: 2009-10-12T02:20:03 | B60: 59.98600006 | C60: 3672.181396 | D60: 350 | E60: 343.2860107 | F60: 0 | G60: 80.5 | H60: 10 | I60: 15 | J60: -103 | K60: 7553.13
A61: 2009-10-12T02:20:06 | B61: 59.98699951 | C61: 3670.296387 | D61: 350 | E61: 343.2860107 | F61: 0 | G61: 81 | H61: 10 | I61: 15 | J61: -103 | K61: 7553.46
A62: 2009-10-12T02:20:09 | B62: 59.98500061 | C62: 3668.5896 | D62: 350 | E62: 331.8529663 | F62: 0 | G62: 81.5 | H62: 10 | I62: 15 | J62: -103 | K62: 7553.79
A63: 2009-10-12T02:20:12 | B63: 59.97999954 | C63: 3669.908203 | D63: 350 | E63: 331.8529663 | F63: 0 | G63: 82 | H63: 10 | I63: 15 | J63: -103 | K63: 7554.12
A64: 2009-10-12T02:20:15 | B64: 59.98300171 | C64: 3670.262695 | D64: 350 | E64: 331.8529663 | F64: 0 | G64: 82.5 | H64: 10 | I64: 15 | J64: -103 | K64: 7554.45
A65: 2009-10-12T02:20:18 | B65: 59.97900009 | C65: 3669.382324 | D65: 350 | E65: 331.8529663 | F65: 0 | G65: 83 | H65: 10 | I65: 15 | J65: -103 | K65: 7554.78
A66: 2009-10-12T02:20:21 | B66: 59.97900009 | C66: 3670.4375 | D66: 350 | E66: 331.8529663 | F66: 0 | G66: 83.5 | H66: 10 | I66: 15 | J66: -103 | K66: 7555.11
A67: 2009-10-12T02:20:24 | B67: 59.98099899 | C67: 3671.402588 | D67: 350 | E67: 329.9882202 | F67: 0 | G67: 84 | H67: 10 | I67: 15 | J67: -103 | K67: 7555.44
A68: 2009-10-12T02:20:27 | B68: 59.97999954 | C68: 3672.371826 | D68: 350 | E68: 329.9882202 | F68: 0 | G68: 84.5 | H68: 10 | I68: 15 | J68: -103 | K68: 7555.77
A69: 2009-10-12T02:20:30 | B69: 59.98099899 | C69: 3671.947021 | D69: 350 | E69: 329.9882202 | F69: 0 | G69: 85 | H69: 10 | I69: 15 | J69: -103 | K69: 7556.1
A70: 2009-10-12T02:20:33 | B70: 59.97999954 | C70: 3670.70459 | D70: 350 | E70: 329.9882202 | F70: 0 | G70: 85.5 | H70: 10 | I70: 15 | J70: -103 | K70: 7556.43
A71: 2009-10-12T02:20:36 | B71: 59.97700119 | C71: 3670.137207 | D71: 350 | E71: 329.9882202 | F71: 0 | G71: 86 | H71: 10 | I71: 15 | J71: -103 | K71: 7556.76
A72: 2009-10-12T02:20:39 | B72: 59.97900009 | C72: 3672.390869 | D72: 350 | E72: 255.4441681 | F72: 0 | G72: 86.5 | H72: 10 | I72: 15 | J72: -103 | K72: 7557.09
A73: 2009-10-12T02:20:42 | B73: 59.97900009 | C73: 3672.557861 | D73: 350 | E73: 255.4441681 | F73: 0 | G73: 87 | H73: 10 | I73: 15 | J73: -103 | K73: 7557.42
A74: 2009-10-12T02:20:45 | B74: 59.97600174 | C74: 3672.626465 | D74: 350 | E74: 255.4441681 | F74: 0 | G74: 87.5 | H74: 10 | I74: 15 | J74: -103 | K74: 7557.75
A75: 2009-10-12T02:20:48 | B75: 59.97200012 | C75: 3671.800293 | D75: 350 | E75: 255.4441681 | F75: 0 | G75: 88 | H75: 10 | I75: 15 | J75: -103 | K75: 7558.08
A76: 2009-10-12T02:20:51 | B76: 59.97100067 | C76: 3673.873535 | D76: 350 | E76: 255.4441681 | F76: 0 | G76: 88.5 | H76: 10 | I76: 15 | J76: -103 | K76: 7558.41
A77: 2009-10-12T02:20:54 | B77: 59.97299957 | C77: 3676.262695 | D77: 350 | E77: 254.8383026 | F77: 0 | G77: 89 | H77: 10 | I77: 15 | J77: -103 | K77: 7558.74
A78: 2009-10-12T02:20:57 | B78: 59.97299957 | C78: 3676.869873 | D78: 350 | E78: 254.8383026 | F78: 0 | G78: 89.5 | H78: 10 | I78: 15 | J78: -103 | K78: 7559.07
A79: 2009-10-12T02:21:00 | B79: 59.97100067 | C79: 3676.542969 | D79: 350 | E79: 254.8383026 | F79: 0 | G79: 90 | H79: 10 | I79: 15 | J79: -103 | K79: 7559.4
A80: 2009-10-12T02:21:03 | B80: 59.97499847 | C80: 3675.752441 | D80: 350 | E80: 254.8383026 | F80: 0 | G80: 90.5 | H80: 10 | I80: 15 | J80: -103 | K80: 7559.73
A81: 2009-10-12T02:21:06 | B81: 59.97700119 | C81: 3675.255859 | D81: 350 | E81: 254.8383026 | F81: 0 | G81: 91 | H81: 10 | I81: 15 | J81: -103 | K81: 7560.06
A82: 2009-10-12T02:21:09 | B82: 59.97499847 | C82: 3671.276855 | D82: 350 | E82: 257.1469727 | F82: 0 | G82: 91.5 | H82: 10 | I82: 15 | J82: -103 | K82: 7560.39
A83: 2009-10-12T02:21:12 | B83: 59.97999954 | C83: 3671.593262 | D83: 350 | E83: 257.1469727 | F83: 0 | G83: 92 | H83: 10 | I83: 15 | J83: -103 | K83: 7560.72
A84: 2009-10-12T02:21:15 | B84: 59.97900009 | C84: 3669.962891 | D84: 350 | E84: 257.1469727 | F84: 0 | G84: 92.5 | H84: 10 | I84: 15 | J84: -103 | K84: 7561.05
A85: 2009-10-12T02:21:18 | B85: 59.98199844 | C85: 3669.540039 | D85: 350 | E85: 257.1469727 | F85: 0 | G85: 93 | H85: 10 | I85: 15 | J85: -103 | K85: 7561.38
A86: 2009-10-12T02:21:21 | B86: 59.98199844 | C86: 3668.705566 | D86: 350 | E86: 257.1469727 | F86: 0 | G86: 93.5 | H86: 10 | I86: 15 | J86: -103 | K86: 7561.71
A87: 2009-10-12T02:21:24 | B87: 59.98199844 | C87: 3667.676514 | D87: 350 | E87: 262.2893677 | F87: 0 | G87: 94 | H87: 10 | I87: 15 | J87: -103 | K87: 7562.04
A88: 2009-10-12T02:21:27 | B88: 59.98099899 | C88: 3666.599365 | D88: 350 | E88: 262.2893677 | F88: 0 | G88: 94.5 | H88: 10 | I88: 15 | J88: -103 | K88: 7562.37
A89: 2009-10-12T02:21:30 | B89: 59.98400116 | C89: 3666.910645 | D89: 350 | E89: 262.2893677 | F89: 0 | G89: 95 | H89: 10 | I89: 15 | J89: -103 | K89: 7562.7
A90: 2009-10-12T02:21:33 | B90: 59.98500061 | C90: 3666.404785 | D90: 350 | E90: 262.2893677 | F90: 0 | G90: 95.5 | H90: 10 | I90: 15 | J90: -103 | K90: 7563.03
A91: 2009-10-12T02:21:36 | B91: 59.98899841 | C91: 3667.456299 | D91: 350 | E91: 262.2893677 | F91: 0 | G91: 96 | H91: 10 | I91: 15 | J91: -103 | K91: 7563.36
A92: 2009-10-12T02:21:39 | B92: 59.99300003 | C92: 3665.261719 | D92: 350 | E92: 256.6479492 | F92: 0 | G92: 96.5 | H92: 10 | I92: 15 | J92: -103 | K92: 7563.69
A93: 2009-10-12T02:21:42 | B93: 59.9980011 | C93: 3664.031006 | D93: 350 | E93: 256.6479492 | F93: 0 | G93: 97 | H93: 10 | I93: 15 | J93: -103 | K93: 7564.02
A94: 2009-10-12T02:21:45 | B94: 59.9980011 | C94: 3663.22876 | D94: 350 | E94: 256.6479492 | F94: 0 | G94: 97.5 | H94: 10 | I94: 15 | J94: -103 | K94: 7564.35
A95: 2009-10-12T02:21:48 | B95: 60.00699997 | C95: 3662.054932 | D95: 350 | E95: 256.6479492 | F95: 0 | G95: 98 | H95: 10 | I95: 15 | J95: -103 | K95: 7564.68
A96: 2009-10-12T02:21:51 | B96: 60.00999832 | C96: 3662.076172 | D96: 350 | E96: 256.6479492 | F96: 0 | G96: 98.5 | H96: 10 | I96: 15 | J96: -103 | K96: 7565.01
A97: 2009-10-12T02:21:54 | B97: 60.01399994 | C97: 3662.223877 | D97: 350 | E97: 256.307251 | F97: 0 | G97: 99 | H97: 10 | I97: 15 | J97: -103 | K97: 7565.34
A98: 2009-10-12T02:21:57 | B98: 60.01300049 | C98: 3663.794434 | D98: 350 | E98: 256.307251 | F98: 0 | G98: 99.5 | H98: 10 | I98: 15 | J98: -103 | K98: 7565.67
A99: 2009-10-12T02:22:00 | B99: 60.00799942 | C99: 3664.13916 | D99: 350 | E99: 256.307251 | F99: 0 | G99: 100 | H99: 10 | I99: 15 | J99: -103 | K99: 7566
A100: 2009-10-12T02:22:03 | B100: 60.00999832 | C100: 3664.158691 | D100: 350 | E100: 256.307251 | F100: 0 | G100: 100.5 | H100: 10 | I100: 15 | J100: -103 | K100: 7566.33
A101: 2009-10-12T02:22:06 | B101: 60.01900101 | C101: 3663.264648 | D101: 350 | E101: 256.307251 | F101: 0 | G101: 101 | H101: 10 | I101: 15 | J101: -103 | K101: 7566.66
A102: 2009-10-12T02:22:09 | B102: 60.02299881 | C102: 3661.929199 | D102: 350 | E102: 249.0863953 | F102: 0 | G102: 101.5 | H102: 10 | I102: 15 | J102: -103 | K102: 7566.99
A103: 2009-10-12T02:22:12 | B103: 60.02000046 | C103: 3661.512207 | D103: 350 | E103: 249.0863953 | F103: 0 | G103: 102 | H103: 10 | I103: 15 | J103: -103 | K103: 7567.32
A104: 2009-10-12T02:22:15 | B104: 60.02099991 | C104: 3658.661377 | D104: 350 | E104: 249.0863953 | F104: 0 | G104: 102.5 | H104: 10 | I104: 15 | J104: -103 | K104: 7567.65
A105: 2009-10-12T02:22:18 | B105: 60.02000046 | C105: 3656.7854 | D105: 350 | E105: 249.0863953 | F105: 0 | G105: 103 | H105: 10 | I105: 15 | J105: -103 | K105: 7567.98
A106: 2009-10-12T02:22:21 | B106: 60.01900101 | C106: 3658.125977 | D106: 350 | E106: 249.0863953 | F106: 0 | G106: 103.5 | H106: 10 | I106: 15 | J106: -103 | K106: 7568.31
A107: 2009-10-12T02:22:24 | B107: 60.02199936 | C107: 3657.710449 | D107: 350 | E107: 253.7424774 | F107: 0 | G107: 104 | H107: 10 | I107: 15 | J107: -103 | K107: 7568.64
A108: 2009-10-12T02:22:27 | B108: 60.02500153 | C108: 3660.227539 | D108: 350 | E108: 253.7424774 | F108: 0 | G108: 104.5 | H108: 10 | I108: 15 | J108: -103 | K108: 7568.97
A109: 2009-10-12T02:22:30 | B109: 60.02600098 | C109: 3659.223633 | D109: 350 | E109: 253.7424774 | F109: 0 | G109: 105 | H109: 10 | I109: 15 | J109: -103 | K109: 7569.3
A110: 2009-10-12T02:22:33 | B110: 60.02000046 | C110: 3658.668701 | D110: 350 | E110: 253.7424774 | F110: 0 | G110: 105.5 | H110: 10 | I110: 15 | J110: -103 | K110: 7569.63
A111: 2009-10-12T02:22:36 | B111: 60.01800156 | C111: 3658.154541 | D111: 350 | E111: 253.7424774 | F111: 0 | G111: 106 | H111: 10 | I111: 15 | J111: -103 | K111: 7569.96
A112: 2009-10-12T02:22:39 | B112: 60.01800156 | C112: 3659.777588 | D112: 350 | E112: 257.4212036 | F112: 0 | G112: 106.5 | H112: 10 | I112: 15 | J112: -103 | K112: 7570.29
A113: 2009-10-12T02:22:42 | B113: 60.01900101 | C113: 3660.81958 | D113: 350 | E113: 257.4212036 | F113: 0 | G113: 107 | H113: 10 | I113: 15 | J113: -103 | K113: 7570.62
A114: 2009-10-12T02:22:45 | B114: 60.01900101 | C114: 3662.387207 | D114: 350 | E114: 257.4212036 | F114: 0 | G114: 107.5 | H114: 10 | I114: 15 | J114: -103 | K114: 7570.95
A115: 2009-10-12T02:22:48 | B115: 60.02199936 | C115: 3662.078857 | D115: 350 | E115: 257.4212036 | F115: 0 | G115: 108 | H115: 10 | I115: 15 | J115: -103 | K115: 7571.28
A116: 2009-10-12T02:22:51 | B116: 60.02199936 | C116: 3662.678223 | D116: 350 | E116: 257.4212036 | F116: 0 | G116: 108.5 | H116: 10 | I116: 15 | J116: -103 | K116: 7571.61
A117: 2009-10-12T02:22:54 | B117: 60.02000046 | C117: 3663.57666 | D117: 350 | E117: 261.7382202 | F117: 0 | G117: 109 | H117: 10 | I117: 15 | J117: -103 | K117: 7571.94
A118: 2009-10-12T02:22:57 | B118: 60.02000046 | C118: 3662.959229 | D118: 350 | E118: 261.7382202 | F118: 0 | G118: 109.5 | H118: 10 | I118: 15 | J118: -103 | K118: 7572.27
A119: 2009-10-12T02:23:00 | B119: 60.02000046 | C119: 3662.55249 | D119: 350 | E119: 261.7382202 | F119: 0 | G119: 110 | H119: 10 | I119: 15 | J119: -103 | K119: 7572.6
A120: 2009-10-12T02:23:03 | B120: 60.02000046 | C120: 3663.600586 | D120: 350 | E120: 261.7382202 | F120: 0 | G120: 110.5 | H120: 10 | I120: 15 | J120: -103 | K120: 7572.93
A121: 2009-10-12T02:23:06 | B121: 60.02099991 | C121: 3663.909668 | D121: 350 | E121: 261.7382202 | F121: 0 | G121: 111 | H121: 10 | I121: 15 | J121: -103 | K121: 7573.26
A122: 2009-10-12T02:23:09 | B122: 60.01800156 | C122: 3662.79126 | D122: 350 | E122: 271.8759766 | F122: 0 | G122: 111.5 | H122: 10 | I122: 15 | J122: -103 | K122: 7573.59
A123: 2009-10-12T02:23:12 | B123: 60.01399994 | C123: 3663.395752 | D123: 350 | E123: 271.8759766 | F123: 0 | G123: 112 | H123: 10 | I123: 15 | J123: -103 | K123: 7573.92
A124: 2009-10-12T02:23:15 | B124: 60.01399994 | C124: 3664.31543 | D124: 350 | E124: 271.8759766 | F124: 0 | G124: 112.5 | H124: 10 | I124: 15 | J124: -103 | K124: 7574.25
A125: 2009-10-12T02:23:18 | B125: 60.01300049 | C125: 3665.312988 | D125: 350 | E125: 271.8759766 | F125: 0 | G125: 113 | H125: 10 | I125: 15 | J125: -103 | K125: 7574.58
A126: 2009-10-12T02:23:21 | B126: 60.00999832 | C126: 3666.141113 | D126: 350 | E126: 271.8759766 | F126: 0 | G126: 113.5 | H126: 10 | I126: 15 | J126: -103 | K126: 7574.91
A127: 2009-10-12T02:23:24 | B127: 60.01100159 | C127: 3666.72583 | D127: 350 | E127: 262.0734863 | F127: 0 | G127: 114 | H127: 10 | I127: 15 | J127: -103 | K127: 7575.24
A128: 2009-10-12T02:23:27 | B128: 60.01100159 | C128: 3667.54541 | D128: 350 | E128: 262.0734863 | F128: 0 | G128: 114.5 | H128: 10 | I128: 15 | J128: -103 | K128: 7575.57
A129: 2009-10-12T02:23:30 | B129: 60.01200104 | C129: 3666.688232 | D129: 350 | E129: 262.0734863 | F129: 0 | G129: 115 | H129: 10 | I129: 15 | J129: -103 | K129: 7575.9
A130: 2009-10-12T02:23:33 | B130: 60.00899887 | C130: 3666.710449 | D130: 350 | E130: 262.0734863 | F130: 0 | G130: 115.5 | H130: 10 | I130: 15 | J130: -103 | K130: 7576.23
A131: 2009-10-12T02:23:36 | B131: 60.00899887 | C131: 3667.696045 | D131: 350 | E131: 262.0734863 | F131: 0 | G131: 116 | H131: 10 | I131: 15 | J131: -103 | K131: 7576.56
A132: 2009-10-12T02:23:39 | B132: 60.00899887 | C132: 3667.042969 | D132: 350 | E132: 260.3644104 | F132: 0 | G132: 116.5 | H132: 10 | I132: 15 | J132: -103 | K132: 7576.89
A133: 2009-10-12T02:23:42 | B133: 60.0019989 | C133: 3666.623535 | D133: 350 | E133: 260.3644104 | F133: 0 | G133: 117 | H133: 10 | I133: 15 | J133: -103 | K133: 7577.22
A134: 2009-10-12T02:23:45 | B134: 59.99900055 | C134: 3665.879639 | D134: 350 | E134: 260.3644104 | F134: 0 | G134: 117.5 | H134: 10 | I134: 15 | J134: -103 | K134: 7577.55
A135: 2009-10-12T02:23:48 | B135: 59.99499893 | C135: 3665.40332 | D135: 350 | E135: 260.3644104 | F135: 0 | G135: 118 | H135: 10 | I135: 15 | J135: -103 | K135: 7577.88
A136: 2009-10-12T02:23:51 | B136: 59.99700165 | C136: 3665.679688 | D136: 350 | E136: 260.3644104 | F136: 0 | G136: 118.5 | H136: 10 | I136: 15 | J136: -103 | K136: 7578.21
A137: 2009-10-12T02:23:54 | B137: 59.9980011 | C137: 3665.352051 | D137: 350 | E137: 352.6443787 | F137: 0 | G137: 119 | H137: 10 | I137: 15 | J137: -103 | K137: 7578.54
A138: 2009-10-12T02:23:57 | B138: 59.9980011 | C138: 3665.064941 | D138: 350 | E138: 352.6443787 | F138: 0 | G138: 119.5 | H138: 10 | I138: 15 | J138: -103 | K138: 7578.87
A139: 2009-10-12T02:24:00 | B139: 59.99499893 | C139: 3666.133301 | D139: 350 | E139: 352.6443787 | F139: 0 | G139: 120 | H139: 10 | I139: 15 | J139: -103 | K139: 7579.2
A140: 2009-10-12T02:24:03 | B140: 59.99499893 | C140: 3666.734619 | D140: 350 | E140: 352.6443787 | F140: 0 | G140: 120.5 | H140: 10 | I140: 15 | J140: -103 | K140: 7579.53
A141: 2009-10-12T02:24:06 | B141: 59.99300003 | C141: 3667.083984 | D141: 350 | E141: 352.6443787 | F141: 0 | G141: 121 | H141: 10 | I141: 15 | J141: -103 | K141: 7579.86
A142: 2009-10-12T02:24:09 | B142: 59.98799896 | C142: 3667.33667 | D142: 350 | E142: 354.8956604 | F142: 0 | G142: 121.5 | H142: 10 | I142: 15 | J142: -103 | K142: 7580.19
A143: 2009-10-12T02:24:12 | B143: 59.98199844 | C143: 3667.853271 | D143: 350 | E143: 354.8956604 | F143: 0 | G143: 122 | H143: 10 | I143: 15 | J143: -103 | K143: 7580.52
A144: 2009-10-12T02:24:15 | B144: 59.98199844 | C144: 3668.690918 | D144: 350 | E144: 354.8956604 | F144: 0 | G144: 122.5 | H144: 10 | I144: 15 | J144: -103 | K144: 7580.85
A145: 2009-10-12T02:24:18 | B145: 59.98199844 | C145: 3669.39917 | D145: 350 | E145: 354.8956604 | F145: 0 | G145: 123 | H145: 10 | I145: 15 | J145: -103 | K145: 7581.18
A146: 2009-10-12T02:24:21 | B146: 59.98400116 | C146: 3671.228027 | D146: 350 | E146: 354.8956604 | F146: 0 | G146: 123.5 | H146: 10 | I146: 15 | J146: -103 | K146: 7581.51
A147: 2009-10-12T02:24:24 | B147: 59.97800064 | C147: 3670.25 | D147: 350 | E147: 340.4693604 | F147: 0 | G147: 124 | H147: 10 | I147: 15 | J147: -103 | K147: 7581.84
A148: 2009-10-12T02:24:27 | B148: 59.97800064 | C148: 3671.548828 | D148: 350 | E148: 340.4693604 | F148: 0 | G148: 124.5 | H148: 10 | I148: 15 | J148: -103 | K148: 7582.17
A149: 2009-10-12T02:24:30 | B149: 59.97499847 | C149: 3673.243164 | D149: 350 | E149: 340.4693604 | F149: 0 | G149: 125 | H149: 10 | I149: 15 | J149: -103 | K149: 7582.5
A150: 2009-10-12T02:24:33 | B150: 59.97399902 | C150: 3675.824463 | D150: 350 | E150: 340.4693604 | F150: 0 | G150: 125.5 | H150: 10 | I150: 15 | J150: -103 | K150: 7582.83
A151: 2009-10-12T02:24:36 | B151: 59.97900009 | C151: 3676.418213 | D151: 350 | E151: 340.4693604 | F151: 0 | G151: 126 | H151: 10 | I151: 15 | J151: -103 | K151: 7583.16
A152: 2009-10-12T02:24:39 | B152: 59.97999954 | C152: 3674.637451 | D152: 350 | E152: 337.6429138 | F152: 0 | G152: 126.5 | H152: 10 | I152: 15 | J152: -103 | K152: 7583.49
A153: 2009-10-12T02:24:42 | B153: 59.97999954 | C153: 3675.328857 | D153: 350 | E153: 337.6429138 | F153: 0 | G153: 127 | H153: 10 | I153: 15 | J153: -103 | K153: 7583.82
A154: 2009-10-12T02:24:45 | B154: 59.98400116 | C154: 3674.768066 | D154: 350 | E154: 337.6429138 | F154: 0 | G154: 127.5 | H154: 10 | I154: 15 | J154: -103 | K154: 7584.15
A155: 2009-10-12T02:24:48 | B155: 59.98799896 | C155: 3674.399414 | D155: 350 | E155: 337.6429138 | F155: 0 | G155: 128 | H155: 10 | I155: 15 | J155: -103 | K155: 7584.48
A156: 2009-10-12T02:24:51 | B156: 59.98799896 | C156: 3673.039551 | D156: 350 | E156: 337.6429138 | F156: 0 | G156: 128.5 | H156: 10 | I156: 15 | J156: -103 | K156: 7584.81
A157: 2009-10-12T02:24:54 | B157: 59.99200058 | C157: 3672.44165 | D157: 350 | E157: 284.3608398 | F157: 0 | G157: 129 | H157: 10 | I157: 15 | J157: -103 | K157: 7585.14
A158: 2009-10-12T02:24:57 | B158: 59.99100113 | C158: 3671.680176 | D158: 350 | E158: 284.3608398 | F158: 0 | G158: 129.5 | H158: 10 | I158: 15 | J158: -103 | K158: 7585.47
A159: 2009-10-12T02:25:00 | B159: 59.99100113 | C159: 3671.493164 | D159: 350 | E159: 284.3608398 | F159: 0 | G159: 130 | H159: 10 | I159: 15 | J159: -103 | K159: 7585.8
A160: 2009-10-12T02:25:03 | B160: 59.99300003 | C160: 3669.530029 | D160: 350 | E160: 284.3608398 | F160: 0 | G160: 130.5 | H160: 10 | I160: 15 | J160: -103 | K160: 7586.13
A161: 2009-10-12T02:25:06 | B161: 59.99599838 | C161: 3670.027832 | D161: 350 | E161: 284.3608398 | F161: 0 | G161: 131 | H161: 10 | I161: 15 | J161: -103 | K161: 7586.46
A162: 2009-10-12T02:25:09 | B162: 60.0019989 | C162: 3671.578125 | D162: 350 | E162: 260.4679871 | F162: 0 | G162: 131.5 | H162: 10 | I162: 15 | J162: -103 | K162: 7586.79
A163: 2009-10-12T02:25:12 | B163: 60.00299835 | C163: 3672.625488 | D163: 350 | E163: 260.4679871 | F163: 0 | G163: 132 | H163: 10 | I163: 15 | J163: -103 | K163: 7587.12
A164: 2009-10-12T02:25:15 | B164: 60.00400162 | C164: 3673.818604 | D164: 350 | E164: 260.4679871 | F164: 0 | G164: 132.5 | H164: 10 | I164: 15 | J164: -103 | K164: 7587.45
A165: 2009-10-12T02:25:18 | B165: 60.00400162 | C165: 3673.249512 | D165: 350 | E165: 260.4679871 | F165: 0 | G165: 133 | H165: 10 | I165: 15 | J165: -103 | K165: 7587.78
A166: 2009-10-12T02:25:21 | B166: 60.0019989 | C166: 3673.496338 | D166: 350 | E166: 260.4679871 | F166: 0 | G166: 133.5 | H166: 10 | I166: 15 | J166: -103 | K166: 7588.11
A167: 2009-10-12T02:25:24 | B167: 60.00799942 | C167: 3672.417969 | D167: 350 | E167: 253.1415405 | F167: 0 | G167: 134 | H167: 10 | I167: 15 | J167: -103 | K167: 7588.44
A168: 2009-10-12T02:25:27 | B168: 60.00999832 | C168: 3672.216797 | D168: 350 | E168: 253.1415405 | F168: 0 | G168: 134.5 | H168: 10 | I168: 15 | J168: -103 | K168: 7588.77
A169: 2009-10-12T02:25:30 | B169: 60.00999832 | C169: 3672.260742 | D169: 350 | E169: 253.1415405 | F169: 0 | G169: 135 | H169: 10 | I169: 15 | J169: -103 | K169: 7589.1
A170: 2009-10-12T02:25:33 | B170: 60.01100159 | C170: 3673.603271 | D170: 350 | E170: 253.1415405 | F170: 0 | G170: 135.5 | H170: 10 | I170: 15 | J170: -103 | K170: 7589.43
A171: 2009-10-12T02:25:36 | B171: 60.01399994 | C171: 3673.553467 | D171: 350 | E171: 253.1415405 | F171: 0 | G171: 136 | H171: 10 | I171: 15 | J171: -103 | K171: 7589.76
A172: 2009-10-12T02:25:39 | B172: 60.01300049 | C172: 3674.537109 | D172: 350 | E172: 251.9298706 | F172: 0 | G172: 136.5 | H172: 10 | I172: 15 | J172: -103 | K172: 7590.09
A173: 2009-10-12T02:25:42 | B173: 60.01100159 | C173: 3673.8125 | D173: 350 | E173: 251.9298706 | F173: 0 | G173: 137 | H173: 10 | I173: 15 | J173: -103 | K173: 7590.42
A174: 2009-10-12T02:25:45 | B174: 60.01100159 | C174: 3672.563232 | D174: 350 | E174: 251.9298706 | F174: 0 | G174: 137.5 | H174: 10 | I174: 15 | J174: -103 | K174: 7590.75
A175: 2009-10-12T02:25:48 | B175: 60.02199936 | C175: 3673.067627 | D175: 350 | E175: 251.9298706 | F175: 0 | G175: 138 | H175: 10 | I175: 15 | J175: -103 | K175: 7591.08
A176: 2009-10-12T02:25:51 | B176: 60.01699829 | C176: 3672.519531 | D176: 350 | E176: 251.9298706 | F176: 0 | G176: 138.5 | H176: 10 | I176: 15 | J176: -103 | K176: 7591.41
A177: 2009-10-12T02:25:54 | B177: 60.01300049 | C177: 3671.25 | D177: 350 | E177: 250.6741943 | F177: 0 | G177: 139 | H177: 10 | I177: 15 | J177: -103 | K177: 7591.74
A178: 2009-10-12T02:25:57 | B178: 60.01399994 | C178: 3672.989014 | D178: 350 | E178: 250.6741943 | F178: 0 | G178: 139.5 | H178: 10 | I178: 15 | J178: -103 | K178: 7592.07
A179: 2009-10-12T02:26:00 | B179: 60.01699829 | C179: 3672.981689 | D179: 350 | E179: 250.6741943 | F179: 0 | G179: 140 | H179: 10 | I179: 15 | J179: -103 | K179: 7592.4
A180: 2009-10-12T02:26:03 | B180: 60.01900101 | C180: 3671.95166 | D180: 350 | E180: 250.6741943 | F180: 0 | G180: 140.5 | H180: 10 | I180: 15 | J180: -103 | K180: 7592.73
A181: 2009-10-12T02:26:06 | B181: 60.01900101 | C181: 3671.193115 | D181: 350 | E181: 250.6741943 | F181: 0 | G181: 141 | H181: 10 | I181: 15 | J181: -103 | K181: 7593.06
A182: 2009-10-12T02:26:09 | B182: 60.02700043 | C182: 3671.188965 | D182: 350 | E182: 253.6318665 | F182: 0 | G182: 141.5 | H182: 10 | I182: 15 | J182: -103 | K182: 7593.39
A183: 2009-10-12T02:26:12 | B183: 60.02600098 | C183: 3668.610596 | D183: 350 | E183: 253.6318665 | F183: 0 | G183: 142 | H183: 10 | I183: 15 | J183: -103 | K183: 7593.72
A184: 2009-10-12T02:26:15 | B184: 60.02199936 | C184: 3664.495117 | D184: 350 | E184: 253.6318665 | F184: 0 | G184: 142.5 | H184: 10 | I184: 15 | J184: -103 | K184: 7594.05
A185: 2009-10-12T02:26:18 | B185: 60.01699829 | C185: 3666.061768 | D185: 350 | E185: 253.6318665 | F185: 0 | G185: 143 | H185: 10 | I185: 15 | J185: -103 | K185: 7594.38
A186: 2009-10-12T02:26:21 | B186: 60.01900101 | C186: 3666.787354 | D186: 350 | E186: 253.6318665 | F186: 0 | G186: 143.5 | H186: 10 | I186: 15 | J186: -103 | K186: 7594.71
A187: 2009-10-12T02:26:24 | B187: 60.01900101 | C187: 3670.453613 | D187: 350 | E187: 246.9573059 | F187: 0 | G187: 144 | H187: 10 | I187: 15 | J187: -103 | K187: 7595.04
A188: 2009-10-12T02:26:27 | B188: 60.02099991 | C188: 3671.667969 | D188: 350 | E188: 246.9573059 | F188: 0 | G188: 144.5 | H188: 10 | I188: 15 | J188: -103 | K188: 7595.37
A189: 2009-10-12T02:26:30 | B189: 60.02099991 | C189: 3672.493164 | D189: 350 | E189: 246.9573059 | F189: 0 | G189: 145 | H189: 10 | I189: 15 | J189: -103 | K189: 7595.7
A190: 2009-10-12T02:26:33 | B190: 60.01900101 | C190: 3672.857422 | D190: 350 | E190: 246.9573059 | F190: 0 | G190: 145.5 | H190: 10 | I190: 15 | J190: -103 | K190: 7596.03
A191: 2009-10-12T02:26:36 | B191: 60.02199936 | C191: 3672.164062 | D191: 350 | E191: 246.9573059 | F191: 0 | G191: 146 | H191: 10 | I191: 15 | J191: -103 | K191: 7596.36
A192: 2009-10-12T02:26:39 | B192: 60.03099823 | C192: 3669.98291 | D192: 350 | E192: 254.5417786 | F192: 0 | G192: 146.5 | H192: 10 | I192: 15 | J192: -103 | K192: 7596.69
A193: 2009-10-12T02:26:42 | B193: 60.03699875 | C193: 3666.467285 | D193: 350 | E193: 254.5417786 | F193: 0 | G193: 147 | H193: 10 | I193: 15 | J193: -103 | K193: 7597.02
A194: 2009-10-12T02:26:45 | B194: 60.0359993 | C194: 3661.599121 | D194: 350 | E194: 254.5417786 | F194: 0 | G194: 147.5 | H194: 10 | I194: 15 | J194: -103 | K194: 7597.35
A195: 2009-10-12T02:26:48 | B195: 60.04600143 | C195: 3660.672363 | D195: 350 | E195: 254.5417786 | F195: 0 | G195: 148 | H195: 10 | I195: 15 | J195: -103 | K195: 7597.68
A196: 2009-10-12T02:26:51 | B196: 60.04800034 | C196: 3649.19043 | D196: 350 | E196: 165.1016846 | F196: 0 | G196: 148.5 | H196: 10 | I196: 15 | J196: -103 | K196: 7598.01
A197: 2009-10-12T02:26:54 | B197: 60.04299927 | C197: 3650.025146 | D197: 350 | E197: 165.1016846 | F197: 0 | G197: 149 | H197: 10 | I197: 15 | J197: -103 | K197: 7598.34
A198: 2009-10-12T02:26:57 | B198: 60.04100037 | C198: 3649.511963 | D198: 350 | E198: 165.1016846 | F198: 0 | G198: 149.5 | H198: 10 | I198: 15 | J198: -103 | K198: 7598.67
A199: 2009-10-12T02:27:00 | B199: 60.04100037 | C199: 3654.294434 | D199: 350 | E199: 165.1016846 | F199: 0 | G199: 150 | H199: 10 | I199: 15 | J199: -103 | K199: 7599
A200: 2009-10-12T02:27:03 | B200: 60.03900146 | C200: 3651.874268 | D200: 350 | E200: 165.1016846 | F200: 0 | G200: 150.5 | H200: 10 | I200: 15 | J200: -103 | K200: 7599.33
... 899 more rows

Sheet Entry Data
A1: Balancing Authority Name: | B1: My BA
A2: Balancing Authority Frequency Response Obligation (FRO from FRS Form 1) | B2: -80 | C2: (must be a negative value)
A4: Note: See "Instruction" tab for more detailed instructions.
A6: Step 1. | B6: Copy and Paste Event Data into the appropriate cells of the "Data" worksheet.
B7: Maintain date and time format of mm/dd/yy hh:mm:ss.
A8: Step 2. | B8: Determine Time of T(0) and edit formula in cell "C8" to reference the correct row of the "Data" worksheet. | C8: =Data!A206 -> 40098.10233
B9: T(0) is the first change in frequency of about 0.010 Hz (10 mHz) which should be the first scan of frequency data of the event.
A11: Step 3. | B11: Time of Frequency Recovery to 60 Hz or Pre-Perturbation Hz | C11: =Data!A317 -> 40098.10618
A18: Step 4. | B18: Hit the big blue button to copy your data for pasting into FRS Form 1 "BA Event Data" worksheet.
A31: Step 6. | B31: Paste data into "FRS Form 1" in the appropriate row on the "BA Event Data" worksheet.
A33: Step 7. | B33: Save this workbook using the following file name format:MyBA_yymmdd_hhmm_FRS_Form2.xlsm
B34: =Evaluation!G2 -> 2009-10-12T02:27:21 | C34: Date yymmdd
B35: =Evaluation!G2 -> 40098.10233 | C35: Time hh:ss of T(0)
B36: Where "MyBA" = your BA mnemonic

Sheet Evaluation
B1: 2 | C1: seconds | F1: Date: | G1: =G2 -> 2009-10-12T02:27:21 | K1: Balancing Authority | L1: ='Entry Data'!B1 -> My BA | R1: A Point | S1: =$B$78 -> 40098.1023 | Y1: Non-Conforming Load sign convention | Z1: + | AA1: (Data is positive for Load then enter "+" else "-" | AM1: Date: | AN1: =AN2 -> 2009-10-12T02:27:21
F2: Time of T(0) | G2: ='Entry Data'!C8 -> 40098.10233 | K2: Grid Nominal Frequency | L2: 60 | M2: Hz | R2: FPointA | S2: =$C$78 -> 60.03900146 | T2: =$B$78 -> 40098.1023 | AM2: Time of T(0) | AN2: =$G2 -> 40098.10233
F3: Time of Frequency Recovery to 60 Hz or Pre-Perturbation Hz | G3: ='Entry Data'!C11 -> 40098.10618 | K3: Capacity @ Droop for Minimum Performance | L3: =L7*-M4*10 -> 2400 | M3: MW | R3: A Value | S3: =AVERAGE($C$71:$C$78) -> 60.04174995 | AM3: Time of Frequency Recovery to 60 Hz or Pre-Perturbation Hz | AN3: =$G3 -> 40098.10618
F4: Value A Pre-Perturbation Average Frequency [T(-2 ) to T(-16)] | G4: =AVERAGE($C$71:$C$78) -> 60.04174995 | H4: Hz | K4: Droop Setting | L4: 0.05 | M4: =L4*L2 -> 3 | N4: Hz | R4: C Value | S4: =IF($K$16="Low Hz",MIN($C$79:$C$88),MAX($C$79:$C$88)) -> 59.83599854 | AM4: Value A Pre-Perturbation Average Frequency [T(-2 ) to T(-16)] | AN4: =AVERAGE($W$71:$W$78) -> 60.04174995 | AO4: Hz
F5: Value B Post-Perturbation Average Frequency [T(+20 to T(+52)] | G5: =AVERAGE($C$89:$C$105) -> 59.88870598 | H5: Hz | K5: Deadband Setting | L5: 0 | M5: Hz | R5: Delta FC | AM5: Value B Post-Perturbation Average Frequency [T(+20 to T(+52)] | AN5: =AVERAGE($W$89:$W$105) -> 59.88870598 | AO5: Hz
F6: Pre to Post Perturbation Delta Frequency Actual | G6: =G5-G4 -> -0.1530439713 | H6: Hz | K6: Hz Span | L6: =M4-L5 -> 3 | M6: Hz | AM6: Pre to Post Perturbation Delta Frequency Actual | AN6: =AN5-AN4 -> -0.1530439713 | AO6: Hz
F7: Value A Pre-Perturbation Average Interchange MW [T(-2 ) to T(-16)] | G7: =AVERAGE($D$71:$D$78) -> 3647.045868 | H7: MW | K7: Frequency Response Obligation (FRO) | L7: ='Entry Data'!B2 -> -80 | M7: MW/0.1 Hz | AM7: Value A Pre-Perturbation Average Interchange MW [T(-2 ) to T(-16)] | AN7: =AVERAGE($D$71:$D$78) -> 3647.045868 | AO7: MW
F8: Value B Post-Perturbation Average Interchange MW [T(+20 to T(+52)] | G8: =AVERAGE($D$89:$D$105) -> 3787.775003 | H8: MW | AM8: Value B Post-Perturbation Average Interchange MW [T(+20 to T(+52)] | AN8: =AVERAGE($D$89:$D$105) -> 3787.775003 | AO8: MW
F9: Pre to Post Perturbation Interchange Delta MW Actual | G9: =G8-G7 -> 140.729135 | H9: MW | AM9: Pre to Post Perturbation Interchange Delta MW Actual | AN9: =AN8-AN7 -> 140.729135 | AO9: MW
F10: Initial Performance Ramp Magnitude Adjustment | G10: =(D77-D49)*0.59 -> -12.59151611 | H10: MW | AM10: Net Total Adjustments | AN10: =AN30 -> -52.52877729 | AO10: MW
F11: EPFR Pre-Perturbation Average | G11: =AVERAGE(H71:H78) -> -33.39996338 | H11: MW | AM11: EPFR for FRO Pre-Perturbation Average | AN11: =AVERAGE(AT71:AT78) -> -33.39996338 | AO11: MW
F12: EPFR Post-Perturbation Average | G12: =AVERAGE(H89:H105) -> 89.03521369 | H12: MW | AM12: EPFR for FRO Post-Perturbation Average | AN12: =AVERAGE($AG89:$AG105) -> 89.03521369 | AO12: MW
F13: EPFR Delta | G13: =G12-G11 -> 122.4351771 | H13: MW | K13: TC (frequency response filter constant) | L13: 0.35 | M13: Time Constant for delayed delivery of PFR during Sustained Measure | AM13: EPFR for FRO Delta | AN13: =AN12-AN11 -> 122.4351771 | AO13: MW
AM14: EPFR for FRO Adjusted | AN14: =AN13+AN10 -> 69.90639978 | AO14: MW
AM15: Pre JOU Dynamic Schedules MW | AN15: =AVERAGE($Y$71:$Y$78) -> 350 | AO15: MW | AR15: Pre-Perturbation Bias Setting | AS15: =AVERAGE($AE$71:$AE$78) -> -103 | AT15: MW/0.1 Hz
K16: =IF(G6<0,"Low Hz","High Hz") -> Low Hz | L16: Delta Hz Event | AM16: Pre Non-Conforming Load MW | AN16: =AVERAGE($Z$71:$Z$78) -> -165.4295559 | AO16: MW | AR16: Post-Perturbation Bias Setting | AS16: =AVERAGE($AE$89:$AE$105) -> -103 | AT16: MW/0.1 Hz
K17: =LOOKUP(G3,B43:B529,N43:N529) -> 3763.753968 | L17: Actual Interchange MW Average during frequency recovery period | AM17: Pre Pumped Hydro MW | AN17: =AVERAGE($AA$71:$AA$78) -> 0 | AO17: MW | AR17: EPFR for Bias Setting Pre-Perturbation Average | AS17: =(AN4-$L$2)*10*AS15 -> -43.00245285 | AT17: MW
K18: =LOOKUP(G3,B43:B529,O43:O529) -> 3772.78102 | L18: Target Interchange MW Average during frequency recovery period | AM18: Pre Ramping Units MW | AN18: =AVERAGE($AB$71:$AB$78) -> 151.8125 | AO18: MW | AR18: EPFR for Bias Setting Post-Perturbation Average | AS18: =(AN5-$L$2)*10*AS16 -> 114.6328376 | AT18: MW
D19: EPFR = Expected Primary Frequency Response | F19: EPFR(Final) | G19: =G13+G10 -> 109.843661 | H19: MW | K19: =LOOKUP(G3,B49:B529,Q49:Q529) -> 3724.013107 | L19: Interchange Average Ramp MW during frequency recovery period | AM19: Pre Transferred Frequency Response MW | AN19: =AVERAGE($AC$71:$AC$78)*-10*(AN4-$L$2) -> -4.174995422 | AO19: MW | AR19: EPFR for Bias Setting Delta | AS19: =AS18-AS17 -> 157.6352905 | AT19: MW
F20: MW Response in right direction for frequency delta | G20: =IF((G6*G9)<0,"Yes","No") -> Yes | K20: =D77 -> 3645.445801 | L20: Actual MW @ T(-4) | AM20: Pre Contingent BA Lost Generation MW | AN20: =AVERAGE($AD$71:$AD$78) -> 15 | AO20: MW | AR20: Primary Frequency Response Delivery of Bias | AS20: =AN9/AS19 -> 0.8927514551
K21: =LOOKUP(G3,B43:B524,D43:D524)-D77+I77-LOOKUP(G3,B43:B524,I43:I524) -> 91.94261876 | L21: Starting and Ending Difference in Interchange MW during frequency recovery period (indicates ramp direction during recovery period) | AM21: Sum of Pre Perturbation Adjustments | AN21: =SUM(AN15:AN20) -> 347.2079487 | AO21: MW
K22: =G3-G2 -> 00:05:33 | L22: Event Duration (h:mm:ss)
K23: =IF(K18-K20<0,"Yes","No") -> No | L23: Target MW Average minus MW @ T(-4) less than zero | AM23: Post JOU Dynamic Schedules MW | AN23: =AVERAGE($Y$89:$Y$105) -> 335 | AO23: MW | AR23: Pre-Perturbation BA Load | AS23: =AVERAGE($AF$71:$AF$78) -> 7600.19625 | AT23: MW
K24: =IF(K21>0,K18-K20,K18-(K20+K21)) -> 127.3352193 | L24: Interchange Target Relative Average Change - MW (Low Frequency Event) | AM24: Post Non-Conforming Load MW | AN24: =AVERAGE($Z$89:$Z$105) -> -212.744348 | AO24: MW | AR24: Post-Perturbation BA Load | AS24: =AVERAGE($AF$89:$AF$105) -> 7570 | AT24: MW
K25: =IF(K21>0,K17-K20,K17-(K20+K21)) -> 118.3081669 | L25: Interchange Actual Relative Average Change - MW (Low Frequency Event) | AM25: Post Pumped Hydro MW | AN25: =AVERAGE($AA$89:$AA$105) -> 2.117647059 | AO25: MW | AR25: Pre to Post Perturbation BA Load Change | AS25: =AS24-AS23 -> -30.19625 | AT25: MW
K26: =IF(K17-K20<0,"Yes","No") -> No | L26: Interchange Actual Average minus MW @ T(-4) less than zero | AM26: Post Ramping Units MW | AN26: =AVERAGE($AB$89:$AB$105) -> 159.1764706 | AO26: MW | AR26: Load Dampening Frequency Response | AS26: =AS25/(AN6*-10) -> -19.73044069 | AT26: MW/0.1 Hz
K27: =IF(K17-K20>0,"Yes","No") -> Yes | L27: Interchange Average MW minus MW @ T(-4) greater than zero | AM27: Post Transferred Frequency Response MW | AN27: =AVERAGE($AC$89:$AC$105)*-10*(AN5-$L$2) -> 11.12940171 | AO27: MW | AR27: Load Dampening % of Total BA Frequency Response | AS27: =AS25/AN9*-1 -> 0.2145699965
K28: =IF(K18-K20>0,"Yes","No") -> Yes | L28: Interchange Target MW Average minus MW @ T(-4) greater than zero | AM28: Post Contingent BA Lost Generation MW | AN28: =AVERAGE($AD$89:$AD$105) -> 0 | AO28: MW
K29: =IF(K21>0,K18-(K20+K21),K18-K20) -> 35.39260059 | L29: Interchange Target Relative Average Change - MW (High Frequency Event) | AM29: Sum of Post Perturbation Adjustments | AN29: =SUM(AN23:AN28) -> 294.6791714 | AO29: MW
K30: =IF(K21>0,K17-(K20+K21),K17-K20) -> 26.36554811 | L30: Interchange Actual Relative Average Change - MW (High Frequency Event) | AM30: Net Total Adjustments MW | AN30: =AN29-AN21 -> -52.52877729 | AO30: MW
K31: =IF(K21>=0,"Up","Down") -> Up | L31: Ramp Direction during frequency recovery period
V32: Frequency, Actual Interchange, Adjustment Data, Bias and Load used in the evaluation | AI32: 20 to 52 second Average Period Evaluation
F33: Initial Response P.U. Performance | G33: =IF(G20="Yes",G9/G19," ") -> 1.281176663 | H33: P.U. | K33: =IF(G33=" "," ",IF(K16="Low Hz",IF(K23="Yes",IF(K17>K18,1,IF(K17>K19,0.75,0)),IF(K27="Yes",IF((K25/K24)>2,2,K25/K24),IF(K17>K19,0.75,0))),IF(K23="Yes",IF(K27="Yes",IF(K17<K19,0.75,0),IF((K17/K18)>2,2,K17/K18)),IF(K17<K18,1,IF(K17<K19,0.75,0))))) -> 0.9291079677 | L33: P.U. Sustianed Response P.U. Performance | AM33: Initial P.U. Performance for FRO | AN33: =AN9/AN13 -> 1.149417498 | AO33: P.U.
AM34: Initial P.U. Performance Adjusted for FRO | AN34: =(AN8-AN7-AN10)/AN13 -> 1.578450874 | AO34: P.U.
K35: Initial | Y35: JOU | Z35: Non- | AC35: Transferred | AD35: Contingent | AL35: JOU | AM35: Non- | AP35: Transferred | AQ35: Contingent | AU35: Expected
H36: FRO | K36: Measure | N36: Average | O36: Average | Q36: Average | X36: Net | Y36: Dynamic | Z36: Conforming | AA36: Pumped | AB36: Ramping | AC36: Frequency | AD36: BA | AE36: BA | AF36: BA | AG36: Expected Primary | AK36: Net | AL36: Dynamic | AM36: Conforming | AN36: Pumped | AO36: Ramping | AP36: Frequency | AQ36: BA | AR36: BA | AS36: BA | AU36: Net
H37: (EPFR) | I37: (TC) | K37: Final | N37: Output | O37: Target | Q37: Ramp | X37: Actual | Y37: Schedules | Z37: Load | AA37: Hydro | AB37: Units | AC37: Response | AD37: Lost Generation | AE37: Bias | AF37: Load | AG37: Freq Response | AK37: Actual | AL37: Schedules | AM37: Load | AN37: Hydro | AO37: Units | AP37: Response | AQ37: Lost Generation | AR37: Bias | AS37: Load | AU37: Actual
E38: Value B | H38: Expected | I38: Delayed | K38: Expected | M38: Recovery | N38: During | O38: During | P38: Recovery | Q38: During | W38: Frequency | X38: Interchange | Y38: Imp(-) Exp (+) | Z38: Load (-) | AA38: Load (-) Gen (+) | AB38: Gen (+) | AC38: Rec (-) Del (+) | AD38: Load (-) Gen (+) | AE38: Setting | AG38: Based on Bias Setting | AJ38: Frequency | AK38: Interchange | AL38: Imp(-) Exp (+) | AM38: Load (-) | AN38: Load (-) Gen (+) | AO38: Gen (+) | AP38: Rec (-) Del (+) | AQ38: Load (-) Gen (+) | AR38: Setting | AT38: EPFR | AU38: Interchange
E39: 20 to 52 sec | H39: Primary | I39: Delivery | K39: Primary | L39: Average | M39: Period | N39: Recovery | O39: Recovery | P39: Period | Q39: Recovery | V39: T | W39: Hz | X39: MW | Y39: MW | Z39: MW | AA39: MW | AB39: MW | AC39: MW/0.1 Hz | AD39: MW | AE39: MW/0.1 Hz | AF39: MW | AG39: MW | AI39: T | AJ39: Hz | AK39: MW | AL39: MW | AM39: MW | AN39: MW | AO39: MW | AP39: MW/0.1 Hz | AQ39: MW | AR39: MW/0.1 Hz | AS39: MW | AT39: MW | AU39: MW
C40: Frequency | D40: Interchange | E40: Average | F40: Average | H40: Frequency | I40: Frequency | K40: Frequency | L40: Ramp | M40: Target | N40: Period | O40: Period | P40: Ramp | Q40: Period
B41: T | C41: Hz | D41: MW | E41: Frequency | F41: MW | H41: Response | I41: Response | K41: Response | L41: MW/scan | M41: MW | N41: MW | O41: MW | P41: MW | Q41: MW
A43: T-72 sec | B43: =B44-TIME(0,0,$B$1) -> 40098.10149 | C43: =LOOKUP($B43,Data!$A$6:$A$1806,Data!$B$6:$B$1806) -> 60.02700043 | D43: =LOOKUP(B43,Data!$A$6:$A$1806,Data!C$6:C$1806) -> 3671.188965 | H43: =(IF((C43-L$2)>0,((C43-L$2-L$5)/((L$4*L$2)-L$5)*L$3*-1),((C43-L$2+L$5)/((L$4*L$2)-L$5)*L$3*-1))) -> -21.6003418 | I43: =L$13*H43+(1-L$13)*I42 -> -7.560119629 | U43: T-72 sec | V43: =V44-TIME(0,0,$B$1) -> 40098.10149 | W43: =LOOKUP($V43,Data!$A$6:$A$1806,Data!$B$6:$B$1806) -> 60.02700043 | X43: =LOOKUP($V43,Data!$A$6:$A$1806,Data!$C$6:$C$1806) -> 3671.188965 | Y43: =LOOKUP($V43,Data!$A$6:$A$1806,Data!$D$6:$D$1806) -> 350 | Z43: =IF($Z$1="+",LOOKUP($V43,Data!$A$6:$A$1806,Data!$E$6:$E$1806)*-1,LOOKUP($V43,Data!$A$6:$A$1806,Data!$E$6:$E$1806)) -> -253.6318665 | AA43: =LOOKUP($V43,Data!$A$6:$A$1806,Data!$F$6:$F$1806) -> 0 | AB43: =LOOKUP($V43,Data!$A$6:$A$1806,Data!$G$6:$G$1806) -> 141.5 | AC43: =LOOKUP($V43,Data!$A$6:$A$1806,Data!$H$6:$H$1806) -> 10 | AD43: =LOOKUP($V43,Data!$A$6:$A$1806,Data!$I$6:$I$1806) -> 15 | AE43: =LOOKUP($V43,Data!$A$6:$A$1806,Data!$J$6:$J$1806) -> -103 | AF43: =LOOKUP($V43,Data!$A$6:$A$1806,Data!$K$6:$K$1806) -> 7593.39 | AG43: =(IF((W43-$L$2)>0,((W43-$L$2-$L$5)/(($L$4*$L$2)-$L$5)*$L$3*-1),((W43-$L$2+$L$5)/(($L$4*$L$2)-$L$5)*$L$3*-1))) -> -21.6003418 | AH43: T-72 sec | AI43: =AI44-TIME(0,0,$B$1) -> 40098.10149
A44: T-70 sec | B44: 40098.10152 | C44: =LOOKUP(B44,Data!$A$6:$A$1806,Data!B$6:B$1806) -> 60.02700043 | D44: =LOOKUP(B44,Data!$A$6:$A$1806,Data!C$6:C$1806) -> 3671.188965 | H44: =(IF((C44-L$2)>0,((C44-L$2-L$5)/((L$4*L$2)-L$5)*L$3*-1),((C44-L$2+L$5)/((L$4*L$2)-L$5)*L$3*-1))) -> -21.6003418 | I44: -12.47419739 | U44: T-70 sec | V44: 40098.10152 | W44: =LOOKUP($V44,Data!$A$6:$A$1806,Data!$B$6:$B$1806) -> 60.02700043 | X44: =LOOKUP($V44,Data!$A$6:$A$1806,Data!$C$6:$C$1806) -> 3671.188965 | Y44: =LOOKUP($V44,Data!$A$6:$A$1806,Data!$D$6:$D$1806) -> 350 | Z44: =IF($Z$1="+",LOOKUP($V44,Data!$A$6:$A$1806,Data!$E$6:$E$1806)*-1,LOOKUP($V44,Data!$A$6:$A$1806,Data!$E$6:$E$1806)) -> -253.6318665 | AA44: =LOOKUP($V44,Data!$A$6:$A$1806,Data!$F$6:$F$1806) -> 0 | AB44: =LOOKUP($V44,Data!$A$6:$A$1806,Data!$G$6:$G$1806) -> 141.5 | AC44: =LOOKUP($V44,Data!$A$6:$A$1806,Data!$H$6:$H$1806) -> 10 | AD44: =LOOKUP($V44,Data!$A$6:$A$1806,Data!$I$6:$I$1806) -> 15 | AE44: =LOOKUP($V44,Data!$A$6:$A$1806,Data!$J$6:$J$1806) -> -103 | AF44: =LOOKUP($V44,Data!$A$6:$A$1806,Data!$K$6:$K$1806) -> 7593.39 | AG44: =(IF((W44-$L$2)>0,((W44-$L$2-$L$5)/(($L$4*$L$2)-$L$5)*$L$3*-1),((W44-$L$2+$L$5)/(($L$4*$L$2)-$L$5)*$L$3*-1))) -> -21.6003418 | AH44: T-70 sec | AI44: 40098.10152
A45: T-68 sec | B45: 40098.10154 | C45: =LOOKUP(B45,Data!$A$6:$A$1806,Data!B$6:B$1806) -> 60.02600098 | D45: =LOOKUP(B45,Data!$A$6:$A$1806,Data!C$6:C$1806) -> 3668.610596 | H45: -20.80078125 | I45: -15.38850174 | U45: T-68 sec | V45: 40098.10154 | W45: =LOOKUP($V45,Data!$A$6:$A$1806,Data!$B$6:$B$1806) -> 60.02600098 | X45: =LOOKUP($V45,Data!$A$6:$A$1806,Data!$C$6:$C$1806) -> 3668.610596 | Y45: =LOOKUP($V45,Data!$A$6:$A$1806,Data!$D$6:$D$1806) -> 350 | Z45: =IF($Z$1="+",LOOKUP($V45,Data!$A$6:$A$1806,Data!$E$6:$E$1806)*-1,LOOKUP($V45,Data!$A$6:$A$1806,Data!$E$6:$E$1806)) -> -253.6318665 | AA45: =LOOKUP($V45,Data!$A$6:$A$1806,Data!$F$6:$F$1806) -> 0 | AB45: =LOOKUP($V45,Data!$A$6:$A$1806,Data!$G$6:$G$1806) -> 142 | AC45: =LOOKUP($V45,Data!$A$6:$A$1806,Data!$H$6:$H$1806) -> 10 | AD45: =LOOKUP($V45,Data!$A$6:$A$1806,Data!$I$6:$I$1806) -> 15 | AE45: =LOOKUP($V45,Data!$A$6:$A$1806,Data!$J$6:$J$1806) -> -103 | AF45: =LOOKUP($V45,Data!$A$6:$A$1806,Data!$K$6:$K$1806) -> 7593.72 | AG45: -20.80078125 | AH45: T-68 sec | AI45: 40098.10154
A46: T-66 sec | B46: =B47-TIME(0,0,$B$1) -> 40098.10156 | C46: =LOOKUP(B46,Data!$A$6:$A$1806,Data!B$6:B$1806) -> 60.02199936 | D46: =LOOKUP(B46,Data!$A$6:$A$1806,Data!C$6:C$1806) -> 3664.495117 | H46: -17.5994873 | I46: -16.16234669 | U46: T-66 sec | V46: 40098.10156 | W46: =LOOKUP($V46,Data!$A$6:$A$1806,Data!$B$6:$B$1806) -> 60.02199936 | X46: =LOOKUP($V46,Data!$A$6:$A$1806,Data!$C$6:$C$1806) -> 3664.495117 | Y46: =LOOKUP($V46,Data!$A$6:$A$1806,Data!$D$6:$D$1806) -> 350 | Z46: =IF($Z$1="+",LOOKUP($V46,Data!$A$6:$A$1806,Data!$E$6:$E$1806)*-1,LOOKUP($V46,Data!$A$6:$A$1806,Data!$E$6:$E$1806)) -> -253.6318665 | AA46: =LOOKUP($V46,Data!$A$6:$A$1806,Data!$F$6:$F$1806) -> 0 | AB46: =LOOKUP($V46,Data!$A$6:$A$1806,Data!$G$6:$G$1806) -> 142.5 | AC46: =LOOKUP($V46,Data!$A$6:$A$1806,Data!$H$6:$H$1806) -> 10 | AD46: =LOOKUP($V46,Data!$A$6:$A$1806,Data!$I$6:$I$1806) -> 15 | AE46: =LOOKUP($V46,Data!$A$6:$A$1806,Data!$J$6:$J$1806) -> -103 | AF46: =LOOKUP($V46,Data!$A$6:$A$1806,Data!$K$6:$K$1806) -> 7594.05 | AG46: -17.5994873 | AH46: T-66 sec | AI46: 40098.10156
A47: T-64 sec | B47: 40098.10159 | C47: =LOOKUP(B47,Data!$A$6:$A$1806,Data!B$6:B$1806) -> 60.02199936 | D47: =LOOKUP(B47,Data!$A$6:$A$1806,Data!C$6:C$1806) -> 3664.495117 | H47: -17.5994873 | I47: -16.6653459 | U47: T-64 sec | V47: 40098.10159 | W47: =LOOKUP($V47,Data!$A$6:$A$1806,Data!$B$6:$B$1806) -> 60.02199936 | X47: =LOOKUP($V47,Data!$A$6:$A$1806,Data!$C$6:$C$1806) -> 3664.495117 | Y47: =LOOKUP($V47,Data!$A$6:$A$1806,Data!$D$6:$D$1806) -> 350 | Z47: =IF($Z$1="+",LOOKUP($V47,Data!$A$6:$A$1806,Data!$E$6:$E$1806)*-1,LOOKUP($V47,Data!$A$6:$A$1806,Data!$E$6:$E$1806)) -> -253.6318665 | AA47: =LOOKUP($V47,Data!$A$6:$A$1806,Data!$F$6:$F$1806) -> 0 | AB47: =LOOKUP($V47,Data!$A$6:$A$1806,Data!$G$6:$G$1806) -> 142.5 | AC47: =LOOKUP($V47,Data!$A$6:$A$1806,Data!$H$6:$H$1806) -> 10 | AD47: =LOOKUP($V47,Data!$A$6:$A$1806,Data!$I$6:$I$1806) -> 15 | AE47: =LOOKUP($V47,Data!$A$6:$A$1806,Data!$J$6:$J$1806) -> -103 | AF47: =LOOKUP($V47,Data!$A$6:$A$1806,Data!$K$6:$K$1806) -> 7594.05 | AG47: -17.5994873 | AH47: T-64 sec | AI47: 40098.10159
A48: T-62 sec | B48: 40098.10161 | C48: =LOOKUP(B48,Data!$A$6:$A$1806,Data!B$6:B$1806) -> 60.01699829 | D48: =LOOKUP(B48,Data!$A$6:$A$1806,Data!C$6:C$1806) -> 3666.061768 | H48: -13.59863281 | I48: -15.59199632 | U48: T-62 sec | V48: 40098.10161 | W48: =LOOKUP($V48,Data!$A$6:$A$1806,Data!$B$6:$B$1806) -> 60.01699829 | X48: =LOOKUP($V48,Data!$A$6:$A$1806,Data!$C$6:$C$1806) -> 3666.061768 | Y48: =LOOKUP($V48,Data!$A$6:$A$1806,Data!$D$6:$D$1806) -> 350 | Z48: =IF($Z$1="+",LOOKUP($V48,Data!$A$6:$A$1806,Data!$E$6:$E$1806)*-1,LOOKUP($V48,Data!$A$6:$A$1806,Data!$E$6:$E$1806)) -> -253.6318665 | AA48: =LOOKUP($V48,Data!$A$6:$A$1806,Data!$F$6:$F$1806) -> 0 | AB48: =LOOKUP($V48,Data!$A$6:$A$1806,Data!$G$6:$G$1806) -> 143 | AC48: =LOOKUP($V48,Data!$A$6:$A$1806,Data!$H$6:$H$1806) -> 10 | AD48: =LOOKUP($V48,Data!$A$6:$A$1806,Data!$I$6:$I$1806) -> 15 | AE48: =LOOKUP($V48,Data!$A$6:$A$1806,Data!$J$6:$J$1806) -> -103 | AF48: =LOOKUP($V48,Data!$A$6:$A$1806,Data!$K$6:$K$1806) -> 7594.38 | AG48: -13.59863281 | AH48: T-62 sec | AI48: 40098.10161
A49: T-60 sec | B49: 40098.10163 | C49: =LOOKUP(B49,Data!$A$6:$A$1806,Data!B$6:B$1806) -> 60.01900101 | D49: =LOOKUP(B49,Data!$A$6:$A$1806,Data!C$6:C$1806) -> 3666.787354 | H49: -15.20080566 | I49: -15.45507959 | L49: =(D$78-D$49-I$78+I$49)/29 -> -0.3097168656 | M49: =M50-L49-(I50-I49) -> 3666.787354 | U49: T-60 sec | V49: 40098.10163 | W49: =LOOKUP($V49,Data!$A$6:$A$1806,Data!$B$6:$B$1806) -> 60.01900101 | X49: =LOOKUP($V49,Data!$A$6:$A$1806,Data!$C$6:$C$1806) -> 3666.787354 | Y49: =LOOKUP($V49,Data!$A$6:$A$1806,Data!$D$6:$D$1806) -> 350 | Z49: =IF($Z$1="+",LOOKUP($V49,Data!$A$6:$A$1806,Data!$E$6:$E$1806)*-1,LOOKUP($V49,Data!$A$6:$A$1806,Data!$E$6:$E$1806)) -> -253.6318665 | AA49: =LOOKUP($V49,Data!$A$6:$A$1806,Data!$F$6:$F$1806) -> 0 | AB49: =LOOKUP($V49,Data!$A$6:$A$1806,Data!$G$6:$G$1806) -> 143.5 | AC49: =LOOKUP($V49,Data!$A$6:$A$1806,Data!$H$6:$H$1806) -> 10 | AD49: =LOOKUP($V49,Data!$A$6:$A$1806,Data!$I$6:$I$1806) -> 15 | AE49: =LOOKUP($V49,Data!$A$6:$A$1806,Data!$J$6:$J$1806) -> -103 | AF49: =LOOKUP($V49,Data!$A$6:$A$1806,Data!$K$6:$K$1806) -> 7594.71 | AG49: -15.20080566 | AH49: T-60 sec | AI49: 40098.10163
A50: T-58 sec | B50: 40098.10166 | C50: =LOOKUP(B50,Data!$A$6:$A$1806,Data!B$6:B$1806) -> 60.01900101 | D50: =LOOKUP(B50,Data!$A$6:$A$1806,Data!C$6:C$1806) -> 3666.787354 | H50: -15.20080566 | I50: -15.36608372 | L50: -0.3097168656 | M50: =M51-L50-(I51-I50) -> 3666.566633 | U50: T-58 sec | V50: 40098.10166 | W50: =LOOKUP($V50,Data!$A$6:$A$1806,Data!$B$6:$B$1806) -> 60.01900101 | X50: =LOOKUP($V50,Data!$A$6:$A$1806,Data!$C$6:$C$1806) -> 3666.787354 | Y50: =LOOKUP($V50,Data!$A$6:$A$1806,Data!$D$6:$D$1806) -> 350 | Z50: =IF($Z$1="+",LOOKUP($V50,Data!$A$6:$A$1806,Data!$E$6:$E$1806)*-1,LOOKUP($V50,Data!$A$6:$A$1806,Data!$E$6:$E$1806)) -> -253.6318665 | AA50: =LOOKUP($V50,Data!$A$6:$A$1806,Data!$F$6:$F$1806) -> 0 | AB50: =LOOKUP($V50,Data!$A$6:$A$1806,Data!$G$6:$G$1806) -> 143.5 | AC50: =LOOKUP($V50,Data!$A$6:$A$1806,Data!$H$6:$H$1806) -> 10 | AD50: =LOOKUP($V50,Data!$A$6:$A$1806,Data!$I$6:$I$1806) -> 15 | AE50: =LOOKUP($V50,Data!$A$6:$A$1806,Data!$J$6:$J$1806) -> -103 | AF50: =LOOKUP($V50,Data!$A$6:$A$1806,Data!$K$6:$K$1806) -> 7594.71 | AG50: -15.20080566 | AH50: T-58 sec | AI50: 40098.10166
A51: T-56 sec | B51: 40098.10168 | C51: =LOOKUP(B51,Data!$A$6:$A$1806,Data!B$6:B$1806) -> 60.01900101 | D51: =LOOKUP(B51,Data!$A$6:$A$1806,Data!C$6:C$1806) -> 3670.453613 | H51: -15.20080566 | I51: -15.3082364 | L51: -0.3097168656 | M51: 3666.314763 | U51: T-56 sec | V51: 40098.10168 | W51: =LOOKUP($V51,Data!$A$6:$A$1806,Data!$B$6:$B$1806) -> 60.01900101 | X51: =LOOKUP($V51,Data!$A$6:$A$1806,Data!$C$6:$C$1806) -> 3670.453613 | Y51: =LOOKUP($V51,Data!$A$6:$A$1806,Data!$D$6:$D$1806) -> 350 | Z51: =IF($Z$1="+",LOOKUP($V51,Data!$A$6:$A$1806,Data!$E$6:$E$1806)*-1,LOOKUP($V51,Data!$A$6:$A$1806,Data!$E$6:$E$1806)) -> -246.9573059 | AA51: =LOOKUP($V51,Data!$A$6:$A$1806,Data!$F$6:$F$1806) -> 0 | AB51: =LOOKUP($V51,Data!$A$6:$A$1806,Data!$G$6:$G$1806) -> 144 | AC51: =LOOKUP($V51,Data!$A$6:$A$1806,Data!$H$6:$H$1806) -> 10 | AD51: =LOOKUP($V51,Data!$A$6:$A$1806,Data!$I$6:$I$1806) -> 15 | AE51: =LOOKUP($V51,Data!$A$6:$A$1806,Data!$J$6:$J$1806) -> -103 | AF51: =LOOKUP($V51,Data!$A$6:$A$1806,Data!$K$6:$K$1806) -> 7595.04 | AG51: -15.20080566 | AH51: T-56 sec | AI51: 40098.10168
A52: T-54 sec | B52: 40098.1017 | C52: =LOOKUP(B52,Data!$A$6:$A$1806,Data!B$6:B$1806) -> 60.02099991 | D52: =LOOKUP(B52,Data!$A$6:$A$1806,Data!C$6:C$1806) -> 3671.667969 | H52: -16.79992676 | I52: -15.83032802 | L52: -0.3097168656 | M52: 3665.482954 | U52: T-54 sec | V52: 40098.1017 | W52: =LOOKUP($V52,Data!$A$6:$A$1806,Data!$B$6:$B$1806) -> 60.02099991 | X52: =LOOKUP($V52,Data!$A$6:$A$1806,Data!$C$6:$C$1806) -> 3671.667969 | Y52: =LOOKUP($V52,Data!$A$6:$A$1806,Data!$D$6:$D$1806) -> 350 | Z52: =IF($Z$1="+",LOOKUP($V52,Data!$A$6:$A$1806,Data!$E$6:$E$1806)*-1,LOOKUP($V52,Data!$A$6:$A$1806,Data!$E$6:$E$1806)) -> -246.9573059 | AA52: =LOOKUP($V52,Data!$A$6:$A$1806,Data!$F$6:$F$1806) -> 0 | AB52: =LOOKUP($V52,Data!$A$6:$A$1806,Data!$G$6:$G$1806) -> 144.5 | AC52: =LOOKUP($V52,Data!$A$6:$A$1806,Data!$H$6:$H$1806) -> 10 | AD52: =LOOKUP($V52,Data!$A$6:$A$1806,Data!$I$6:$I$1806) -> 15 | AE52: =LOOKUP($V52,Data!$A$6:$A$1806,Data!$J$6:$J$1806) -> -103 | AF52: =LOOKUP($V52,Data!$A$6:$A$1806,Data!$K$6:$K$1806) -> 7595.37 | AG52: -16.79992676 | AH52: T-54 sec | AI52: 40098.1017
A53: T-52 sec | B53: 40098.10172 | C53: =LOOKUP(B53,Data!$A$6:$A$1806,Data!B$6:B$1806) -> 60.02099991 | D53: =LOOKUP(B53,Data!$A$6:$A$1806,Data!C$6:C$1806) -> 3671.667969 | H53: -16.79992676 | I53: -16.16968758 | L53: -0.3097168656 | M53: 3664.833878 | U53: T-52 sec | V53: 40098.10172 | W53: =LOOKUP($V53,Data!$A$6:$A$1806,Data!$B$6:$B$1806) -> 60.02099991 | X53: =LOOKUP($V53,Data!$A$6:$A$1806,Data!$C$6:$C$1806) -> 3671.667969 | Y53: =LOOKUP($V53,Data!$A$6:$A$1806,Data!$D$6:$D$1806) -> 350 | Z53: =IF($Z$1="+",LOOKUP($V53,Data!$A$6:$A$1806,Data!$E$6:$E$1806)*-1,LOOKUP($V53,Data!$A$6:$A$1806,Data!$E$6:$E$1806)) -> -246.9573059 | AA53: =LOOKUP($V53,Data!$A$6:$A$1806,Data!$F$6:$F$1806) -> 0 | AB53: =LOOKUP($V53,Data!$A$6:$A$1806,Data!$G$6:$G$1806) -> 144.5 | AC53: =LOOKUP($V53,Data!$A$6:$A$1806,Data!$H$6:$H$1806) -> 10 | AD53: =LOOKUP($V53,Data!$A$6:$A$1806,Data!$I$6:$I$1806) -> 15 | AE53: =LOOKUP($V53,Data!$A$6:$A$1806,Data!$J$6:$J$1806) -> -103 | AF53: =LOOKUP($V53,Data!$A$6:$A$1806,Data!$K$6:$K$1806) -> 7595.37 | AG53: -16.79992676 | AH53: T-52 sec | AI53: 40098.10172
A54: T-50 sec | B54: 40098.10175 | C54: =LOOKUP(B54,Data!$A$6:$A$1806,Data!B$6:B$1806) -> 60.02099991 | D54: =LOOKUP(B54,Data!$A$6:$A$1806,Data!C$6:C$1806) -> 3672.493164 | H54: -16.79992676 | I54: -16.39027129 | L54: -0.3097168656 | M54: 3664.303577 | U54: T-50 sec | V54: 40098.10175 | W54: =LOOKUP($V54,Data!$A$6:$A$1806,Data!$B$6:$B$1806) -> 60.02099991 | X54: =LOOKUP($V54,Data!$A$6:$A$1806,Data!$C$6:$C$1806) -> 3672.493164 | Y54: =LOOKUP($V54,Data!$A$6:$A$1806,Data!$D$6:$D$1806) -> 350 | Z54: =IF($Z$1="+",LOOKUP($V54,Data!$A$6:$A$1806,Data!$E$6:$E$1806)*-1,LOOKUP($V54,Data!$A$6:$A$1806,Data!$E$6:$E$1806)) -> -246.9573059 | AA54: =LOOKUP($V54,Data!$A$6:$A$1806,Data!$F$6:$F$1806) -> 0 | AB54: =LOOKUP($V54,Data!$A$6:$A$1806,Data!$G$6:$G$1806) -> 145 | AC54: =LOOKUP($V54,Data!$A$6:$A$1806,Data!$H$6:$H$1806) -> 10 | AD54: =LOOKUP($V54,Data!$A$6:$A$1806,Data!$I$6:$I$1806) -> 15 | AE54: =LOOKUP($V54,Data!$A$6:$A$1806,Data!$J$6:$J$1806) -> -103 | AF54: =LOOKUP($V54,Data!$A$6:$A$1806,Data!$K$6:$K$1806) -> 7595.7 | AG54: -16.79992676 | AH54: T-50 sec | AI54: 40098.10175
A55: T-48 sec | B55: 40098.10177 | C55: =LOOKUP(B55,Data!$A$6:$A$1806,Data!B$6:B$1806) -> 60.01900101 | D55: =LOOKUP(B55,Data!$A$6:$A$1806,Data!C$6:C$1806) -> 3672.857422 | H55: -15.20080566 | I55: -15.97395832 | L55: -0.3097168656 | M55: 3664.410174 | U55: T-48 sec | V55: 40098.10177 | W55: =LOOKUP($V55,Data!$A$6:$A$1806,Data!$B$6:$B$1806) -> 60.01900101 | X55: =LOOKUP($V55,Data!$A$6:$A$1806,Data!$C$6:$C$1806) -> 3672.857422 | Y55: =LOOKUP($V55,Data!$A$6:$A$1806,Data!$D$6:$D$1806) -> 350 | Z55: =IF($Z$1="+",LOOKUP($V55,Data!$A$6:$A$1806,Data!$E$6:$E$1806)*-1,LOOKUP($V55,Data!$A$6:$A$1806,Data!$E$6:$E$1806)) -> -246.9573059 | AA55: =LOOKUP($V55,Data!$A$6:$A$1806,Data!$F$6:$F$1806) -> 0 | AB55: =LOOKUP($V55,Data!$A$6:$A$1806,Data!$G$6:$G$1806) -> 145.5 | AC55: =LOOKUP($V55,Data!$A$6:$A$1806,Data!$H$6:$H$1806) -> 10 | AD55: =LOOKUP($V55,Data!$A$6:$A$1806,Data!$I$6:$I$1806) -> 15 | AE55: =LOOKUP($V55,Data!$A$6:$A$1806,Data!$J$6:$J$1806) -> -103 | AF55: =LOOKUP($V55,Data!$A$6:$A$1806,Data!$K$6:$K$1806) -> 7596.03 | AG55: -15.20080566 | AH55: T-48 sec | AI55: 40098.10177
A56: T-46 sec | B56: 40098.10179 | C56: =LOOKUP(B56,Data!$A$6:$A$1806,Data!B$6:B$1806) -> 60.01900101 | D56: =LOOKUP(B56,Data!$A$6:$A$1806,Data!C$6:C$1806) -> 3672.857422 | H56: -15.20080566 | I56: -15.70335489 | L56: -0.3097168656 | M56: 3664.37106 | U56: T-46 sec | V56: 40098.10179 | W56: =LOOKUP($V56,Data!$A$6:$A$1806,Data!$B$6:$B$1806) -> 60.01900101 | X56: =LOOKUP($V56,Data!$A$6:$A$1806,Data!$C$6:$C$1806) -> 3672.857422 | Y56: =LOOKUP($V56,Data!$A$6:$A$1806,Data!$D$6:$D$1806) -> 350 | Z56: =IF($Z$1="+",LOOKUP($V56,Data!$A$6:$A$1806,Data!$E$6:$E$1806)*-1,LOOKUP($V56,Data!$A$6:$A$1806,Data!$E$6:$E$1806)) -> -246.9573059 | AA56: =LOOKUP($V56,Data!$A$6:$A$1806,Data!$F$6:$F$1806) -> 0 | AB56: =LOOKUP($V56,Data!$A$6:$A$1806,Data!$G$6:$G$1806) -> 145.5 | AC56: =LOOKUP($V56,Data!$A$6:$A$1806,Data!$H$6:$H$1806) -> 10 | AD56: =LOOKUP($V56,Data!$A$6:$A$1806,Data!$I$6:$I$1806) -> 15 | AE56: =LOOKUP($V56,Data!$A$6:$A$1806,Data!$J$6:$J$1806) -> -103 | AF56: =LOOKUP($V56,Data!$A$6:$A$1806,Data!$K$6:$K$1806) -> 7596.03 | AG56: -15.20080566 | AH56: T-46 sec | AI56: 40098.10179
A57: T-44 sec | B57: 40098.10182 | C57: =LOOKUP(B57,Data!$A$6:$A$1806,Data!B$6:B$1806) -> 60.02199936 | D57: =LOOKUP(B57,Data!$A$6:$A$1806,Data!C$6:C$1806) -> 3672.164062 | H57: -17.5994873 | I57: -16.36700124 | L57: -0.3097168656 | M57: 3663.397697 | U57: T-44 sec | V57: 40098.10182 | W57: =LOOKUP($V57,Data!$A$6:$A$1806,Data!$B$6:$B$1806) -> 60.02199936 | X57: =LOOKUP($V57,Data!$A$6:$A$1806,Data!$C$6:$C$1806) -> 3672.164062 | Y57: =LOOKUP($V57,Data!$A$6:$A$1806,Data!$D$6:$D$1806) -> 350 | Z57: =IF($Z$1="+",LOOKUP($V57,Data!$A$6:$A$1806,Data!$E$6:$E$1806)*-1,LOOKUP($V57,Data!$A$6:$A$1806,Data!$E$6:$E$1806)) -> -246.9573059 | AA57: =LOOKUP($V57,Data!$A$6:$A$1806,Data!$F$6:$F$1806) -> 0 | AB57: =LOOKUP($V57,Data!$A$6:$A$1806,Data!$G$6:$G$1806) -> 146 | AC57: =LOOKUP($V57,Data!$A$6:$A$1806,Data!$H$6:$H$1806) -> 10 | AD57: =LOOKUP($V57,Data!$A$6:$A$1806,Data!$I$6:$I$1806) -> 15 | AE57: =LOOKUP($V57,Data!$A$6:$A$1806,Data!$J$6:$J$1806) -> -103 | AF57: =LOOKUP($V57,Data!$A$6:$A$1806,Data!$K$6:$K$1806) -> 7596.36 | AG57: -17.5994873 | AH57: T-44 sec | AI57: 40098.10182
A58: T-42 sec | B58: 40098.10184 | C58: =LOOKUP(B58,Data!$A$6:$A$1806,Data!B$6:B$1806) -> 60.03099823 | D58: =LOOKUP(B58,Data!$A$6:$A$1806,Data!C$6:C$1806) -> 3669.98291 | H58: -24.79858398 | I58: -19.3180552 | L58: -0.3097168656 | M58: 3660.136926 | U58: T-42 sec | V58: 40098.10184 | W58: =LOOKUP($V58,Data!$A$6:$A$1806,Data!$B$6:$B$1806) -> 60.03099823 | X58: =LOOKUP($V58,Data!$A$6:$A$1806,Data!$C$6:$C$1806) -> 3669.98291 | Y58: =LOOKUP($V58,Data!$A$6:$A$1806,Data!$D$6:$D$1806) -> 350 | Z58: =IF($Z$1="+",LOOKUP($V58,Data!$A$6:$A$1806,Data!$E$6:$E$1806)*-1,LOOKUP($V58,Data!$A$6:$A$1806,Data!$E$6:$E$1806)) -> -254.5417786 | AA58: =LOOKUP($V58,Data!$A$6:$A$1806,Data!$F$6:$F$1806) -> 0 | AB58: =LOOKUP($V58,Data!$A$6:$A$1806,Data!$G$6:$G$1806) -> 146.5 | AC58: =LOOKUP($V58,Data!$A$6:$A$1806,Data!$H$6:$H$1806) -> 10 | AD58: =LOOKUP($V58,Data!$A$6:$A$1806,Data!$I$6:$I$1806) -> 15 | AE58: =LOOKUP($V58,Data!$A$6:$A$1806,Data!$J$6:$J$1806) -> -103 | AF58: =LOOKUP($V58,Data!$A$6:$A$1806,Data!$K$6:$K$1806) -> 7596.69 | AG58: -24.79858398 | AH58: T-42 sec | AI58: 40098.10184
A59: T-40 sec | B59: 40098.10186 | C59: =LOOKUP(B59,Data!$A$6:$A$1806,Data!B$6:B$1806) -> 60.03099823 | D59: =LOOKUP(B59,Data!$A$6:$A$1806,Data!C$6:C$1806) -> 3669.98291 | H59: -24.79858398 | I59: -21.23624027 | L59: -0.3097168656 | M59: 3657.909024 | U59: T-40 sec | V59: 40098.10186 | W59: =LOOKUP($V59,Data!$A$6:$A$1806,Data!$B$6:$B$1806) -> 60.03099823 | X59: =LOOKUP($V59,Data!$A$6:$A$1806,Data!$C$6:$C$1806) -> 3669.98291 | Y59: =LOOKUP($V59,Data!$A$6:$A$1806,Data!$D$6:$D$1806) -> 350 | Z59: =IF($Z$1="+",LOOKUP($V59,Data!$A$6:$A$1806,Data!$E$6:$E$1806)*-1,LOOKUP($V59,Data!$A$6:$A$1806,Data!$E$6:$E$1806)) -> -254.5417786 | AA59: =LOOKUP($V59,Data!$A$6:$A$1806,Data!$F$6:$F$1806) -> 0 | AB59: =LOOKUP($V59,Data!$A$6:$A$1806,Data!$G$6:$G$1806) -> 146.5 | AC59: =LOOKUP($V59,Data!$A$6:$A$1806,Data!$H$6:$H$1806) -> 10 | AD59: =LOOKUP($V59,Data!$A$6:$A$1806,Data!$I$6:$I$1806) -> 15 | AE59: =LOOKUP($V59,Data!$A$6:$A$1806,Data!$J$6:$J$1806) -> -103 | AF59: =LOOKUP($V59,Data!$A$6:$A$1806,Data!$K$6:$K$1806) -> 7596.69 | AG59: -24.79858398 | AH59: T-40 sec | AI59: 40098.10186
A60: T-38 sec | B60: 40098.10189 | C60: =LOOKUP(B60,Data!$A$6:$A$1806,Data!B$6:B$1806) -> 60.03699875 | D60: =LOOKUP(B60,Data!$A$6:$A$1806,Data!C$6:C$1806) -> 3666.467285 | H60: -29.59899902 | I60: -24.16320584 | L60: -0.3097168656 | M60: 3654.672342 | U60: T-38 sec | V60: 40098.10189 | W60: =LOOKUP($V60,Data!$A$6:$A$1806,Data!$B$6:$B$1806) -> 60.03699875 | X60: =LOOKUP($V60,Data!$A$6:$A$1806,Data!$C$6:$C$1806) -> 3666.467285 | Y60: =LOOKUP($V60,Data!$A$6:$A$1806,Data!$D$6:$D$1806) -> 350 | Z60: =IF($Z$1="+",LOOKUP($V60,Data!$A$6:$A$1806,Data!$E$6:$E$1806)*-1,LOOKUP($V60,Data!$A$6:$A$1806,Data!$E$6:$E$1806)) -> -254.5417786 | AA60: =LOOKUP($V60,Data!$A$6:$A$1806,Data!$F$6:$F$1806) -> 0 | AB60: =LOOKUP($V60,Data!$A$6:$A$1806,Data!$G$6:$G$1806) -> 147 | AC60: =LOOKUP($V60,Data!$A$6:$A$1806,Data!$H$6:$H$1806) -> 10 | AD60: =LOOKUP($V60,Data!$A$6:$A$1806,Data!$I$6:$I$1806) -> 15 | AE60: =LOOKUP($V60,Data!$A$6:$A$1806,Data!$J$6:$J$1806) -> -103 | AF60: =LOOKUP($V60,Data!$A$6:$A$1806,Data!$K$6:$K$1806) -> 7597.02 | AG60: -29.59899902 | AH60: T-38 sec | AI60: 40098.10189
A61: T-36 sec | B61: 40098.10191 | C61: =LOOKUP(B61,Data!$A$6:$A$1806,Data!B$6:B$1806) -> 60.0359993 | D61: =LOOKUP(B61,Data!$A$6:$A$1806,Data!C$6:C$1806) -> 3661.599121 | H61: -28.79943848 | I61: -25.78588726 | L61: -0.3097168656 | M61: 3652.739943 | U61: T-36 sec | V61: 40098.10191 | W61: =LOOKUP($V61,Data!$A$6:$A$1806,Data!$B$6:$B$1806) -> 60.0359993 | X61: =LOOKUP($V61,Data!$A$6:$A$1806,Data!$C$6:$C$1806) -> 3661.599121 | Y61: =LOOKUP($V61,Data!$A$6:$A$1806,Data!$D$6:$D$1806) -> 350 | Z61: =IF($Z$1="+",LOOKUP($V61,Data!$A$6:$A$1806,Data!$E$6:$E$1806)*-1,LOOKUP($V61,Data!$A$6:$A$1806,Data!$E$6:$E$1806)) -> -254.5417786 | AA61: =LOOKUP($V61,Data!$A$6:$A$1806,Data!$F$6:$F$1806) -> 0 | AB61: =LOOKUP($V61,Data!$A$6:$A$1806,Data!$G$6:$G$1806) -> 147.5 | AC61: =LOOKUP($V61,Data!$A$6:$A$1806,Data!$H$6:$H$1806) -> 10 | AD61: =LOOKUP($V61,Data!$A$6:$A$1806,Data!$I$6:$I$1806) -> 15 | AE61: =LOOKUP($V61,Data!$A$6:$A$1806,Data!$J$6:$J$1806) -> -103 | AF61: =LOOKUP($V61,Data!$A$6:$A$1806,Data!$K$6:$K$1806) -> 7597.35 | AG61: -28.79943848 | AH61: T-36 sec | AI61: 40098.10191
A62: T-34 sec | B62: 40098.10193 | C62: =LOOKUP(B62,Data!$A$6:$A$1806,Data!B$6:B$1806) -> 60.0359993 | D62: =LOOKUP(B62,Data!$A$6:$A$1806,Data!C$6:C$1806) -> 3661.599121 | H62: -28.79943848 | I62: -26.84063019 | L62: -0.3097168656 | M62: 3651.375484 | U62: T-34 sec | V62: 40098.10193 | W62: =LOOKUP($V62,Data!$A$6:$A$1806,Data!$B$6:$B$1806) -> 60.0359993 | X62: =LOOKUP($V62,Data!$A$6:$A$1806,Data!$C$6:$C$1806) -> 3661.599121 | Y62: =LOOKUP($V62,Data!$A$6:$A$1806,Data!$D$6:$D$1806) -> 350 | Z62: =IF($Z$1="+",LOOKUP($V62,Data!$A$6:$A$1806,Data!$E$6:$E$1806)*-1,LOOKUP($V62,Data!$A$6:$A$1806,Data!$E$6:$E$1806)) -> -254.5417786 | AA62: =LOOKUP($V62,Data!$A$6:$A$1806,Data!$F$6:$F$1806) -> 0 | AB62: =LOOKUP($V62,Data!$A$6:$A$1806,Data!$G$6:$G$1806) -> 147.5 | AC62: =LOOKUP($V62,Data!$A$6:$A$1806,Data!$H$6:$H$1806) -> 10 | AD62: =LOOKUP($V62,Data!$A$6:$A$1806,Data!$I$6:$I$1806) -> 15 | AE62: =LOOKUP($V62,Data!$A$6:$A$1806,Data!$J$6:$J$1806) -> -103 | AF62: =LOOKUP($V62,Data!$A$6:$A$1806,Data!$K$6:$K$1806) -> 7597.35 | AG62: -28.79943848 | AH62: T-34 sec | AI62: 40098.10193
A63: T-32 sec | B63: 40098.10196 | C63: =LOOKUP(B63,Data!$A$6:$A$1806,Data!B$6:B$1806) -> 60.04600143 | D63: =LOOKUP(B63,Data!$A$6:$A$1806,Data!C$6:C$1806) -> 3660.672363 | H63: -36.80114746 | I63: -30.32681123 | L63: -0.3097168656 | M63: 3647.579586 | U63: T-32 sec | V63: 40098.10196 | W63: =LOOKUP($V63,Data!$A$6:$A$1806,Data!$B$6:$B$1806) -> 60.04600143 | X63: =LOOKUP($V63,Data!$A$6:$A$1806,Data!$C$6:$C$1806) -> 3660.672363 | Y63: =LOOKUP($V63,Data!$A$6:$A$1806,Data!$D$6:$D$1806) -> 350 | Z63: =IF($Z$1="+",LOOKUP($V63,Data!$A$6:$A$1806,Data!$E$6:$E$1806)*-1,LOOKUP($V63,Data!$A$6:$A$1806,Data!$E$6:$E$1806)) -> -254.5417786 | AA63: =LOOKUP($V63,Data!$A$6:$A$1806,Data!$F$6:$F$1806) -> 0 | AB63: =LOOKUP($V63,Data!$A$6:$A$1806,Data!$G$6:$G$1806) -> 148 | AC63: =LOOKUP($V63,Data!$A$6:$A$1806,Data!$H$6:$H$1806) -> 10 | AD63: =LOOKUP($V63,Data!$A$6:$A$1806,Data!$I$6:$I$1806) -> 15 | AE63: =LOOKUP($V63,Data!$A$6:$A$1806,Data!$J$6:$J$1806) -> -103 | AF63: =LOOKUP($V63,Data!$A$6:$A$1806,Data!$K$6:$K$1806) -> 7597.68 | AG63: -36.80114746 | AH63: T-32 sec | AI63: 40098.10196
A64: T-30 sec | B64: 40098.10198 | C64: =LOOKUP(B64,Data!$A$6:$A$1806,Data!B$6:B$1806) -> 60.04800034 | D64: =LOOKUP(B64,Data!$A$6:$A$1806,Data!C$6:C$1806) -> 3649.19043 | H64: -38.40026855 | I64: -33.1525213 | L64: -0.3097168656 | M64: 3644.444159 | U64: T-30 sec | V64: 40098.10198 | W64: =LOOKUP($V64,Data!$A$6:$A$1806,Data!$B$6:$B$1806) -> 60.04800034 | X64: =LOOKUP($V64,Data!$A$6:$A$1806,Data!$C$6:$C$1806) -> 3649.19043 | Y64: =LOOKUP($V64,Data!$A$6:$A$1806,Data!$D$6:$D$1806) -> 350 | Z64: =IF($Z$1="+",LOOKUP($V64,Data!$A$6:$A$1806,Data!$E$6:$E$1806)*-1,LOOKUP($V64,Data!$A$6:$A$1806,Data!$E$6:$E$1806)) -> -165.1016846 | AA64: =LOOKUP($V64,Data!$A$6:$A$1806,Data!$F$6:$F$1806) -> 0 | AB64: =LOOKUP($V64,Data!$A$6:$A$1806,Data!$G$6:$G$1806) -> 148.5 | AC64: =LOOKUP($V64,Data!$A$6:$A$1806,Data!$H$6:$H$1806) -> 10 | AD64: =LOOKUP($V64,Data!$A$6:$A$1806,Data!$I$6:$I$1806) -> 15 | AE64: =LOOKUP($V64,Data!$A$6:$A$1806,Data!$J$6:$J$1806) -> -103 | AF64: =LOOKUP($V64,Data!$A$6:$A$1806,Data!$K$6:$K$1806) -> 7598.01 | AG64: -38.40026855 | AH64: T-30 sec | AI64: 40098.10198
A65: T-28 sec | B65: 40098.102 | C65: =LOOKUP(B65,Data!$A$6:$A$1806,Data!B$6:B$1806) -> 60.04800034 | D65: =LOOKUP(B65,Data!$A$6:$A$1806,Data!C$6:C$1806) -> 3649.19043 | H65: -38.40026855 | I65: -34.98923284 | L65: -0.3097168656 | M65: 3642.29773 | U65: T-28 sec | V65: 40098.102 | W65: =LOOKUP($V65,Data!$A$6:$A$1806,Data!$B$6:$B$1806) -> 60.04800034 | X65: =LOOKUP($V65,Data!$A$6:$A$1806,Data!$C$6:$C$1806) -> 3649.19043 | Y65: =LOOKUP($V65,Data!$A$6:$A$1806,Data!$D$6:$D$1806) -> 350 | Z65: =IF($Z$1="+",LOOKUP($V65,Data!$A$6:$A$1806,Data!$E$6:$E$1806)*-1,LOOKUP($V65,Data!$A$6:$A$1806,Data!$E$6:$E$1806)) -> -165.1016846 | AA65: =LOOKUP($V65,Data!$A$6:$A$1806,Data!$F$6:$F$1806) -> 0 | AB65: =LOOKUP($V65,Data!$A$6:$A$1806,Data!$G$6:$G$1806) -> 148.5 | AC65: =LOOKUP($V65,Data!$A$6:$A$1806,Data!$H$6:$H$1806) -> 10 | AD65: =LOOKUP($V65,Data!$A$6:$A$1806,Data!$I$6:$I$1806) -> 15 | AE65: =LOOKUP($V65,Data!$A$6:$A$1806,Data!$J$6:$J$1806) -> -103 | AF65: =LOOKUP($V65,Data!$A$6:$A$1806,Data!$K$6:$K$1806) -> 7598.01 | AG65: -38.40026855 | AH65: T-28 sec | AI65: 40098.102
A66: T-26 sec | B66: 40098.10203 | C66: =LOOKUP(B66,Data!$A$6:$A$1806,Data!B$6:B$1806) -> 60.04299927 | D66: =LOOKUP(B66,Data!$A$6:$A$1806,Data!C$6:C$1806) -> 3650.025146 | H66: -34.39941406 | I66: -34.78279627 | L66: -0.3097168656 | M66: 3642.19445 | U66: T-26 sec | V66: 40098.10203 | W66: =LOOKUP($V66,Data!$A$6:$A$1806,Data!$B$6:$B$1806) -> 60.04299927 | X66: =LOOKUP($V66,Data!$A$6:$A$1806,Data!$C$6:$C$1806) -> 3650.025146 | Y66: =LOOKUP($V66,Data!$A$6:$A$1806,Data!$D$6:$D$1806) -> 350 | Z66: =IF($Z$1="+",LOOKUP($V66,Data!$A$6:$A$1806,Data!$E$6:$E$1806)*-1,LOOKUP($V66,Data!$A$6:$A$1806,Data!$E$6:$E$1806)) -> -165.1016846 | AA66: =LOOKUP($V66,Data!$A$6:$A$1806,Data!$F$6:$F$1806) -> 0 | AB66: =LOOKUP($V66,Data!$A$6:$A$1806,Data!$G$6:$G$1806) -> 149 | AC66: =LOOKUP($V66,Data!$A$6:$A$1806,Data!$H$6:$H$1806) -> 10 | AD66: =LOOKUP($V66,Data!$A$6:$A$1806,Data!$I$6:$I$1806) -> 15 | AE66: =LOOKUP($V66,Data!$A$6:$A$1806,Data!$J$6:$J$1806) -> -103 | AF66: =LOOKUP($V66,Data!$A$6:$A$1806,Data!$K$6:$K$1806) -> 7598.34 | AG66: -34.39941406 | AH66: T-26 sec | AI66: 40098.10203
A67: T-24 sec | B67: 40098.10205 | C67: =LOOKUP(B67,Data!$A$6:$A$1806,Data!B$6:B$1806) -> 60.04100037 | D67: =LOOKUP(B67,Data!$A$6:$A$1806,Data!C$6:C$1806) -> 3649.511963 | H67: -32.80029297 | I67: -34.08892011 | L67: -0.3097168656 | M67: 3642.578609 | U67: T-24 sec | V67: 40098.10205 | W67: =LOOKUP($V67,Data!$A$6:$A$1806,Data!$B$6:$B$1806) -> 60.04100037 | X67: =LOOKUP($V67,Data!$A$6:$A$1806,Data!$C$6:$C$1806) -> 3649.511963 | Y67: =LOOKUP($V67,Data!$A$6:$A$1806,Data!$D$6:$D$1806) -> 350 | Z67: =IF($Z$1="+",LOOKUP($V67,Data!$A$6:$A$1806,Data!$E$6:$E$1806)*-1,LOOKUP($V67,Data!$A$6:$A$1806,Data!$E$6:$E$1806)) -> -165.1016846 | AA67: =LOOKUP($V67,Data!$A$6:$A$1806,Data!$F$6:$F$1806) -> 0 | AB67: =LOOKUP($V67,Data!$A$6:$A$1806,Data!$G$6:$G$1806) -> 149.5 | AC67: =LOOKUP($V67,Data!$A$6:$A$1806,Data!$H$6:$H$1806) -> 10 | AD67: =LOOKUP($V67,Data!$A$6:$A$1806,Data!$I$6:$I$1806) -> 15 | AE67: =LOOKUP($V67,Data!$A$6:$A$1806,Data!$J$6:$J$1806) -> -103 | AF67: =LOOKUP($V67,Data!$A$6:$A$1806,Data!$K$6:$K$1806) -> 7598.67 | AG67: -32.80029297 | AH67: T-24 sec | AI67: 40098.10205
A68: T-22 sec | B68: 40098.10207 | C68: =LOOKUP(B68,Data!$A$6:$A$1806,Data!B$6:B$1806) -> 60.04100037 | D68: =LOOKUP(B68,Data!$A$6:$A$1806,Data!C$6:C$1806) -> 3649.511963 | H68: -32.80029297 | I68: -33.63790061 | L68: -0.3097168656 | M68: 3642.719912 | U68: T-22 sec | V68: 40098.10207 | W68: =LOOKUP($V68,Data!$A$6:$A$1806,Data!$B$6:$B$1806) -> 60.04100037 | X68: =LOOKUP($V68,Data!$A$6:$A$1806,Data!$C$6:$C$1806) -> 3649.511963 | Y68: =LOOKUP($V68,Data!$A$6:$A$1806,Data!$D$6:$D$1806) -> 350 | Z68: =IF($Z$1="+",LOOKUP($V68,Data!$A$6:$A$1806,Data!$E$6:$E$1806)*-1,LOOKUP($V68,Data!$A$6:$A$1806,Data!$E$6:$E$1806)) -> -165.1016846 | AA68: =LOOKUP($V68,Data!$A$6:$A$1806,Data!$F$6:$F$1806) -> 0 | AB68: =LOOKUP($V68,Data!$A$6:$A$1806,Data!$G$6:$G$1806) -> 149.5 | AC68: =LOOKUP($V68,Data!$A$6:$A$1806,Data!$H$6:$H$1806) -> 10 | AD68: =LOOKUP($V68,Data!$A$6:$A$1806,Data!$I$6:$I$1806) -> 15 | AE68: =LOOKUP($V68,Data!$A$6:$A$1806,Data!$J$6:$J$1806) -> -103 | AF68: =LOOKUP($V68,Data!$A$6:$A$1806,Data!$K$6:$K$1806) -> 7598.67 | AG68: -32.80029297 | AH68: T-22 sec | AI68: 40098.10207
A69: T-20 sec | B69: 40098.10209 | C69: =LOOKUP(B69,Data!$A$6:$A$1806,Data!B$6:B$1806) -> 60.04100037 | D69: =LOOKUP(B69,Data!$A$6:$A$1806,Data!C$6:C$1806) -> 3654.294434 | H69: -32.80029297 | I69: -33.34473794 | L69: -0.3097168656 | M69: 3642.703358 | U69: T-20 sec | V69: 40098.10209 | W69: =LOOKUP($V69,Data!$A$6:$A$1806,Data!$B$6:$B$1806) -> 60.04100037 | X69: =LOOKUP($V69,Data!$A$6:$A$1806,Data!$C$6:$C$1806) -> 3654.294434 | Y69: =LOOKUP($V69,Data!$A$6:$A$1806,Data!$D$6:$D$1806) -> 350 | Z69: =IF($Z$1="+",LOOKUP($V69,Data!$A$6:$A$1806,Data!$E$6:$E$1806)*-1,LOOKUP($V69,Data!$A$6:$A$1806,Data!$E$6:$E$1806)) -> -165.1016846 | AA69: =LOOKUP($V69,Data!$A$6:$A$1806,Data!$F$6:$F$1806) -> 0 | AB69: =LOOKUP($V69,Data!$A$6:$A$1806,Data!$G$6:$G$1806) -> 150 | AC69: =LOOKUP($V69,Data!$A$6:$A$1806,Data!$H$6:$H$1806) -> 10 | AD69: =LOOKUP($V69,Data!$A$6:$A$1806,Data!$I$6:$I$1806) -> 15 | AE69: =LOOKUP($V69,Data!$A$6:$A$1806,Data!$J$6:$J$1806) -> -103 | AF69: =LOOKUP($V69,Data!$A$6:$A$1806,Data!$K$6:$K$1806) -> 7599 | AG69: -32.80029297 | AH69: T-20 sec | AI69: 40098.10209
A70: T-18 sec | B70: 40098.10212 | C70: =LOOKUP(B70,Data!$A$6:$A$1806,Data!B$6:B$1806) -> 60.03900146 | D70: =LOOKUP(B70,Data!$A$6:$A$1806,Data!C$6:C$1806) -> 3651.874268 | H70: -31.20117188 | I70: -32.59448982 | L70: -0.3097168656 | M70: 3643.143889 | U70: T-18 sec | V70: 40098.10212 | W70: =LOOKUP($V70,Data!$A$6:$A$1806,Data!$B$6:$B$1806) -> 60.03900146 | X70: =LOOKUP($V70,Data!$A$6:$A$1806,Data!$C$6:$C$1806) -> 3651.874268 | Y70: =LOOKUP($V70,Data!$A$6:$A$1806,Data!$D$6:$D$1806) -> 350 | Z70: =IF($Z$1="+",LOOKUP($V70,Data!$A$6:$A$1806,Data!$E$6:$E$1806)*-1,LOOKUP($V70,Data!$A$6:$A$1806,Data!$E$6:$E$1806)) -> -165.1016846 | AA70: =LOOKUP($V70,Data!$A$6:$A$1806,Data!$F$6:$F$1806) -> 0 | AB70: =LOOKUP($V70,Data!$A$6:$A$1806,Data!$G$6:$G$1806) -> 150.5 | AC70: =LOOKUP($V70,Data!$A$6:$A$1806,Data!$H$6:$H$1806) -> 10 | AD70: =LOOKUP($V70,Data!$A$6:$A$1806,Data!$I$6:$I$1806) -> 15 | AE70: =LOOKUP($V70,Data!$A$6:$A$1806,Data!$J$6:$J$1806) -> -103 | AF70: =LOOKUP($V70,Data!$A$6:$A$1806,Data!$K$6:$K$1806) -> 7599.33 | AG70: -31.20117188 | AH70: T-18 sec | AI70: 40098.10212
A71: T-16 sec | B71: 40098.10214 | C71: =LOOKUP(B71,Data!$A$6:$A$1806,Data!B$6:B$1806) -> 60.03900146 | D71: =LOOKUP(B71,Data!$A$6:$A$1806,Data!C$6:C$1806) -> 3651.874268 | E71: =AVERAGE($C$71:$C$78) -> 60.04174995 | F71: =AVERAGE($D$71:$D$78) -> 3647.045868 | H71: =(IF((C71-$L$2)>0,((C71-$L$2-$L$5)/(($L$4*$L$2)-$L$5)*$L$3*-1),((C71-$L$2+$L$5)/(($L$4*$L$2)-$L$5)*$L$3*-1))) -> -31.20117188 | I71: -32.10682854 | L71: -0.3097168656 | M71: 3643.321834 | U71: T-16 sec | V71: 40098.10214 | W71: =LOOKUP($V71,Data!$A$6:$A$1806,Data!$B$6:$B$1806) -> 60.03900146 | X71: =LOOKUP($V71,Data!$A$6:$A$1806,Data!$C$6:$C$1806) -> 3651.874268 | Y71: =LOOKUP($V71,Data!$A$6:$A$1806,Data!$D$6:$D$1806) -> 350 | Z71: =IF($Z$1="+",LOOKUP($V71,Data!$A$6:$A$1806,Data!$E$6:$E$1806)*-1,LOOKUP($V71,Data!$A$6:$A$1806,Data!$E$6:$E$1806)) -> -165.1016846 | AA71: =LOOKUP($V71,Data!$A$6:$A$1806,Data!$F$6:$F$1806) -> 0 | AB71: =LOOKUP($V71,Data!$A$6:$A$1806,Data!$G$6:$G$1806) -> 150.5 | AC71: =LOOKUP($V71,Data!$A$6:$A$1806,Data!$H$6:$H$1806) -> 10 | AD71: =LOOKUP($V71,Data!$A$6:$A$1806,Data!$I$6:$I$1806) -> 15 | AE71: =LOOKUP($V71,Data!$A$6:$A$1806,Data!$J$6:$J$1806) -> -103 | AF71: =LOOKUP($V71,Data!$A$6:$A$1806,Data!$K$6:$K$1806) -> 7599.33 | AG71: -31.20117188 | AH71: T-16 sec | AI71: 40098.10214 | AJ71: =AVERAGE($W$71:$W$78) -> 60.04174995 | AK71: =AVERAGE($X$71:$X$78) -> 3647.045868 | AL71: =AVERAGE($Y$71:$Y$78) -> 350 | AM71: =AVERAGE($Z$71:$Z$78) -> -165.4295559 | AN71: =AVERAGE($AA$71:$AA$78) -> 0 | AO71: =AVERAGE($AB$71:$AB$78) -> 151.8125 | AP71: =AVERAGE($AC$71:$AC$78) -> 10 | AQ71: =AVERAGE($AD$71:$AD$78) -> 15 | AR71: =AVERAGE($AE$71:$AE$78) -> -103 | AS71: =AVERAGE($AF$71:$AF$78) -> 7600.19625 | AT71: =AVERAGE($AG$71:$AG$78) -> -33.39996338
A72: T-14 sec | B72: 40098.10216 | C72: =LOOKUP(B72,Data!$A$6:$A$1806,Data!B$6:B$1806) -> 60.04299927 | D72: =LOOKUP(B72,Data!$A$6:$A$1806,Data!C$6:C$1806) -> 3651.059326 | E72: =AVERAGE($C$71:$C$78) -> 60.04174995 | F72: =AVERAGE($D$71:$D$78) -> 3647.045868 | H72: -34.39941406 | I72: -32.90923347 | L72: -0.3097168656 | M72: 3642.209712 | U72: T-14 sec | V72: 40098.10216 | W72: =LOOKUP($V72,Data!$A$6:$A$1806,Data!$B$6:$B$1806) -> 60.04299927 | X72: =LOOKUP($V72,Data!$A$6:$A$1806,Data!$C$6:$C$1806) -> 3651.059326 | Y72: =LOOKUP($V72,Data!$A$6:$A$1806,Data!$D$6:$D$1806) -> 350 | Z72: =IF($Z$1="+",LOOKUP($V72,Data!$A$6:$A$1806,Data!$E$6:$E$1806)*-1,LOOKUP($V72,Data!$A$6:$A$1806,Data!$E$6:$E$1806)) -> -165.4763947 | AA72: =LOOKUP($V72,Data!$A$6:$A$1806,Data!$F$6:$F$1806) -> 0 | AB72: =LOOKUP($V72,Data!$A$6:$A$1806,Data!$G$6:$G$1806) -> 151 | AC72: =LOOKUP($V72,Data!$A$6:$A$1806,Data!$H$6:$H$1806) -> 10 | AD72: =LOOKUP($V72,Data!$A$6:$A$1806,Data!$I$6:$I$1806) -> 15 | AE72: =LOOKUP($V72,Data!$A$6:$A$1806,Data!$J$6:$J$1806) -> -103 | AF72: =LOOKUP($V72,Data!$A$6:$A$1806,Data!$K$6:$K$1806) -> 7599.66 | AG72: -34.39941406 | AH72: T-14 sec | AI72: 40098.10216 | AJ72: =AVERAGE($W$71:$W$78) -> 60.04174995 | AK72: =AVERAGE($X$71:$X$78) -> 3647.045868 | AL72: =AVERAGE($Y$71:$Y$78) -> 350 | AM72: =AVERAGE($Z$71:$Z$78) -> -165.4295559 | AN72: =AVERAGE($AA$71:$AA$78) -> 0 | AO72: =AVERAGE($AB$71:$AB$78) -> 151.8125 | AP72: =AVERAGE($AC$71:$AC$78) -> 10 | AQ72: =AVERAGE($AD$71:$AD$78) -> 15 | AR72: =AVERAGE($AE$71:$AE$78) -> -103 | AS72: =AVERAGE($AF$71:$AF$78) -> 7600.19625 | AT72: =AVERAGE($AG$71:$AG$78) -> -33.39996338
A73: T-12 sec | B73: 40098.10219 | C73: =LOOKUP(B73,Data!$A$6:$A$1806,Data!B$6:B$1806) -> 60.04499817 | D73: =LOOKUP(B73,Data!$A$6:$A$1806,Data!C$6:C$1806) -> 3648.236328 | E73: 60.04174995 | F73: 3647.045868 | H73: -35.99853516 | I73: -33.99048906 | L73: -0.3097168656 | M73: 3640.818739 | U73: T-12 sec | V73: 40098.10219 | W73: =LOOKUP($V73,Data!$A$6:$A$1806,Data!$B$6:$B$1806) -> 60.04499817 | X73: =LOOKUP($V73,Data!$A$6:$A$1806,Data!$C$6:$C$1806) -> 3648.236328 | Y73: =LOOKUP($V73,Data!$A$6:$A$1806,Data!$D$6:$D$1806) -> 350 | Z73: =IF($Z$1="+",LOOKUP($V73,Data!$A$6:$A$1806,Data!$E$6:$E$1806)*-1,LOOKUP($V73,Data!$A$6:$A$1806,Data!$E$6:$E$1806)) -> -165.4763947 | AA73: =LOOKUP($V73,Data!$A$6:$A$1806,Data!$F$6:$F$1806) -> 0 | AB73: =LOOKUP($V73,Data!$A$6:$A$1806,Data!$G$6:$G$1806) -> 151.5 | AC73: =LOOKUP($V73,Data!$A$6:$A$1806,Data!$H$6:$H$1806) -> 10 | AD73: =LOOKUP($V73,Data!$A$6:$A$1806,Data!$I$6:$I$1806) -> 15 | AE73: =LOOKUP($V73,Data!$A$6:$A$1806,Data!$J$6:$J$1806) -> -103 | AF73: =LOOKUP($V73,Data!$A$6:$A$1806,Data!$K$6:$K$1806) -> 7599.99 | AG73: -35.99853516 | AH73: T-12 sec | AI73: 40098.10219 | AJ73: 60.04174995 | AK73: 3647.045868 | AL73: 350 | AM73: -165.4295559 | AN73: 0 | AO73: 151.8125 | AP73: 10 | AQ73: 15 | AR73: -103 | AS73: 7600.19625 | AT73: -33.39996338
A74: T-10 sec | B74: 40098.10221 | C74: =LOOKUP(B74,Data!$A$6:$A$1806,Data!B$6:B$1806) -> 60.04499817 | D74: =LOOKUP(B74,Data!$A$6:$A$1806,Data!C$6:C$1806) -> 3648.236328 | E74: 60.04174995 | F74: 3647.045868 | H74: -35.99853516 | I74: -34.69330519 | L74: -0.3097168656 | M74: 3639.806206 | U74: T-10 sec | V74: 40098.10221 | W74: =LOOKUP($V74,Data!$A$6:$A$1806,Data!$B$6:$B$1806) -> 60.04499817 | X74: =LOOKUP($V74,Data!$A$6:$A$1806,Data!$C$6:$C$1806) -> 3648.236328 | Y74: =LOOKUP($V74,Data!$A$6:$A$1806,Data!$D$6:$D$1806) -> 350 | Z74: =IF($Z$1="+",LOOKUP($V74,Data!$A$6:$A$1806,Data!$E$6:$E$1806)*-1,LOOKUP($V74,Data!$A$6:$A$1806,Data!$E$6:$E$1806)) -> -165.4763947 | AA74: =LOOKUP($V74,Data!$A$6:$A$1806,Data!$F$6:$F$1806) -> 0 | AB74: =LOOKUP($V74,Data!$A$6:$A$1806,Data!$G$6:$G$1806) -> 151.5 | AC74: =LOOKUP($V74,Data!$A$6:$A$1806,Data!$H$6:$H$1806) -> 10 | AD74: =LOOKUP($V74,Data!$A$6:$A$1806,Data!$I$6:$I$1806) -> 15 | AE74: =LOOKUP($V74,Data!$A$6:$A$1806,Data!$J$6:$J$1806) -> -103 | AF74: =LOOKUP($V74,Data!$A$6:$A$1806,Data!$K$6:$K$1806) -> 7599.99 | AG74: -35.99853516 | AH74: T-10 sec | AI74: 40098.10221 | AJ74: 60.04174995 | AK74: 3647.045868 | AL74: 350 | AM74: -165.4295559 | AN74: 0 | AO74: 151.8125 | AP74: 10 | AQ74: 15 | AR74: -103 | AS74: 7600.19625 | AT74: -33.39996338
A75: T-08 sec | B75: 40098.10223 | C75: =LOOKUP(B75,Data!$A$6:$A$1806,Data!B$6:B$1806) -> 60.04100037 | D75: =LOOKUP(B75,Data!$A$6:$A$1806,Data!C$6:C$1806) -> 3645.386963 | E75: 60.04174995 | F75: 3647.045868 | H75: -32.80029297 | I75: -34.03075092 | L75: -0.3097168656 | M75: 3640.159044 | U75: T-08 sec | V75: 40098.10223 | W75: =LOOKUP($V75,Data!$A$6:$A$1806,Data!$B$6:$B$1806) -> 60.04100037 | X75: =LOOKUP($V75,Data!$A$6:$A$1806,Data!$C$6:$C$1806) -> 3645.386963 | Y75: =LOOKUP($V75,Data!$A$6:$A$1806,Data!$D$6:$D$1806) -> 350 | Z75: =IF($Z$1="+",LOOKUP($V75,Data!$A$6:$A$1806,Data!$E$6:$E$1806)*-1,LOOKUP($V75,Data!$A$6:$A$1806,Data!$E$6:$E$1806)) -> -165.4763947 | AA75: =LOOKUP($V75,Data!$A$6:$A$1806,Data!$F$6:$F$1806) -> 0 | AB75: =LOOKUP($V75,Data!$A$6:$A$1806,Data!$G$6:$G$1806) -> 152 | AC75: =LOOKUP($V75,Data!$A$6:$A$1806,Data!$H$6:$H$1806) -> 10 | AD75: =LOOKUP($V75,Data!$A$6:$A$1806,Data!$I$6:$I$1806) -> 15 | AE75: =LOOKUP($V75,Data!$A$6:$A$1806,Data!$J$6:$J$1806) -> -103 | AF75: =LOOKUP($V75,Data!$A$6:$A$1806,Data!$K$6:$K$1806) -> 7600.32 | AG75: -32.80029297 | AH75: T-08 sec | AI75: 40098.10223 | AJ75: 60.04174995 | AK75: 3647.045868 | AL75: 350 | AM75: -165.4295559 | AN75: 0 | AO75: 151.8125 | AP75: 10 | AQ75: 15 | AR75: -103 | AS75: 7600.19625 | AT75: -33.39996338
A76: T-06 sec | B76: 40098.10226 | C76: =LOOKUP(B76,Data!$A$6:$A$1806,Data!B$6:B$1806) -> 60.04100037 | D76: =LOOKUP(B76,Data!$A$6:$A$1806,Data!C$6:C$1806) -> 3645.445801 | E76: 60.04174995 | F76: 3647.045868 | H76: -32.80029297 | I76: -33.60009063 | L76: -0.3097168656 | M76: 3640.279987 | U76: T-06 sec | V76: 40098.10226 | W76: =LOOKUP($V76,Data!$A$6:$A$1806,Data!$B$6:$B$1806) -> 60.04100037 | X76: =LOOKUP($V76,Data!$A$6:$A$1806,Data!$C$6:$C$1806) -> 3645.445801 | Y76: =LOOKUP($V76,Data!$A$6:$A$1806,Data!$D$6:$D$1806) -> 350 | Z76: =IF($Z$1="+",LOOKUP($V76,Data!$A$6:$A$1806,Data!$E$6:$E$1806)*-1,LOOKUP($V76,Data!$A$6:$A$1806,Data!$E$6:$E$1806)) -> -165.4763947 | AA76: =LOOKUP($V76,Data!$A$6:$A$1806,Data!$F$6:$F$1806) -> 0 | AB76: =LOOKUP($V76,Data!$A$6:$A$1806,Data!$G$6:$G$1806) -> 152.5 | AC76: =LOOKUP($V76,Data!$A$6:$A$1806,Data!$H$6:$H$1806) -> 10 | AD76: =LOOKUP($V76,Data!$A$6:$A$1806,Data!$I$6:$I$1806) -> 15 | AE76: =LOOKUP($V76,Data!$A$6:$A$1806,Data!$J$6:$J$1806) -> -103 | AF76: =LOOKUP($V76,Data!$A$6:$A$1806,Data!$K$6:$K$1806) -> 7600.65 | AG76: -32.80029297 | AH76: T-06 sec | AI76: 40098.10226 | AJ76: 60.04174995 | AK76: 3647.045868 | AL76: 350 | AM76: -165.4295559 | AN76: 0 | AO76: 151.8125 | AP76: 10 | AQ76: 15 | AR76: -103 | AS76: 7600.19625 | AT76: -33.39996338
A77: T-04 sec | B77: 40098.10228 | C77: =LOOKUP(B77,Data!$A$6:$A$1806,Data!B$6:B$1806) -> 60.04100037 | D77: =LOOKUP(B77,Data!$A$6:$A$1806,Data!C$6:C$1806) -> 3645.445801 | E77: 60.04174995 | F77: 3647.045868 | H77: -32.80029297 | I77: -33.32016145 | L77: -0.3097168656 | M77: 3640.250199 | U77: T-04 sec | V77: 40098.10228 | W77: =LOOKUP($V77,Data!$A$6:$A$1806,Data!$B$6:$B$1806) -> 60.04100037 | X77: =LOOKUP($V77,Data!$A$6:$A$1806,Data!$C$6:$C$1806) -> 3645.445801 | Y77: =LOOKUP($V77,Data!$A$6:$A$1806,Data!$D$6:$D$1806) -> 350 | Z77: =IF($Z$1="+",LOOKUP($V77,Data!$A$6:$A$1806,Data!$E$6:$E$1806)*-1,LOOKUP($V77,Data!$A$6:$A$1806,Data!$E$6:$E$1806)) -> -165.4763947 | AA77: =LOOKUP($V77,Data!$A$6:$A$1806,Data!$F$6:$F$1806) -> 0 | AB77: =LOOKUP($V77,Data!$A$6:$A$1806,Data!$G$6:$G$1806) -> 152.5 | AC77: =LOOKUP($V77,Data!$A$6:$A$1806,Data!$H$6:$H$1806) -> 10 | AD77: =LOOKUP($V77,Data!$A$6:$A$1806,Data!$I$6:$I$1806) -> 15 | AE77: =LOOKUP($V77,Data!$A$6:$A$1806,Data!$J$6:$J$1806) -> -103 | AF77: =LOOKUP($V77,Data!$A$6:$A$1806,Data!$K$6:$K$1806) -> 7600.65 | AG77: -32.80029297 | AH77: T-04 sec | AI77: 40098.10228 | AJ77: 60.04174995 | AK77: 3647.045868 | AL77: 350 | AM77: -165.4295559 | AN77: 0 | AO77: 151.8125 | AP77: 10 | AQ77: 15 | AR77: -103 | AS77: 7600.19625 | AT77: -33.39996338
A78: T-02 sec | B78: =B79-TIME(0,0,$B$1) -> 40098.1023 | C78: =LOOKUP(B78,Data!$A$6:$A$1806,Data!B$6:B$1806) -> 60.03900146 | D78: =LOOKUP(B78,Data!$A$6:$A$1806,Data!C$6:C$1806) -> 3640.682129 | E78: 60.04174995 | F78: 3647.045868 | H78: -31.20117188 | I78: -32.5785151 | L78: -0.3097168656 | M78: =D78 -> 3640.682129 | U78: T-02 sec | V78: =V79-TIME(0,0,$B$1) -> 40098.1023 | W78: =LOOKUP($V78,Data!$A$6:$A$1806,Data!$B$6:$B$1806) -> 60.03900146 | X78: =LOOKUP($V78,Data!$A$6:$A$1806,Data!$C$6:$C$1806) -> 3640.682129 | Y78: =LOOKUP($V78,Data!$A$6:$A$1806,Data!$D$6:$D$1806) -> 350 | Z78: =IF($Z$1="+",LOOKUP($V78,Data!$A$6:$A$1806,Data!$E$6:$E$1806)*-1,LOOKUP($V78,Data!$A$6:$A$1806,Data!$E$6:$E$1806)) -> -165.4763947 | AA78: =LOOKUP($V78,Data!$A$6:$A$1806,Data!$F$6:$F$1806) -> 0 | AB78: =LOOKUP($V78,Data!$A$6:$A$1806,Data!$G$6:$G$1806) -> 153 | AC78: =LOOKUP($V78,Data!$A$6:$A$1806,Data!$H$6:$H$1806) -> 10 | AD78: =LOOKUP($V78,Data!$A$6:$A$1806,Data!$I$6:$I$1806) -> 15 | AE78: =LOOKUP($V78,Data!$A$6:$A$1806,Data!$J$6:$J$1806) -> -103 | AF78: =LOOKUP($V78,Data!$A$6:$A$1806,Data!$K$6:$K$1806) -> 7600.98 | AG78: -31.20117188 | AH78: T-02 sec | AI78: =AI79-TIME(0,0,$B$1) -> 40098.1023 | AJ78: 60.04174995 | AK78: 3647.045868 | AL78: 350 | AM78: -165.4295559 | AN78: 0 | AO78: 151.8125 | AP78: 10 | AQ78: 15 | AR78: -103 | AS78: 7600.19625 | AT78: -33.39996338
A79: T+0 sec | B79: =G2 -> 40098.10233 | C79: =LOOKUP(B79,Data!$A$6:$A$1806,Data!B$6:B$1806) -> 59.97800064 | D79: =LOOKUP(B79,Data!$A$6:$A$1806,Data!C$6:C$1806) -> 3659.464844 | H79: 17.5994873 | I79: -15.01621426 | L79: 0 | M79: =M78+L79+(I79-I78) -> 3658.24443 | U79: T+0 sec | V79: =$G2 -> 40098.10233 | W79: =LOOKUP($V79,Data!$A$6:$A$1806,Data!$B$6:$B$1806) -> 59.97800064 | X79: =LOOKUP($V79,Data!$A$6:$A$1806,Data!$C$6:$C$1806) -> 3659.464844 | Y79: =LOOKUP($V79,Data!$A$6:$A$1806,Data!$D$6:$D$1806) -> 350 | Z79: =IF($Z$1="+",LOOKUP($V79,Data!$A$6:$A$1806,Data!$E$6:$E$1806)*-1,LOOKUP($V79,Data!$A$6:$A$1806,Data!$E$6:$E$1806)) -> -206.4591064 | AA79: =LOOKUP($V79,Data!$A$6:$A$1806,Data!$F$6:$F$1806) -> 0 | AB79: =LOOKUP($V79,Data!$A$6:$A$1806,Data!$G$6:$G$1806) -> 153.5 | AC79: =LOOKUP($V79,Data!$A$6:$A$1806,Data!$H$6:$H$1806) -> 10 | AD79: =LOOKUP($V79,Data!$A$6:$A$1806,Data!$I$6:$I$1806) -> 0 | AE79: =LOOKUP($V79,Data!$A$6:$A$1806,Data!$J$6:$J$1806) -> -103 | AF79: =LOOKUP($V79,Data!$A$6:$A$1806,Data!$K$6:$K$1806) -> 7601.31 | AG79: 17.5994873 | AH79: T+0 sec | AI79: =$G2 -> 40098.10233
A80: T+02 sec | B80: =B79+TIME(0,0,$B$1) -> 40098.10235 | C80: =LOOKUP(B80,Data!$A$6:$A$1806,Data!B$6:B$1806) -> 59.97800064 | D80: =LOOKUP(B80,Data!$A$6:$A$1806,Data!C$6:C$1806) -> 3659.464844 | H80: 17.5994873 | I80: -3.600718711 | L80: =IF(B80>G$3,0,(K$21*0.000023148/K$22)) -> 0.5522043855 | M80: =M79+L80+(I80-I79) -> 3670.21213 | N80: =AVERAGE(D$79:D80) -> 3659.464844 | O80: =AVERAGE(M$79:M80) -> 3664.22828 | P80: =K20+L78-I77 -> 3678.456245 | Q80: =AVERAGE(P$79:P80) -> 3678.456245 | U80: T+02 sec | V80: =V79+TIME(0,0,$B$1) -> 40098.10235 | W80: =LOOKUP($V80,Data!$A$6:$A$1806,Data!$B$6:$B$1806) -> 59.97800064 | X80: =LOOKUP($V80,Data!$A$6:$A$1806,Data!$C$6:$C$1806) -> 3659.464844 | Y80: =LOOKUP($V80,Data!$A$6:$A$1806,Data!$D$6:$D$1806) -> 350 | Z80: =IF($Z$1="+",LOOKUP($V80,Data!$A$6:$A$1806,Data!$E$6:$E$1806)*-1,LOOKUP($V80,Data!$A$6:$A$1806,Data!$E$6:$E$1806)) -> -206.4591064 | AA80: =LOOKUP($V80,Data!$A$6:$A$1806,Data!$F$6:$F$1806) -> 0 | AB80: =LOOKUP($V80,Data!$A$6:$A$1806,Data!$G$6:$G$1806) -> 153.5 | AC80: =LOOKUP($V80,Data!$A$6:$A$1806,Data!$H$6:$H$1806) -> 10 | AD80: =LOOKUP($V80,Data!$A$6:$A$1806,Data!$I$6:$I$1806) -> 0 | AE80: =LOOKUP($V80,Data!$A$6:$A$1806,Data!$J$6:$J$1806) -> -103 | AF80: =LOOKUP($V80,Data!$A$6:$A$1806,Data!$K$6:$K$1806) -> 7601.31 | AG80: 17.5994873 | AH80: T+02 sec | AI80: =AI79+TIME(0,0,$B$1) -> 40098.10235
A81: T+04 sec | B81: =B80+TIME(0,0,$B$1) -> 40098.10237 | C81: =LOOKUP(B81,Data!$A$6:$A$1806,Data!B$6:B$1806) -> 59.83599854 | D81: =LOOKUP(B81,Data!$A$6:$A$1806,Data!C$6:C$1806) -> 3696.362305 | H81: 131.2011719 | I81: 43.57994299 | L81: 0.5522043855 | M81: 3717.944996 | N81: =AVERAGE(D$79:D81) -> 3671.763997 | O81: =AVERAGE(M$79:M81) -> 3682.133852 | P81: =P80+L81 -> 3679.00845 | Q81: =AVERAGE(P$79:P81) -> 3678.732348 | U81: T+04 sec | V81: =V80+TIME(0,0,$B$1) -> 40098.10237 | W81: =LOOKUP($V81,Data!$A$6:$A$1806,Data!$B$6:$B$1806) -> 59.83599854 | X81: =LOOKUP($V81,Data!$A$6:$A$1806,Data!$C$6:$C$1806) -> 3696.362305 | Y81: =LOOKUP($V81,Data!$A$6:$A$1806,Data!$D$6:$D$1806) -> 350 | Z81: =IF($Z$1="+",LOOKUP($V81,Data!$A$6:$A$1806,Data!$E$6:$E$1806)*-1,LOOKUP($V81,Data!$A$6:$A$1806,Data!$E$6:$E$1806)) -> -206.4591064 | AA81: =LOOKUP($V81,Data!$A$6:$A$1806,Data!$F$6:$F$1806) -> 0 | AB81: =LOOKUP($V81,Data!$A$6:$A$1806,Data!$G$6:$G$1806) -> 154 | AC81: =LOOKUP($V81,Data!$A$6:$A$1806,Data!$H$6:$H$1806) -> 10 | AD81: =LOOKUP($V81,Data!$A$6:$A$1806,Data!$I$6:$I$1806) -> 0 | AE81: =LOOKUP($V81,Data!$A$6:$A$1806,Data!$J$6:$J$1806) -> -103 | AF81: =LOOKUP($V81,Data!$A$6:$A$1806,Data!$K$6:$K$1806) -> 7570 | AG81: 131.2011719 | AH81: T+04 sec | AI81: =AI80+TIME(0,0,$B$1) -> 40098.10237
A82: T+06 sec | B82: 40098.1024 | C82: =LOOKUP(B82,Data!$A$6:$A$1806,Data!B$6:B$1806) -> 59.83599854 | D82: =LOOKUP(B82,Data!$A$6:$A$1806,Data!C$6:C$1806) -> 3696.362305 | H82: 131.2011719 | I82: 74.2473731 | L82: 0.5522043855 | M82: 3749.16463 | N82: =AVERAGE(D$79:D82) -> 3677.913574 | O82: =AVERAGE(M$79:M82) -> 3698.891546 | P82: =P81+L82 -> 3679.560654 | Q82: =AVERAGE(P$79:P82) -> 3679.00845 | U82: T+06 sec | V82: 40098.1024 | W82: =LOOKUP($V82,Data!$A$6:$A$1806,Data!$B$6:$B$1806) -> 59.83599854 | X82: =LOOKUP($V82,Data!$A$6:$A$1806,Data!$C$6:$C$1806) -> 3696.362305 | Y82: =LOOKUP($V82,Data!$A$6:$A$1806,Data!$D$6:$D$1806) -> 350 | Z82: =IF($Z$1="+",LOOKUP($V82,Data!$A$6:$A$1806,Data!$E$6:$E$1806)*-1,LOOKUP($V82,Data!$A$6:$A$1806,Data!$E$6:$E$1806)) -> -206.4591064 | AA82: =LOOKUP($V82,Data!$A$6:$A$1806,Data!$F$6:$F$1806) -> 0 | AB82: =LOOKUP($V82,Data!$A$6:$A$1806,Data!$G$6:$G$1806) -> 154 | AC82: =LOOKUP($V82,Data!$A$6:$A$1806,Data!$H$6:$H$1806) -> 10 | AD82: =LOOKUP($V82,Data!$A$6:$A$1806,Data!$I$6:$I$1806) -> 0 | AE82: =LOOKUP($V82,Data!$A$6:$A$1806,Data!$J$6:$J$1806) -> -103 | AF82: =LOOKUP($V82,Data!$A$6:$A$1806,Data!$K$6:$K$1806) -> 7570 | AG82: 131.2011719 | AH82: T+06 sec | AI82: 40098.1024
A83: T+08 sec | B83: 40098.10242 | C83: =LOOKUP(B83,Data!$A$6:$A$1806,Data!B$6:B$1806) -> 59.86899948 | D83: =LOOKUP(B83,Data!$A$6:$A$1806,Data!C$6:C$1806) -> 3734.672607 | H83: 104.800415 | I83: 84.94093778 | L83: 0.5522043855 | M83: 3760.410399 | N83: =AVERAGE(D$79:D83) -> 3689.265381 | O83: =AVERAGE(M$79:M83) -> 3711.195317 | P83: 3680.112859 | Q83: =AVERAGE(P$79:P83) -> 3679.284552 | U83: T+08 sec | V83: 40098.10242 | W83: =LOOKUP($V83,Data!$A$6:$A$1806,Data!$B$6:$B$1806) -> 59.86899948 | X83: =LOOKUP($V83,Data!$A$6:$A$1806,Data!$C$6:$C$1806) -> 3734.672607 | Y83: =LOOKUP($V83,Data!$A$6:$A$1806,Data!$D$6:$D$1806) -> 335 | Z83: =IF($Z$1="+",LOOKUP($V83,Data!$A$6:$A$1806,Data!$E$6:$E$1806)*-1,LOOKUP($V83,Data!$A$6:$A$1806,Data!$E$6:$E$1806)) -> -206.4591064 | AA83: =LOOKUP($V83,Data!$A$6:$A$1806,Data!$F$6:$F$1806) -> 0 | AB83: =LOOKUP($V83,Data!$A$6:$A$1806,Data!$G$6:$G$1806) -> 154.5 | AC83: =LOOKUP($V83,Data!$A$6:$A$1806,Data!$H$6:$H$1806) -> 10 | AD83: =LOOKUP($V83,Data!$A$6:$A$1806,Data!$I$6:$I$1806) -> 0 | AE83: =LOOKUP($V83,Data!$A$6:$A$1806,Data!$J$6:$J$1806) -> -103 | AF83: =LOOKUP($V83,Data!$A$6:$A$1806,Data!$K$6:$K$1806) -> 7569 | AG83: 104.800415 | AH83: T+08 sec | AI83: 40098.10242
A84: T+10 sec | B84: 40098.10244 | C84: =LOOKUP(B84,Data!$A$6:$A$1806,Data!B$6:B$1806) -> 59.89099884 | D84: =LOOKUP(B84,Data!$A$6:$A$1806,Data!C$6:C$1806) -> 3737.156738 | H84: 87.20092773 | I84: 85.73193426 | L84: 0.5522043855 | M84: 3761.7536 | N84: =AVERAGE(D$79:D84) -> 3697.247274 | O84: =AVERAGE(M$79:M84) -> 3719.621697 | P84: 3680.665063 | Q84: =AVERAGE(P$79:P84) -> 3679.560654 | U84: T+10 sec | V84: 40098.10244 | W84: =LOOKUP($V84,Data!$A$6:$A$1806,Data!$B$6:$B$1806) -> 59.89099884 | X84: =LOOKUP($V84,Data!$A$6:$A$1806,Data!$C$6:$C$1806) -> 3737.156738 | Y84: =LOOKUP($V84,Data!$A$6:$A$1806,Data!$D$6:$D$1806) -> 335 | Z84: =IF($Z$1="+",LOOKUP($V84,Data!$A$6:$A$1806,Data!$E$6:$E$1806)*-1,LOOKUP($V84,Data!$A$6:$A$1806,Data!$E$6:$E$1806)) -> -206.4591064 | AA84: =LOOKUP($V84,Data!$A$6:$A$1806,Data!$F$6:$F$1806) -> 0 | AB84: =LOOKUP($V84,Data!$A$6:$A$1806,Data!$G$6:$G$1806) -> 155 | AC84: =LOOKUP($V84,Data!$A$6:$A$1806,Data!$H$6:$H$1806) -> 10 | AD84: =LOOKUP($V84,Data!$A$6:$A$1806,Data!$I$6:$I$1806) -> 0 | AE84: =LOOKUP($V84,Data!$A$6:$A$1806,Data!$J$6:$J$1806) -> -103 | AF84: =LOOKUP($V84,Data!$A$6:$A$1806,Data!$K$6:$K$1806) -> 7570 | AG84: 87.20092773 | AH84: T+10 sec | AI84: 40098.10244
A85: T+12 sec | B85: 40098.10247 | C85: =LOOKUP(B85,Data!$A$6:$A$1806,Data!B$6:B$1806) -> 59.89099884 | D85: =LOOKUP(B85,Data!$A$6:$A$1806,Data!C$6:C$1806) -> 3737.156738 | H85: 87.20092773 | I85: 86.24608198 | L85: 0.5522043855 | M85: 3762.819952 | N85: =AVERAGE(D$79:D85) -> 3702.948626 | O85: =AVERAGE(M$79:M85) -> 3725.792877 | P85: 3681.217267 | Q85: =AVERAGE(P$79:P85) -> 3679.836756 | U85: T+12 sec | V85: 40098.10247 | W85: =LOOKUP($V85,Data!$A$6:$A$1806,Data!$B$6:$B$1806) -> 59.89099884 | X85: =LOOKUP($V85,Data!$A$6:$A$1806,Data!$C$6:$C$1806) -> 3737.156738 | Y85: =LOOKUP($V85,Data!$A$6:$A$1806,Data!$D$6:$D$1806) -> 335 | Z85: =IF($Z$1="+",LOOKUP($V85,Data!$A$6:$A$1806,Data!$E$6:$E$1806)*-1,LOOKUP($V85,Data!$A$6:$A$1806,Data!$E$6:$E$1806)) -> -206.4591064 | AA85: =LOOKUP($V85,Data!$A$6:$A$1806,Data!$F$6:$F$1806) -> 0 | AB85: =LOOKUP($V85,Data!$A$6:$A$1806,Data!$G$6:$G$1806) -> 155 | AC85: =LOOKUP($V85,Data!$A$6:$A$1806,Data!$H$6:$H$1806) -> 10 | AD85: =LOOKUP($V85,Data!$A$6:$A$1806,Data!$I$6:$I$1806) -> 0 | AE85: =LOOKUP($V85,Data!$A$6:$A$1806,Data!$J$6:$J$1806) -> -103 | AF85: =LOOKUP($V85,Data!$A$6:$A$1806,Data!$K$6:$K$1806) -> 7570 | AG85: 87.20092773 | AH85: T+12 sec | AI85: 40098.10247
A86: T+14 sec | B86: 40098.10249 | C86: =LOOKUP(B86,Data!$A$6:$A$1806,Data!B$6:B$1806) -> 59.88000107 | D86: =LOOKUP(B86,Data!$A$6:$A$1806,Data!C$6:C$1806) -> 3766.113037 | H86: 95.99914551 | I86: 89.65965421 | L86: 0.5522043855 | M86: 3766.785729 | N86: =AVERAGE(D$79:D86) -> 3710.844177 | O86: =AVERAGE(M$79:M86) -> 3730.916983 | P86: 3681.769472 | Q86: =AVERAGE(P$79:P86) -> 3680.112859 | U86: T+14 sec | V86: 40098.10249 | W86: =LOOKUP($V86,Data!$A$6:$A$1806,Data!$B$6:$B$1806) -> 59.88000107 | X86: =LOOKUP($V86,Data!$A$6:$A$1806,Data!$C$6:$C$1806) -> 3766.113037 | Y86: =LOOKUP($V86,Data!$A$6:$A$1806,Data!$D$6:$D$1806) -> 335 | Z86: =IF($Z$1="+",LOOKUP($V86,Data!$A$6:$A$1806,Data!$E$6:$E$1806)*-1,LOOKUP($V86,Data!$A$6:$A$1806,Data!$E$6:$E$1806)) -> -206.4591064 | AA86: =LOOKUP($V86,Data!$A$6:$A$1806,Data!$F$6:$F$1806) -> 0 | AB86: =LOOKUP($V86,Data!$A$6:$A$1806,Data!$G$6:$G$1806) -> 155.5 | AC86: =LOOKUP($V86,Data!$A$6:$A$1806,Data!$H$6:$H$1806) -> 10 | AD86: =LOOKUP($V86,Data!$A$6:$A$1806,Data!$I$6:$I$1806) -> 0 | AE86: =LOOKUP($V86,Data!$A$6:$A$1806,Data!$J$6:$J$1806) -> -103 | AF86: =LOOKUP($V86,Data!$A$6:$A$1806,Data!$K$6:$K$1806) -> 7570 | AG86: 95.99914551 | AH86: T+14 sec | AI86: 40098.10249
A87: T+16 sec | B87: 40098.10251 | C87: =LOOKUP(B87,Data!$A$6:$A$1806,Data!B$6:B$1806) -> 59.875 | D87: =LOOKUP(B87,Data!$A$6:$A$1806,Data!C$6:C$1806) -> 3766.193848 | H87: 100 | I87: 93.27877524 | L87: 0.5522043855 | M87: 3770.957054 | N87: =AVERAGE(D$79:D87) -> 3716.994141 | O87: =AVERAGE(M$79:M87) -> 3735.36588 | P87: 3682.321676 | Q87: =AVERAGE(P$79:P87) -> 3680.388961 | U87: T+16 sec | V87: 40098.10251 | W87: =LOOKUP($V87,Data!$A$6:$A$1806,Data!$B$6:$B$1806) -> 59.875 | X87: =LOOKUP($V87,Data!$A$6:$A$1806,Data!$C$6:$C$1806) -> 3766.193848 | Y87: =LOOKUP($V87,Data!$A$6:$A$1806,Data!$D$6:$D$1806) -> 335 | Z87: =IF($Z$1="+",LOOKUP($V87,Data!$A$6:$A$1806,Data!$E$6:$E$1806)*-1,LOOKUP($V87,Data!$A$6:$A$1806,Data!$E$6:$E$1806)) -> -211.2560425 | AA87: =LOOKUP($V87,Data!$A$6:$A$1806,Data!$F$6:$F$1806) -> 0 | AB87: =LOOKUP($V87,Data!$A$6:$A$1806,Data!$G$6:$G$1806) -> 156 | AC87: =LOOKUP($V87,Data!$A$6:$A$1806,Data!$H$6:$H$1806) -> 10 | AD87: =LOOKUP($V87,Data!$A$6:$A$1806,Data!$I$6:$I$1806) -> 0 | AE87: =LOOKUP($V87,Data!$A$6:$A$1806,Data!$J$6:$J$1806) -> -103 | AF87: =LOOKUP($V87,Data!$A$6:$A$1806,Data!$K$6:$K$1806) -> 7570 | AG87: 100 | AH87: T+16 sec | AI87: 40098.10251
A88: T+18 sec | B88: 40098.10253 | C88: =LOOKUP(B88,Data!$A$6:$A$1806,Data!B$6:B$1806) -> 59.875 | D88: =LOOKUP(B88,Data!$A$6:$A$1806,Data!C$6:C$1806) -> 3766.193848 | H88: 100 | I88: 95.63120391 | L88: 0.5522043855 | M88: 3773.861687 | N88: =AVERAGE(D$79:D88) -> 3721.914111 | O88: =AVERAGE(M$79:M88) -> 3739.215461 | P88: 3682.87388 | Q88: =AVERAGE(P$79:P88) -> 3680.665063 | U88: T+18 sec | V88: 40098.10253 | W88: =LOOKUP($V88,Data!$A$6:$A$1806,Data!$B$6:$B$1806) -> 59.875 | X88: =LOOKUP($V88,Data!$A$6:$A$1806,Data!$C$6:$C$1806) -> 3766.193848 | Y88: =LOOKUP($V88,Data!$A$6:$A$1806,Data!$D$6:$D$1806) -> 335 | Z88: =IF($Z$1="+",LOOKUP($V88,Data!$A$6:$A$1806,Data!$E$6:$E$1806)*-1,LOOKUP($V88,Data!$A$6:$A$1806,Data!$E$6:$E$1806)) -> -211.2560425 | AA88: =LOOKUP($V88,Data!$A$6:$A$1806,Data!$F$6:$F$1806) -> 0 | AB88: =LOOKUP($V88,Data!$A$6:$A$1806,Data!$G$6:$G$1806) -> 156 | AC88: =LOOKUP($V88,Data!$A$6:$A$1806,Data!$H$6:$H$1806) -> 10 | AD88: =LOOKUP($V88,Data!$A$6:$A$1806,Data!$I$6:$I$1806) -> 0 | AE88: =LOOKUP($V88,Data!$A$6:$A$1806,Data!$J$6:$J$1806) -> -103 | AF88: =LOOKUP($V88,Data!$A$6:$A$1806,Data!$K$6:$K$1806) -> 7570 | AG88: 100 | AH88: T+18 sec | AI88: 40098.10253
A89: T+20 sec | B89: 40098.10256 | C89: =LOOKUP(B89,Data!$A$6:$A$1806,Data!B$6:B$1806) -> 59.88299942 | D89: =LOOKUP(B89,Data!$A$6:$A$1806,Data!C$6:C$1806) -> 3769.925049 | E89: =AVERAGE($C$89:$C$105) -> 59.88870598 | F89: =AVERAGE($D$89:$D$105) -> 3787.775003 | H89: 93.60046387 | I89: 94.92044489 | K89: =G$19+G$7 -> 3756.889529 | L89: 0.5522043855 | M89: 3773.703133 | N89: =AVERAGE(D$79:D89) -> 3726.278742 | O89: =AVERAGE(M$79:M89) -> 3742.350704 | P89: 3683.426085 | Q89: =AVERAGE(P$79:P89) -> 3680.941165 | U89: T+20 sec | V89: 40098.10256 | W89: =LOOKUP($V89,Data!$A$6:$A$1806,Data!$B$6:$B$1806) -> 59.88299942 | X89: =LOOKUP($V89,Data!$A$6:$A$1806,Data!$C$6:$C$1806) -> 3769.925049 | Y89: =LOOKUP($V89,Data!$A$6:$A$1806,Data!$D$6:$D$1806) -> 335 | Z89: =IF($Z$1="+",LOOKUP($V89,Data!$A$6:$A$1806,Data!$E$6:$E$1806)*-1,LOOKUP($V89,Data!$A$6:$A$1806,Data!$E$6:$E$1806)) -> -211.2560425 | AA89: =LOOKUP($V89,Data!$A$6:$A$1806,Data!$F$6:$F$1806) -> 1 | AB89: =LOOKUP($V89,Data!$A$6:$A$1806,Data!$G$6:$G$1806) -> 156.5 | AC89: =LOOKUP($V89,Data!$A$6:$A$1806,Data!$H$6:$H$1806) -> 10 | AD89: =LOOKUP($V89,Data!$A$6:$A$1806,Data!$I$6:$I$1806) -> 0 | AE89: =LOOKUP($V89,Data!$A$6:$A$1806,Data!$J$6:$J$1806) -> -103 | AF89: =LOOKUP($V89,Data!$A$6:$A$1806,Data!$K$6:$K$1806) -> 7570 | AG89: 93.60046387 | AH89: T+20 sec | AI89: 40098.10256 | AJ89: =AVERAGE($W$89:$W$105) -> 59.88870598 | AK89: =AVERAGE($X$89:$X$105) -> 3787.775003 | AL89: =AVERAGE($Y$89:$Y$105) -> 335 | AM89: =AVERAGE($Z$89:$Z$105) -> -212.744348 | AN89: =AVERAGE($AA$89:$AA$105) -> 2.117647059 | AO89: =AVERAGE($AB$89:$AB$105) -> 159.1764706 | AP89: =AVERAGE($AC$89:$AC$105) -> 10 | AQ89: =AVERAGE($AD$89:$AD$105) -> 0 | AR89: =AVERAGE($AE$89:$AE$105) -> -103 | AS89: =AVERAGE($AF$89:$AF$105) -> 7570 | AT89: =AVERAGE($AG$89:$AG$105) -> 89.03521369 | AU89: =AN$7+AN$14 -> 3716.952268
A90: T+22 sec | B90: 40098.10258 | C90: =LOOKUP(B90,Data!$A$6:$A$1806,Data!B$6:B$1806) -> 59.88600159 | D90: =LOOKUP(B90,Data!$A$6:$A$1806,Data!C$6:C$1806) -> 3780.620605 | E90: =AVERAGE($C$89:$C$105) -> 59.88870598 | F90: =AVERAGE($D$89:$D$105) -> 3787.775003 | H90: 91.19873047 | I90: 93.61784484 | K90: =G$19+G$7 -> 3756.889529 | L90: 0.5522043855 | M90: 3772.952737 | N90: =AVERAGE(D$79:D90) -> 3730.807231 | O90: =AVERAGE(M$79:M90) -> 3744.900873 | P90: 3683.978289 | Q90: =AVERAGE(P$79:P90) -> 3681.217267 | U90: T+22 sec | V90: 40098.10258 | W90: =LOOKUP($V90,Data!$A$6:$A$1806,Data!$B$6:$B$1806) -> 59.88600159 | X90: =LOOKUP($V90,Data!$A$6:$A$1806,Data!$C$6:$C$1806) -> 3780.620605 | Y90: =LOOKUP($V90,Data!$A$6:$A$1806,Data!$D$6:$D$1806) -> 335 | Z90: =IF($Z$1="+",LOOKUP($V90,Data!$A$6:$A$1806,Data!$E$6:$E$1806)*-1,LOOKUP($V90,Data!$A$6:$A$1806,Data!$E$6:$E$1806)) -> -211.2560425 | AA90: =LOOKUP($V90,Data!$A$6:$A$1806,Data!$F$6:$F$1806) -> 1 | AB90: =LOOKUP($V90,Data!$A$6:$A$1806,Data!$G$6:$G$1806) -> 157 | AC90: =LOOKUP($V90,Data!$A$6:$A$1806,Data!$H$6:$H$1806) -> 10 | AD90: =LOOKUP($V90,Data!$A$6:$A$1806,Data!$I$6:$I$1806) -> 0 | AE90: =LOOKUP($V90,Data!$A$6:$A$1806,Data!$J$6:$J$1806) -> -103 | AF90: =LOOKUP($V90,Data!$A$6:$A$1806,Data!$K$6:$K$1806) -> 7570 | AG90: 91.19873047 | AH90: T+22 sec | AI90: 40098.10258 | AJ90: =AVERAGE($W$89:$W$105) -> 59.88870598 | AK90: =AVERAGE($X$89:$X$105) -> 3787.775003 | AL90: =AVERAGE($Y$89:$Y$105) -> 335 | AM90: =AVERAGE($Z$89:$Z$105) -> -212.744348 | AN90: =AVERAGE($AA$89:$AA$105) -> 2.117647059 | AO90: =AVERAGE($AB$89:$AB$105) -> 159.1764706 | AP90: =AVERAGE($AC$89:$AC$105) -> 10 | AQ90: =AVERAGE($AD$89:$AD$105) -> 0 | AR90: =AVERAGE($AE$89:$AE$105) -> -103 | AS90: =AVERAGE($AF$89:$AF$105) -> 7570 | AT90: =AVERAGE($AG$89:$AG$105) -> 89.03521369 | AU90: =AN$7+AN$14 -> 3716.952268
A91: T+24 sec | B91: 40098.1026 | C91: =LOOKUP(B91,Data!$A$6:$A$1806,Data!B$6:B$1806) -> 59.88600159 | D91: =LOOKUP(B91,Data!$A$6:$A$1806,Data!C$6:C$1806) -> 3780.620605 | E91: 59.88870598 | F91: 3787.775003 | H91: 91.19873047 | I91: 92.77115481 | K91: 3756.889529 | L91: 0.5522043855 | M91: 3772.658251 | N91: =AVERAGE(D$79:D91) -> 3734.639029 | O91: =AVERAGE(M$79:M91) -> 3747.036056 | P91: 3684.530494 | Q91: =AVERAGE(P$79:P91) -> 3681.493369 | U91: T+24 sec | V91: 40098.1026 | W91: =LOOKUP($V91,Data!$A$6:$A$1806,Data!$B$6:$B$1806) -> 59.88600159 | X91: =LOOKUP($V91,Data!$A$6:$A$1806,Data!$C$6:$C$1806) -> 3780.620605 | Y91: =LOOKUP($V91,Data!$A$6:$A$1806,Data!$D$6:$D$1806) -> 335 | Z91: =IF($Z$1="+",LOOKUP($V91,Data!$A$6:$A$1806,Data!$E$6:$E$1806)*-1,LOOKUP($V91,Data!$A$6:$A$1806,Data!$E$6:$E$1806)) -> -211.2560425 | AA91: =LOOKUP($V91,Data!$A$6:$A$1806,Data!$F$6:$F$1806) -> 1 | AB91: =LOOKUP($V91,Data!$A$6:$A$1806,Data!$G$6:$G$1806) -> 157 | AC91: =LOOKUP($V91,Data!$A$6:$A$1806,Data!$H$6:$H$1806) -> 10 | AD91: =LOOKUP($V91,Data!$A$6:$A$1806,Data!$I$6:$I$1806) -> 0 | AE91: =LOOKUP($V91,Data!$A$6:$A$1806,Data!$J$6:$J$1806) -> -103 | AF91: =LOOKUP($V91,Data!$A$6:$A$1806,Data!$K$6:$K$1806) -> 7570 | AG91: 91.19873047 | AH91: T+24 sec | AI91: 40098.1026 | AJ91: 59.88870598 | AK91: 3787.775003 | AL91: 335 | AM91: -212.744348 | AN91: 2.117647059 | AO91: 159.1764706 | AP91: 10 | AQ91: 0 | AR91: -103 | AS91: 7570 | AT91: 89.03521369 | AU91: 3716.952268
A92: T+26 sec | B92: 40098.10263 | C92: =LOOKUP(B92,Data!$A$6:$A$1806,Data!B$6:B$1806) -> 59.88499832 | D92: =LOOKUP(B92,Data!$A$6:$A$1806,Data!C$6:C$1806) -> 3782.499512 | E92: 59.88870598 | F92: 3787.775003 | H92: 92.00134277 | I92: 92.5017206 | K92: 3756.889529 | L92: 0.5522043855 | M92: 3772.941022 | N92: =AVERAGE(D$79:D92) -> 3738.057635 | O92: =AVERAGE(M$79:M92) -> 3748.886411 | P92: 3685.082698 | Q92: =AVERAGE(P$79:P92) -> 3681.769472 | U92: T+26 sec | V92: 40098.10263 | W92: =LOOKUP($V92,Data!$A$6:$A$1806,Data!$B$6:$B$1806) -> 59.88499832 | X92: =LOOKUP($V92,Data!$A$6:$A$1806,Data!$C$6:$C$1806) -> 3782.499512 | Y92: =LOOKUP($V92,Data!$A$6:$A$1806,Data!$D$6:$D$1806) -> 335 | Z92: =IF($Z$1="+",LOOKUP($V92,Data!$A$6:$A$1806,Data!$E$6:$E$1806)*-1,LOOKUP($V92,Data!$A$6:$A$1806,Data!$E$6:$E$1806)) -> -211.2560425 | AA92: =LOOKUP($V92,Data!$A$6:$A$1806,Data!$F$6:$F$1806) -> 1 | AB92: =LOOKUP($V92,Data!$A$6:$A$1806,Data!$G$6:$G$1806) -> 157.5 | AC92: =LOOKUP($V92,Data!$A$6:$A$1806,Data!$H$6:$H$1806) -> 10 | AD92: =LOOKUP($V92,Data!$A$6:$A$1806,Data!$I$6:$I$1806) -> 0 | AE92: =LOOKUP($V92,Data!$A$6:$A$1806,Data!$J$6:$J$1806) -> -103 | AF92: =LOOKUP($V92,Data!$A$6:$A$1806,Data!$K$6:$K$1806) -> 7570 | AG92: 92.00134277 | AH92: T+26 sec | AI92: 40098.10263 | AJ92: 59.88870598 | AK92: 3787.775003 | AL92: 335 | AM92: -212.744348 | AN92: 2.117647059 | AO92: 159.1764706 | AP92: 10 | AQ92: 0 | AR92: -103 | AS92: 7570 | AT92: 89.03521369 | AU92: 3716.952268
A93: T+28 sec | B93: 40098.10265 | C93: =LOOKUP(B93,Data!$A$6:$A$1806,Data!B$6:B$1806) -> 59.88800049 | D93: =LOOKUP(B93,Data!$A$6:$A$1806,Data!C$6:C$1806) -> 3784.961914 | E93: 59.88870598 | F93: 3787.775003 | H93: 89.59960938 | I93: 91.48598167 | K93: 3756.889529 | L93: 0.5522043855 | M93: 3772.477487 | N93: =AVERAGE(D$79:D93) -> 3741.184587 | O93: =AVERAGE(M$79:M93) -> 3750.459149 | P93: 3685.634902 | Q93: =AVERAGE(P$79:P93) -> 3682.045574 | U93: T+28 sec | V93: 40098.10265 | W93: =LOOKUP($V93,Data!$A$6:$A$1806,Data!$B$6:$B$1806) -> 59.88800049 | X93: =LOOKUP($V93,Data!$A$6:$A$1806,Data!$C$6:$C$1806) -> 3784.961914 | Y93: =LOOKUP($V93,Data!$A$6:$A$1806,Data!$D$6:$D$1806) -> 335 | Z93: =IF($Z$1="+",LOOKUP($V93,Data!$A$6:$A$1806,Data!$E$6:$E$1806)*-1,LOOKUP($V93,Data!$A$6:$A$1806,Data!$E$6:$E$1806)) -> -211.2560425 | AA93: =LOOKUP($V93,Data!$A$6:$A$1806,Data!$F$6:$F$1806) -> 1 | AB93: =LOOKUP($V93,Data!$A$6:$A$1806,Data!$G$6:$G$1806) -> 158 | AC93: =LOOKUP($V93,Data!$A$6:$A$1806,Data!$H$6:$H$1806) -> 10 | AD93: =LOOKUP($V93,Data!$A$6:$A$1806,Data!$I$6:$I$1806) -> 0 | AE93: =LOOKUP($V93,Data!$A$6:$A$1806,Data!$J$6:$J$1806) -> -103 | AF93: =LOOKUP($V93,Data!$A$6:$A$1806,Data!$K$6:$K$1806) -> 7570 | AG93: 89.59960938 | AH93: T+28 sec | AI93: 40098.10265 | AJ93: 59.88870598 | AK93: 3787.775003 | AL93: 335 | AM93: -212.744348 | AN93: 2.117647059 | AO93: 159.1764706 | AP93: 10 | AQ93: 0 | AR93: -103 | AS93: 7570 | AT93: 89.03521369 | AU93: 3716.952268
A94: T+30 sec | B94: 40098.10267 | C94: =LOOKUP(B94,Data!$A$6:$A$1806,Data!B$6:B$1806) -> 59.88800049 | D94: =LOOKUP(B94,Data!$A$6:$A$1806,Data!C$6:C$1806) -> 3784.961914 | E94: 59.88870598 | F94: 3787.775003 | H94: 89.59960938 | I94: 90.82575137 | K94: 3756.889529 | L94: 0.5522043855 | M94: 3772.369461 | N94: =AVERAGE(D$79:D94) -> 3743.92067 | O94: =AVERAGE(M$79:M94) -> 3751.828544 | P94: 3686.187107 | Q94: =AVERAGE(P$79:P94) -> 3682.321676 | U94: T+30 sec | V94: 40098.10267 | W94: =LOOKUP($V94,Data!$A$6:$A$1806,Data!$B$6:$B$1806) -> 59.88800049 | X94: =LOOKUP($V94,Data!$A$6:$A$1806,Data!$C$6:$C$1806) -> 3784.961914 | Y94: =LOOKUP($V94,Data!$A$6:$A$1806,Data!$D$6:$D$1806) -> 335 | Z94: =IF($Z$1="+",LOOKUP($V94,Data!$A$6:$A$1806,Data!$E$6:$E$1806)*-1,LOOKUP($V94,Data!$A$6:$A$1806,Data!$E$6:$E$1806)) -> -211.2560425 | AA94: =LOOKUP($V94,Data!$A$6:$A$1806,Data!$F$6:$F$1806) -> 1 | AB94: =LOOKUP($V94,Data!$A$6:$A$1806,Data!$G$6:$G$1806) -> 158 | AC94: =LOOKUP($V94,Data!$A$6:$A$1806,Data!$H$6:$H$1806) -> 10 | AD94: =LOOKUP($V94,Data!$A$6:$A$1806,Data!$I$6:$I$1806) -> 0 | AE94: =LOOKUP($V94,Data!$A$6:$A$1806,Data!$J$6:$J$1806) -> -103 | AF94: =LOOKUP($V94,Data!$A$6:$A$1806,Data!$K$6:$K$1806) -> 7570 | AG94: 89.59960938 | AH94: T+30 sec | AI94: 40098.10267 | AJ94: 59.88870598 | AK94: 3787.775003 | AL94: 335 | AM94: -212.744348 | AN94: 2.117647059 | AO94: 159.1764706 | AP94: 10 | AQ94: 0 | AR94: -103 | AS94: 7570 | AT94: 89.03521369 | AU94: 3716.952268
A95: T+32 sec | B95: 40098.1027 | C95: =LOOKUP(B95,Data!$A$6:$A$1806,Data!B$6:B$1806) -> 59.88999939 | D95: =LOOKUP(B95,Data!$A$6:$A$1806,Data!C$6:C$1806) -> 3784.418945 | E95: 59.88870598 | F95: 3787.775003 | H95: 88.00048828 | I95: 89.83690929 | K95: 3756.889529 | L95: 0.5522043855 | M95: 3771.932823 | N95: =AVERAGE(D$79:D95) -> 3746.302921 | O95: =AVERAGE(M$79:M95) -> 3753.011148 | P95: 3686.739311 | Q95: =AVERAGE(P$79:P95) -> 3682.597778 | U95: T+32 sec | V95: 40098.1027 | W95: =LOOKUP($V95,Data!$A$6:$A$1806,Data!$B$6:$B$1806) -> 59.88999939 | X95: =LOOKUP($V95,Data!$A$6:$A$1806,Data!$C$6:$C$1806) -> 3784.418945 | Y95: =LOOKUP($V95,Data!$A$6:$A$1806,Data!$D$6:$D$1806) -> 335 | Z95: =IF($Z$1="+",LOOKUP($V95,Data!$A$6:$A$1806,Data!$E$6:$E$1806)*-1,LOOKUP($V95,Data!$A$6:$A$1806,Data!$E$6:$E$1806)) -> -214.3466949 | AA95: =LOOKUP($V95,Data!$A$6:$A$1806,Data!$F$6:$F$1806) -> 1 | AB95: =LOOKUP($V95,Data!$A$6:$A$1806,Data!$G$6:$G$1806) -> 158.5 | AC95: =LOOKUP($V95,Data!$A$6:$A$1806,Data!$H$6:$H$1806) -> 10 | AD95: =LOOKUP($V95,Data!$A$6:$A$1806,Data!$I$6:$I$1806) -> 0 | AE95: =LOOKUP($V95,Data!$A$6:$A$1806,Data!$J$6:$J$1806) -> -103 | AF95: =LOOKUP($V95,Data!$A$6:$A$1806,Data!$K$6:$K$1806) -> 7570 | AG95: 88.00048828 | AH95: T+32 sec | AI95: 40098.1027 | AJ95: 59.88870598 | AK95: 3787.775003 | AL95: 335 | AM95: -212.744348 | AN95: 2.117647059 | AO95: 159.1764706 | AP95: 10 | AQ95: 0 | AR95: -103 | AS95: 7570 | AT95: 89.03521369 | AU95: 3716.952268
A96: T+34 sec | B96: 40098.10272 | C96: =LOOKUP(B96,Data!$A$6:$A$1806,Data!B$6:B$1806) -> 59.89400101 | D96: =LOOKUP(B96,Data!$A$6:$A$1806,Data!C$6:C$1806) -> 3788.072266 | E96: 59.88870598 | F96: 3787.775003 | H96: 84.79919434 | I96: 88.07370905 | K96: 3756.889529 | L96: 0.5522043855 | M96: 3770.721828 | N96: =AVERAGE(D$79:D96) -> 3748.62344 | O96: =AVERAGE(M$79:M96) -> 3753.995075 | P96: 3687.291516 | Q96: =AVERAGE(P$79:P96) -> 3682.87388 | U96: T+34 sec | V96: 40098.10272 | W96: =LOOKUP($V96,Data!$A$6:$A$1806,Data!$B$6:$B$1806) -> 59.89400101 | X96: =LOOKUP($V96,Data!$A$6:$A$1806,Data!$C$6:$C$1806) -> 3788.072266 | Y96: =LOOKUP($V96,Data!$A$6:$A$1806,Data!$D$6:$D$1806) -> 335 | Z96: =IF($Z$1="+",LOOKUP($V96,Data!$A$6:$A$1806,Data!$E$6:$E$1806)*-1,LOOKUP($V96,Data!$A$6:$A$1806,Data!$E$6:$E$1806)) -> -214.3466949 | AA96: =LOOKUP($V96,Data!$A$6:$A$1806,Data!$F$6:$F$1806) -> 1 | AB96: =LOOKUP($V96,Data!$A$6:$A$1806,Data!$G$6:$G$1806) -> 159 | AC96: =LOOKUP($V96,Data!$A$6:$A$1806,Data!$H$6:$H$1806) -> 10 | AD96: =LOOKUP($V96,Data!$A$6:$A$1806,Data!$I$6:$I$1806) -> 0 | AE96: =LOOKUP($V96,Data!$A$6:$A$1806,Data!$J$6:$J$1806) -> -103 | AF96: =LOOKUP($V96,Data!$A$6:$A$1806,Data!$K$6:$K$1806) -> 7570 | AG96: 84.79919434 | AH96: T+34 sec | AI96: 40098.10272 | AJ96: 59.88870598 | AK96: 3787.775003 | AL96: 335 | AM96: -212.744348 | AN96: 2.117647059 | AO96: 159.1764706 | AP96: 10 | AQ96: 0 | AR96: -103 | AS96: 7570 | AT96: 89.03521369 | AU96: 3716.952268
A97: T+36 sec | B97: 40098.10274 | C97: =LOOKUP(B97,Data!$A$6:$A$1806,Data!B$6:B$1806) -> 59.89400101 | D97: =LOOKUP(B97,Data!$A$6:$A$1806,Data!C$6:C$1806) -> 3788.072266 | E97: 59.88870598 | F97: 3787.775003 | H97: 84.79919434 | I97: 86.9276289 | K97: 3756.889529 | L97: 0.5522043855 | M97: 3770.127952 | N97: =AVERAGE(D$79:D97) -> 3750.699694 | O97: =AVERAGE(M$79:M97) -> 3754.844174 | P97: 3687.84372 | Q97: =AVERAGE(P$79:P97) -> 3683.149983 | U97: T+36 sec | V97: 40098.10274 | W97: =LOOKUP($V97,Data!$A$6:$A$1806,Data!$B$6:$B$1806) -> 59.89400101 | X97: =LOOKUP($V97,Data!$A$6:$A$1806,Data!$C$6:$C$1806) -> 3788.072266 | Y97: =LOOKUP($V97,Data!$A$6:$A$1806,Data!$D$6:$D$1806) -> 335 | Z97: =IF($Z$1="+",LOOKUP($V97,Data!$A$6:$A$1806,Data!$E$6:$E$1806)*-1,LOOKUP($V97,Data!$A$6:$A$1806,Data!$E$6:$E$1806)) -> -214.3466949 | AA97: =LOOKUP($V97,Data!$A$6:$A$1806,Data!$F$6:$F$1806) -> 1 | AB97: =LOOKUP($V97,Data!$A$6:$A$1806,Data!$G$6:$G$1806) -> 159 | AC97: =LOOKUP($V97,Data!$A$6:$A$1806,Data!$H$6:$H$1806) -> 10 | AD97: =LOOKUP($V97,Data!$A$6:$A$1806,Data!$I$6:$I$1806) -> 0 | AE97: =LOOKUP($V97,Data!$A$6:$A$1806,Data!$J$6:$J$1806) -> -103 | AF97: =LOOKUP($V97,Data!$A$6:$A$1806,Data!$K$6:$K$1806) -> 7570 | AG97: 84.79919434 | AH97: T+36 sec | AI97: 40098.10274 | AJ97: 59.88870598 | AK97: 3787.775003 | AL97: 335 | AM97: -212.744348 | AN97: 2.117647059 | AO97: 159.1764706 | AP97: 10 | AQ97: 0 | AR97: -103 | AS97: 7570 | AT97: 89.03521369 | AU97: 3716.952268
A98: T+38 sec | B98: 40098.10277 | C98: =LOOKUP(B98,Data!$A$6:$A$1806,Data!B$6:B$1806) -> 59.89300156 | D98: =LOOKUP(B98,Data!$A$6:$A$1806,Data!C$6:C$1806) -> 3788.868408 | E98: 59.88870598 | F98: 3787.775003 | H98: 85.59875488 | I98: 86.462523 | K98: 3756.889529 | L98: 0.5522043855 | M98: 3770.21505 | N98: =AVERAGE(D$79:D98) -> 3752.60813 | O98: =AVERAGE(M$79:M98) -> 3755.612718 | P98: 3688.395924 | Q98: =AVERAGE(P$79:P98) -> 3683.426085 | U98: T+38 sec | V98: 40098.10277 | W98: =LOOKUP($V98,Data!$A$6:$A$1806,Data!$B$6:$B$1806) -> 59.89300156 | X98: =LOOKUP($V98,Data!$A$6:$A$1806,Data!$C$6:$C$1806) -> 3788.868408 | Y98: =LOOKUP($V98,Data!$A$6:$A$1806,Data!$D$6:$D$1806) -> 335 | Z98: =IF($Z$1="+",LOOKUP($V98,Data!$A$6:$A$1806,Data!$E$6:$E$1806)*-1,LOOKUP($V98,Data!$A$6:$A$1806,Data!$E$6:$E$1806)) -> -214.3466949 | AA98: =LOOKUP($V98,Data!$A$6:$A$1806,Data!$F$6:$F$1806) -> 1 | AB98: =LOOKUP($V98,Data!$A$6:$A$1806,Data!$G$6:$G$1806) -> 159.5 | AC98: =LOOKUP($V98,Data!$A$6:$A$1806,Data!$H$6:$H$1806) -> 10 | AD98: =LOOKUP($V98,Data!$A$6:$A$1806,Data!$I$6:$I$1806) -> 0 | AE98: =LOOKUP($V98,Data!$A$6:$A$1806,Data!$J$6:$J$1806) -> -103 | AF98: =LOOKUP($V98,Data!$A$6:$A$1806,Data!$K$6:$K$1806) -> 7570 | AG98: 85.59875488 | AH98: T+38 sec | AI98: 40098.10277 | AJ98: 59.88870598 | AK98: 3787.775003 | AL98: 335 | AM98: -212.744348 | AN98: 2.117647059 | AO98: 159.1764706 | AP98: 10 | AQ98: 0 | AR98: -103 | AS98: 7570 | AT98: 89.03521369 | AU98: 3716.952268
A99: T+40 sec | B99: 40098.10279 | C99: =LOOKUP(B99,Data!$A$6:$A$1806,Data!B$6:B$1806) -> 59.89400101 | D99: =LOOKUP(B99,Data!$A$6:$A$1806,Data!C$6:C$1806) -> 3788.471924 | E99: 59.88870598 | F99: 3787.775003 | H99: 84.79919434 | I99: 85.88035796 | K99: 3756.889529 | L99: 0.5522043855 | M99: 3770.18509 | N99: =AVERAGE(D$79:D99) -> 3754.31593 | O99: =AVERAGE(M$79:M99) -> 3756.30664 | P99: 3688.948129 | Q99: =AVERAGE(P$79:P99) -> 3683.702187 | U99: T+40 sec | V99: 40098.10279 | W99: =LOOKUP($V99,Data!$A$6:$A$1806,Data!$B$6:$B$1806) -> 59.89400101 | X99: =LOOKUP($V99,Data!$A$6:$A$1806,Data!$C$6:$C$1806) -> 3788.471924 | Y99: =LOOKUP($V99,Data!$A$6:$A$1806,Data!$D$6:$D$1806) -> 335 | Z99: =IF($Z$1="+",LOOKUP($V99,Data!$A$6:$A$1806,Data!$E$6:$E$1806)*-1,LOOKUP($V99,Data!$A$6:$A$1806,Data!$E$6:$E$1806)) -> -214.3466949 | AA99: =LOOKUP($V99,Data!$A$6:$A$1806,Data!$F$6:$F$1806) -> 2 | AB99: =LOOKUP($V99,Data!$A$6:$A$1806,Data!$G$6:$G$1806) -> 160 | AC99: =LOOKUP($V99,Data!$A$6:$A$1806,Data!$H$6:$H$1806) -> 10 | AD99: =LOOKUP($V99,Data!$A$6:$A$1806,Data!$I$6:$I$1806) -> 0 | AE99: =LOOKUP($V99,Data!$A$6:$A$1806,Data!$J$6:$J$1806) -> -103 | AF99: =LOOKUP($V99,Data!$A$6:$A$1806,Data!$K$6:$K$1806) -> 7570 | AG99: 84.79919434 | AH99: T+40 sec | AI99: 40098.10279 | AJ99: 59.88870598 | AK99: 3787.775003 | AL99: 335 | AM99: -212.744348 | AN99: 2.117647059 | AO99: 159.1764706 | AP99: 10 | AQ99: 0 | AR99: -103 | AS99: 7570 | AT99: 89.03521369 | AU99: 3716.952268
A100: T+42 sec | B100: 40098.10281 | C100: =LOOKUP(B100,Data!$A$6:$A$1806,Data!B$6:B$1806) -> 59.89400101 | D100: =LOOKUP(B100,Data!$A$6:$A$1806,Data!C$6:C$1806) -> 3788.471924 | E100: 59.88870598 | F100: 3787.775003 | H100: 84.79919434 | I100: 85.50195069 | K100: 3756.889529 | L100: 0.5522043855 | M100: 3770.358887 | N100: =AVERAGE(D$79:D100) -> 3755.868475 | O100: =AVERAGE(M$79:M100) -> 3756.945379 | P100: 3689.500333 | Q100: =AVERAGE(P$79:P100) -> 3683.978289 | U100: T+42 sec | V100: 40098.10281 | W100: =LOOKUP($V100,Data!$A$6:$A$1806,Data!$B$6:$B$1806) -> 59.89400101 | X100: =LOOKUP($V100,Data!$A$6:$A$1806,Data!$C$6:$C$1806) -> 3788.471924 | Y100: =LOOKUP($V100,Data!$A$6:$A$1806,Data!$D$6:$D$1806) -> 335 | Z100: =IF($Z$1="+",LOOKUP($V100,Data!$A$6:$A$1806,Data!$E$6:$E$1806)*-1,LOOKUP($V100,Data!$A$6:$A$1806,Data!$E$6:$E$1806)) -> -214.3466949 | AA100: =LOOKUP($V100,Data!$A$6:$A$1806,Data!$F$6:$F$1806) -> 2 | AB100: =LOOKUP($V100,Data!$A$6:$A$1806,Data!$G$6:$G$1806) -> 160 | AC100: =LOOKUP($V100,Data!$A$6:$A$1806,Data!$H$6:$H$1806) -> 10 | AD100: =LOOKUP($V100,Data!$A$6:$A$1806,Data!$I$6:$I$1806) -> 0 | AE100: =LOOKUP($V100,Data!$A$6:$A$1806,Data!$J$6:$J$1806) -> -103 | AF100: =LOOKUP($V100,Data!$A$6:$A$1806,Data!$K$6:$K$1806) -> 7570 | AG100: 84.79919434 | AH100: T+42 sec | AI100: 40098.10281 | AJ100: 59.88870598 | AK100: 3787.775003 | AL100: 335 | AM100: -212.744348 | AN100: 2.117647059 | AO100: 159.1764706 | AP100: 10 | AQ100: 0 | AR100: -103 | AS100: 7570 | AT100: 89.03521369 | AU100: 3716.952268
A101: T+44 sec | B101: 40098.10284 | C101: =LOOKUP(B101,Data!$A$6:$A$1806,Data!B$6:B$1806) -> 59.89099884 | D101: =LOOKUP(B101,Data!$A$6:$A$1806,Data!C$6:C$1806) -> 3793.074463 | E101: 59.88870598 | F101: 3787.775003 | H101: 87.20092773 | I101: 86.09659266 | K101: 3756.889529 | L101: 0.5522043855 | M101: 3771.505733 | N101: =AVERAGE(D$79:D101) -> 3757.486126 | O101: =AVERAGE(M$79:M101) -> 3757.578437 | P101: 3690.052537 | Q101: =AVERAGE(P$79:P101) -> 3684.254391 | U101: T+44 sec | V101: 40098.10284 | W101: =LOOKUP($V101,Data!$A$6:$A$1806,Data!$B$6:$B$1806) -> 59.89099884 | X101: =LOOKUP($V101,Data!$A$6:$A$1806,Data!$C$6:$C$1806) -> 3793.074463 | Y101: =LOOKUP($V101,Data!$A$6:$A$1806,Data!$D$6:$D$1806) -> 335 | Z101: =IF($Z$1="+",LOOKUP($V101,Data!$A$6:$A$1806,Data!$E$6:$E$1806)*-1,LOOKUP($V101,Data!$A$6:$A$1806,Data!$E$6:$E$1806)) -> -214.3466949 | AA101: =LOOKUP($V101,Data!$A$6:$A$1806,Data!$F$6:$F$1806) -> 3 | AB101: =LOOKUP($V101,Data!$A$6:$A$1806,Data!$G$6:$G$1806) -> 160.5 | AC101: =LOOKUP($V101,Data!$A$6:$A$1806,Data!$H$6:$H$1806) -> 10 | AD101: =LOOKUP($V101,Data!$A$6:$A$1806,Data!$I$6:$I$1806) -> 0 | AE101: =LOOKUP($V101,Data!$A$6:$A$1806,Data!$J$6:$J$1806) -> -103 | AF101: =LOOKUP($V101,Data!$A$6:$A$1806,Data!$K$6:$K$1806) -> 7570 | AG101: 87.20092773 | AH101: T+44 sec | AI101: 40098.10284 | AJ101: 59.88870598 | AK101: 3787.775003 | AL101: 335 | AM101: -212.744348 | AN101: 2.117647059 | AO101: 159.1764706 | AP101: 10 | AQ101: 0 | AR101: -103 | AS101: 7570 | AT101: 89.03521369 | AU101: 3716.952268
A102: T+46 sec | B102: 40098.10286 | C102: =LOOKUP(B102,Data!$A$6:$A$1806,Data!B$6:B$1806) -> 59.88499832 | D102: =LOOKUP(B102,Data!$A$6:$A$1806,Data!C$6:C$1806) -> 3794.374268 | E102: 59.88870598 | F102: 3787.775003 | H102: 92.00134277 | I102: 88.1632552 | K102: 3756.889529 | L102: 0.5522043855 | M102: 3774.1246 | N102: =AVERAGE(D$79:D102) -> 3759.023132 | O102: =AVERAGE(M$79:M102) -> 3758.267861 | P102: 3690.604742 | Q102: =AVERAGE(P$79:P102) -> 3684.530494 | U102: T+46 sec | V102: 40098.10286 | W102: =LOOKUP($V102,Data!$A$6:$A$1806,Data!$B$6:$B$1806) -> 59.88499832 | X102: =LOOKUP($V102,Data!$A$6:$A$1806,Data!$C$6:$C$1806) -> 3794.374268 | Y102: =LOOKUP($V102,Data!$A$6:$A$1806,Data!$D$6:$D$1806) -> 335 | Z102: =IF($Z$1="+",LOOKUP($V102,Data!$A$6:$A$1806,Data!$E$6:$E$1806)*-1,LOOKUP($V102,Data!$A$6:$A$1806,Data!$E$6:$E$1806)) -> -212.172699 | AA102: =LOOKUP($V102,Data!$A$6:$A$1806,Data!$F$6:$F$1806) -> 4 | AB102: =LOOKUP($V102,Data!$A$6:$A$1806,Data!$G$6:$G$1806) -> 161 | AC102: =LOOKUP($V102,Data!$A$6:$A$1806,Data!$H$6:$H$1806) -> 10 | AD102: =LOOKUP($V102,Data!$A$6:$A$1806,Data!$I$6:$I$1806) -> 0 | AE102: =LOOKUP($V102,Data!$A$6:$A$1806,Data!$J$6:$J$1806) -> -103 | AF102: =LOOKUP($V102,Data!$A$6:$A$1806,Data!$K$6:$K$1806) -> 7570 | AG102: 92.00134277 | AH102: T+46 sec | AI102: 40098.10286 | AJ102: 59.88870598 | AK102: 3787.775003 | AL102: 335 | AM102: -212.744348 | AN102: 2.117647059 | AO102: 159.1764706 | AP102: 10 | AQ102: 0 | AR102: -103 | AS102: 7570 | AT102: 89.03521369 | AU102: 3716.952268
A103: T+48 sec | B103: 40098.10288 | C103: =LOOKUP(B103,Data!$A$6:$A$1806,Data!B$6:B$1806) -> 59.88499832 | D103: =LOOKUP(B103,Data!$A$6:$A$1806,Data!C$6:C$1806) -> 3794.374268 | E103: 59.88870598 | F103: 3787.775003 | H103: 92.00134277 | I103: 89.50658585 | K103: 3756.889529 | L103: 0.5522043855 | M103: 3776.020135 | N103: =AVERAGE(D$79:D103) -> 3760.437178 | O103: =AVERAGE(M$79:M103) -> 3758.977952 | P103: 3691.156946 | Q103: =AVERAGE(P$79:P103) -> 3684.806596 | U103: T+48 sec | V103: 40098.10288 | W103: =LOOKUP($V103,Data!$A$6:$A$1806,Data!$B$6:$B$1806) -> 59.88499832 | X103: =LOOKUP($V103,Data!$A$6:$A$1806,Data!$C$6:$C$1806) -> 3794.374268 | Y103: =LOOKUP($V103,Data!$A$6:$A$1806,Data!$D$6:$D$1806) -> 335 | Z103: =IF($Z$1="+",LOOKUP($V103,Data!$A$6:$A$1806,Data!$E$6:$E$1806)*-1,LOOKUP($V103,Data!$A$6:$A$1806,Data!$E$6:$E$1806)) -> -212.172699 | AA103: =LOOKUP($V103,Data!$A$6:$A$1806,Data!$F$6:$F$1806) -> 4 | AB103: =LOOKUP($V103,Data!$A$6:$A$1806,Data!$G$6:$G$1806) -> 161 | AC103: =LOOKUP($V103,Data!$A$6:$A$1806,Data!$H$6:$H$1806) -> 10 | AD103: =LOOKUP($V103,Data!$A$6:$A$1806,Data!$I$6:$I$1806) -> 0 | AE103: =LOOKUP($V103,Data!$A$6:$A$1806,Data!$J$6:$J$1806) -> -103 | AF103: =LOOKUP($V103,Data!$A$6:$A$1806,Data!$K$6:$K$1806) -> 7570 | AG103: 92.00134277 | AH103: T+48 sec | AI103: 40098.10288 | AJ103: 59.88870598 | AK103: 3787.775003 | AL103: 335 | AM103: -212.744348 | AN103: 2.117647059 | AO103: 159.1764706 | AP103: 10 | AQ103: 0 | AR103: -103 | AS103: 7570 | AT103: 89.03521369 | AU103: 3716.952268
A104: T+50 sec | B104: 40098.10291 | C104: =LOOKUP(B104,Data!$A$6:$A$1806,Data!B$6:B$1806) -> 59.88499832 | D104: =LOOKUP(B104,Data!$A$6:$A$1806,Data!C$6:C$1806) -> 3800.42749 | E104: 59.88870598 | F104: 3787.775003 | H104: 92.00134277 | I104: 90.37975077 | K104: 3756.889529 | L104: 0.5522043855 | M104: 3777.445504 | N104: =AVERAGE(D$79:D104) -> 3761.975267 | O104: =AVERAGE(M$79:M104) -> 3759.688242 | P104: 3691.709151 | Q104: =AVERAGE(P$79:P104) -> 3685.082698 | U104: T+50 sec | V104: 40098.10291 | W104: =LOOKUP($V104,Data!$A$6:$A$1806,Data!$B$6:$B$1806) -> 59.88499832 | X104: =LOOKUP($V104,Data!$A$6:$A$1806,Data!$C$6:$C$1806) -> 3800.42749 | Y104: =LOOKUP($V104,Data!$A$6:$A$1806,Data!$D$6:$D$1806) -> 335 | Z104: =IF($Z$1="+",LOOKUP($V104,Data!$A$6:$A$1806,Data!$E$6:$E$1806)*-1,LOOKUP($V104,Data!$A$6:$A$1806,Data!$E$6:$E$1806)) -> -212.172699 | AA104: =LOOKUP($V104,Data!$A$6:$A$1806,Data!$F$6:$F$1806) -> 5 | AB104: =LOOKUP($V104,Data!$A$6:$A$1806,Data!$G$6:$G$1806) -> 161.5 | AC104: =LOOKUP($V104,Data!$A$6:$A$1806,Data!$H$6:$H$1806) -> 10 | AD104: =LOOKUP($V104,Data!$A$6:$A$1806,Data!$I$6:$I$1806) -> 0 | AE104: =LOOKUP($V104,Data!$A$6:$A$1806,Data!$J$6:$J$1806) -> -103 | AF104: =LOOKUP($V104,Data!$A$6:$A$1806,Data!$K$6:$K$1806) -> 7570 | AG104: 92.00134277 | AH104: T+50 sec | AI104: 40098.10291 | AJ104: 59.88870598 | AK104: 3787.775003 | AL104: 335 | AM104: -212.744348 | AN104: 2.117647059 | AO104: 159.1764706 | AP104: 10 | AQ104: 0 | AR104: -103 | AS104: 7570 | AT104: 89.03521369 | AU104: 3716.952268
A105: T+52 sec | B105: 40098.10293 | C105: =LOOKUP(B105,Data!$A$6:$A$1806,Data!B$6:B$1806) -> 59.88700104 | D105: =LOOKUP(B105,Data!$A$6:$A$1806,Data!C$6:C$1806) -> 3799.959229 | E105: 59.88870598 | F105: 3787.775003 | H105: 90.39916992 | I105: 90.38654748 | K105: 3756.889529 | L105: 0.5522043855 | M105: 3778.004506 | N105: =AVERAGE(D$79:D105) -> 3763.38208 | O105: =AVERAGE(M$79:M105) -> 3760.366622 | P105: 3692.261355 | Q105: =AVERAGE(P$79:P105) -> 3685.3588 | U105: T+52 sec | V105: 40098.10293 | W105: =LOOKUP($V105,Data!$A$6:$A$1806,Data!$B$6:$B$1806) -> 59.88700104 | X105: =LOOKUP($V105,Data!$A$6:$A$1806,Data!$C$6:$C$1806) -> 3799.959229 | Y105: =LOOKUP($V105,Data!$A$6:$A$1806,Data!$D$6:$D$1806) -> 335 | Z105: =IF($Z$1="+",LOOKUP($V105,Data!$A$6:$A$1806,Data!$E$6:$E$1806)*-1,LOOKUP($V105,Data!$A$6:$A$1806,Data!$E$6:$E$1806)) -> -212.172699 | AA105: =LOOKUP($V105,Data!$A$6:$A$1806,Data!$F$6:$F$1806) -> 6 | AB105: =LOOKUP($V105,Data!$A$6:$A$1806,Data!$G$6:$G$1806) -> 162 | AC105: =LOOKUP($V105,Data!$A$6:$A$1806,Data!$H$6:$H$1806) -> 10 | AD105: =LOOKUP($V105,Data!$A$6:$A$1806,Data!$I$6:$I$1806) -> 0 | AE105: =LOOKUP($V105,Data!$A$6:$A$1806,Data!$J$6:$J$1806) -> -103 | AF105: =LOOKUP($V105,Data!$A$6:$A$1806,Data!$K$6:$K$1806) -> 7570 | AG105: 90.39916992 | AH105: T+52 sec | AI105: 40098.10293 | AJ105: 59.88870598 | AK105: 3787.775003 | AL105: 335 | AM105: -212.744348 | AN105: 2.117647059 | AO105: 159.1764706 | AP105: 10 | AQ105: 0 | AR105: -103 | AS105: 7570 | AT105: 89.03521369 | AU105: 3716.952268
A106: T+54 sec | B106: 40098.10295 | C106: =LOOKUP(B106,Data!$A$6:$A$1806,Data!B$6:B$1806) -> 59.88700104 | D106: =LOOKUP(B106,Data!$A$6:$A$1806,Data!C$6:C$1806) -> 3799.959229 | H106: 90.39916992 | I106: 90.39096533 | L106: 0.5522043855 | M106: 3778.561128 | N106: =AVERAGE(D$79:D106) -> 3764.688407 | O106: =AVERAGE(M$79:M106) -> 3761.016426 | P106: 3692.813559 | Q106: =AVERAGE(P$79:P106) -> 3685.634902 | U106: T+54 sec | V106: 40098.10295 | W106: =LOOKUP($V106,Data!$A$6:$A$1806,Data!$B$6:$B$1806) -> 59.88700104 | X106: =LOOKUP($V106,Data!$A$6:$A$1806,Data!$C$6:$C$1806) -> 3799.959229 | Y106: =LOOKUP($V106,Data!$A$6:$A$1806,Data!$D$6:$D$1806) -> 335 | Z106: =IF($Z$1="+",LOOKUP($V106,Data!$A$6:$A$1806,Data!$E$6:$E$1806)*-1,LOOKUP($V106,Data!$A$6:$A$1806,Data!$E$6:$E$1806)) -> -212.172699 | AA106: =LOOKUP($V106,Data!$A$6:$A$1806,Data!$F$6:$F$1806) -> 6 | AB106: =LOOKUP($V106,Data!$A$6:$A$1806,Data!$G$6:$G$1806) -> 162 | AC106: =LOOKUP($V106,Data!$A$6:$A$1806,Data!$H$6:$H$1806) -> 10 | AD106: =LOOKUP($V106,Data!$A$6:$A$1806,Data!$I$6:$I$1806) -> 0 | AE106: =LOOKUP($V106,Data!$A$6:$A$1806,Data!$J$6:$J$1806) -> -103 | AF106: =LOOKUP($V106,Data!$A$6:$A$1806,Data!$K$6:$K$1806) -> 7570 | AG106: 90.39916992 | AH106: T+54 sec | AI106: 40098.10295
A107: T+56 sec | B107: 40098.10297 | C107: =LOOKUP(B107,Data!$A$6:$A$1806,Data!B$6:B$1806) -> 59.88800049 | D107: =LOOKUP(B107,Data!$A$6:$A$1806,Data!C$6:C$1806) -> 3802.925049 | H107: 89.59960938 | I107: =L$13*H107+(1-L$13)*I106 -> 90.11399075 | L107: 0.5522043855 | M107: 3778.836358 | N107: =AVERAGE(D$79:D107) -> 3766.006912 | O107: =AVERAGE(M$79:M107) -> 3761.630907 | P107: 3693.365764 | Q107: =AVERAGE(P$79:P107) -> 3685.911005 | U107: T+56 sec | V107: 40098.10297 | W107: =LOOKUP($V107,Data!$A$6:$A$1806,Data!$B$6:$B$1806) -> 59.88800049 | X107: =LOOKUP($V107,Data!$A$6:$A$1806,Data!$C$6:$C$1806) -> 3802.925049 | Y107: =LOOKUP($V107,Data!$A$6:$A$1806,Data!$D$6:$D$1806) -> 335 | Z107: =IF($Z$1="+",LOOKUP($V107,Data!$A$6:$A$1806,Data!$E$6:$E$1806)*-1,LOOKUP($V107,Data!$A$6:$A$1806,Data!$E$6:$E$1806)) -> -212.172699 | AA107: =LOOKUP($V107,Data!$A$6:$A$1806,Data!$F$6:$F$1806) -> 7 | AB107: =LOOKUP($V107,Data!$A$6:$A$1806,Data!$G$6:$G$1806) -> 162.5 | AC107: =LOOKUP($V107,Data!$A$6:$A$1806,Data!$H$6:$H$1806) -> 10 | AD107: =LOOKUP($V107,Data!$A$6:$A$1806,Data!$I$6:$I$1806) -> 0 | AE107: =LOOKUP($V107,Data!$A$6:$A$1806,Data!$J$6:$J$1806) -> -103 | AF107: =LOOKUP($V107,Data!$A$6:$A$1806,Data!$K$6:$K$1806) -> 7570 | AG107: 89.59960938 | AH107: T+56 sec | AI107: 40098.10297
A108: T+58 sec | B108: 40098.103 | C108: =LOOKUP(B108,Data!$A$6:$A$1806,Data!B$6:B$1806) -> 59.88999939 | D108: =LOOKUP(B108,Data!$A$6:$A$1806,Data!C$6:C$1806) -> 3802.950928 | H108: =(IF((C108-L$2)>0,((C108-L$2-L$5)/((L$4*L$2)-L$5)*L$3*-1),((C108-L$2+L$5)/((L$4*L$2)-L$5)*L$3*-1))) -> 88.00048828 | I108: 89.37426488 | L108: 0.5522043855 | M108: 3778.648836 | N108: =AVERAGE(D$79:D108) -> 3767.238379 | O108: =AVERAGE(M$79:M108) -> 3762.198171 | P108: 3693.917968 | Q108: =AVERAGE(P$79:P108) -> 3686.187107 | U108: T+58 sec | V108: 40098.103 | W108: =LOOKUP($V108,Data!$A$6:$A$1806,Data!$B$6:$B$1806) -> 59.88999939 | X108: =LOOKUP($V108,Data!$A$6:$A$1806,Data!$C$6:$C$1806) -> 3802.950928 | Y108: =LOOKUP($V108,Data!$A$6:$A$1806,Data!$D$6:$D$1806) -> 335 | Z108: =IF($Z$1="+",LOOKUP($V108,Data!$A$6:$A$1806,Data!$E$6:$E$1806)*-1,LOOKUP($V108,Data!$A$6:$A$1806,Data!$E$6:$E$1806)) -> -212.172699 | AA108: =LOOKUP($V108,Data!$A$6:$A$1806,Data!$F$6:$F$1806) -> 8 | AB108: =LOOKUP($V108,Data!$A$6:$A$1806,Data!$G$6:$G$1806) -> 163 | AC108: =LOOKUP($V108,Data!$A$6:$A$1806,Data!$H$6:$H$1806) -> 10 | AD108: =LOOKUP($V108,Data!$A$6:$A$1806,Data!$I$6:$I$1806) -> 0 | AE108: =LOOKUP($V108,Data!$A$6:$A$1806,Data!$J$6:$J$1806) -> -103 | AF108: =LOOKUP($V108,Data!$A$6:$A$1806,Data!$K$6:$K$1806) -> 7570 | AG108: =(IF((W108-$L$2)>0,((W108-$L$2-$L$5)/(($L$4*$L$2)-$L$5)*$L$3*-1),((W108-$L$2+$L$5)/(($L$4*$L$2)-$L$5)*$L$3*-1))) -> 88.00048828 | AH108: T+58 sec | AI108: 40098.103
A109: T+60 sec | B109: 40098.10302 | C109: =LOOKUP(B109,Data!$A$6:$A$1806,Data!B$6:B$1806) -> 59.88999939 | D109: =LOOKUP(B109,Data!$A$6:$A$1806,Data!C$6:C$1806) -> 3802.950928 | H109: 88.00048828 | I109: 88.89344307 | L109: 0.5522043855 | M109: 3778.720219 | N109: =AVERAGE(D$79:D109) -> 3768.390397 | O109: =AVERAGE(M$79:M109) -> 3762.73114 | P109: 3694.470173 | Q109: =AVERAGE(P$79:P109) -> 3686.463209 | U109: T+60 sec | V109: 40098.10302 | W109: =LOOKUP($V109,Data!$A$6:$A$1806,Data!$B$6:$B$1806) -> 59.88999939 | X109: =LOOKUP($V109,Data!$A$6:$A$1806,Data!$C$6:$C$1806) -> 3802.950928 | Y109: =LOOKUP($V109,Data!$A$6:$A$1806,Data!$D$6:$D$1806) -> 335 | Z109: =IF($Z$1="+",LOOKUP($V109,Data!$A$6:$A$1806,Data!$E$6:$E$1806)*-1,LOOKUP($V109,Data!$A$6:$A$1806,Data!$E$6:$E$1806)) -> -212.172699 | AA109: =LOOKUP($V109,Data!$A$6:$A$1806,Data!$F$6:$F$1806) -> 8 | AB109: =LOOKUP($V109,Data!$A$6:$A$1806,Data!$G$6:$G$1806) -> 163 | AC109: =LOOKUP($V109,Data!$A$6:$A$1806,Data!$H$6:$H$1806) -> 10 | AD109: =LOOKUP($V109,Data!$A$6:$A$1806,Data!$I$6:$I$1806) -> 0 | AE109: =LOOKUP($V109,Data!$A$6:$A$1806,Data!$J$6:$J$1806) -> -103 | AF109: =LOOKUP($V109,Data!$A$6:$A$1806,Data!$K$6:$K$1806) -> 7570 | AG109: 88.00048828 | AH109: T+60 sec | AI109: 40098.10302
A110: T+62 sec | B110: =B109+TIME(0,0,$B$1) -> 40098.10304 | C110: =LOOKUP(B110,Data!$A$6:$A$1806,Data!B$6:B$1806) -> 59.88899994 | D110: =LOOKUP(B110,Data!$A$6:$A$1806,Data!C$6:C$1806) -> 3805.496094 | H110: 88.80004883 | I110: 88.86075509 | L110: 0.5522043855 | M110: 3779.239735 | N110: =AVERAGE(D$79:D110) -> 3769.54995 | O110: =AVERAGE(M$79:M110) -> 3763.247034 | P110: 3695.022377 | Q110: =AVERAGE(P$79:P110) -> 3686.739311 | U110: T+62 sec | V110: 40098.10304 | W110: =LOOKUP($V110,Data!$A$6:$A$1806,Data!$B$6:$B$1806) -> 59.88899994 | X110: =LOOKUP($V110,Data!$A$6:$A$1806,Data!$C$6:$C$1806) -> 3805.496094 | Y110: =LOOKUP($V110,Data!$A$6:$A$1806,Data!$D$6:$D$1806) -> 335 | Z110: =IF($Z$1="+",LOOKUP($V110,Data!$A$6:$A$1806,Data!$E$6:$E$1806)*-1,LOOKUP($V110,Data!$A$6:$A$1806,Data!$E$6:$E$1806)) -> -215.598175 | AA110: =LOOKUP($V110,Data!$A$6:$A$1806,Data!$F$6:$F$1806) -> 9 | AB110: =LOOKUP($V110,Data!$A$6:$A$1806,Data!$G$6:$G$1806) -> 163.5 | AC110: =LOOKUP($V110,Data!$A$6:$A$1806,Data!$H$6:$H$1806) -> 10 | AD110: =LOOKUP($V110,Data!$A$6:$A$1806,Data!$I$6:$I$1806) -> 0 | AE110: =LOOKUP($V110,Data!$A$6:$A$1806,Data!$J$6:$J$1806) -> -103 | AF110: =LOOKUP($V110,Data!$A$6:$A$1806,Data!$K$6:$K$1806) -> 7570 | AG110: 88.80004883 | AH110: T+62 sec | AI110: 40098.10304
A111: T+64 sec | B111: 40098.10307 | C111: =LOOKUP(B111,Data!$A$6:$A$1806,Data!B$6:B$1806) -> 59.8730011 | D111: =LOOKUP(B111,Data!$A$6:$A$1806,Data!C$6:C$1806) -> 3805.616699 | H111: 101.5991211 | I111: 93.31918319 | L111: 0.5522043855 | M111: 3784.250368 | N111: =AVERAGE(D$79:D111) -> 3770.642881 | O111: =AVERAGE(M$79:M111) -> 3763.883498 | P111: 3695.574581 | Q111: =AVERAGE(P$79:P111) -> 3687.015413 | U111: T+64 sec | V111: 40098.10307 | W111: =LOOKUP($V111,Data!$A$6:$A$1806,Data!$B$6:$B$1806) -> 59.8730011 | X111: =LOOKUP($V111,Data!$A$6:$A$1806,Data!$C$6:$C$1806) -> 3805.616699 | Y111: =LOOKUP($V111,Data!$A$6:$A$1806,Data!$D$6:$D$1806) -> 335 | Z111: =IF($Z$1="+",LOOKUP($V111,Data!$A$6:$A$1806,Data!$E$6:$E$1806)*-1,LOOKUP($V111,Data!$A$6:$A$1806,Data!$E$6:$E$1806)) -> -215.598175 | AA111: =LOOKUP($V111,Data!$A$6:$A$1806,Data!$F$6:$F$1806) -> 10 | AB111: =LOOKUP($V111,Data!$A$6:$A$1806,Data!$G$6:$G$1806) -> 164 | AC111: =LOOKUP($V111,Data!$A$6:$A$1806,Data!$H$6:$H$1806) -> 10 | AD111: =LOOKUP($V111,Data!$A$6:$A$1806,Data!$I$6:$I$1806) -> 0 | AE111: =LOOKUP($V111,Data!$A$6:$A$1806,Data!$J$6:$J$1806) -> -103 | AF111: =LOOKUP($V111,Data!$A$6:$A$1806,Data!$K$6:$K$1806) -> 7568 | AG111: 101.5991211 | AH111: T+64 sec | AI111: 40098.10307
A112: T+66 sec | B112: 40098.10309 | C112: =LOOKUP(B112,Data!$A$6:$A$1806,Data!B$6:B$1806) -> 59.8730011 | D112: =LOOKUP(B112,Data!$A$6:$A$1806,Data!C$6:C$1806) -> 3805.616699 | H112: 101.5991211 | I112: 96.21716146 | L112: 0.5522043855 | M112: 3787.70055 | N112: =AVERAGE(D$79:D112) -> 3771.671523 | O112: =AVERAGE(M$79:M112) -> 3764.584 | P112: 3696.126786 | Q112: =AVERAGE(P$79:P112) -> 3687.291516 | U112: T+66 sec | V112: 40098.10309 | W112: =LOOKUP($V112,Data!$A$6:$A$1806,Data!$B$6:$B$1806) -> 59.8730011 | X112: =LOOKUP($V112,Data!$A$6:$A$1806,Data!$C$6:$C$1806) -> 3805.616699 | Y112: =LOOKUP($V112,Data!$A$6:$A$1806,Data!$D$6:$D$1806) -> 335 | Z112: =IF($Z$1="+",LOOKUP($V112,Data!$A$6:$A$1806,Data!$E$6:$E$1806)*-1,LOOKUP($V112,Data!$A$6:$A$1806,Data!$E$6:$E$1806)) -> -215.598175 | AA112: =LOOKUP($V112,Data!$A$6:$A$1806,Data!$F$6:$F$1806) -> 10 | AB112: =LOOKUP($V112,Data!$A$6:$A$1806,Data!$G$6:$G$1806) -> 164 | AC112: =LOOKUP($V112,Data!$A$6:$A$1806,Data!$H$6:$H$1806) -> 10 | AD112: =LOOKUP($V112,Data!$A$6:$A$1806,Data!$I$6:$I$1806) -> 0 | AE112: =LOOKUP($V112,Data!$A$6:$A$1806,Data!$J$6:$J$1806) -> -103 | AF112: =LOOKUP($V112,Data!$A$6:$A$1806,Data!$K$6:$K$1806) -> 7568 | AG112: 101.5991211 | AH112: T+66 sec | AI112: 40098.10309
A113: T+68 sec | B113: 40098.10311 | C113: =LOOKUP(B113,Data!$A$6:$A$1806,Data!B$6:B$1806) -> 59.85699844 | D113: =LOOKUP(B113,Data!$A$6:$A$1806,Data!C$6:C$1806) -> 3811.50293 | H113: 114.4012451 | I113: 102.5815907 | L113: 0.5522043855 | M113: 3794.617184 | N113: =AVERAGE(D$79:D113) -> 3772.809563 | O113: =AVERAGE(M$79:M113) -> 3765.442091 | P113: 3696.67899 | Q113: =AVERAGE(P$79:P113) -> 3687.567618 | U113: T+68 sec | V113: 40098.10311 | W113: =LOOKUP($V113,Data!$A$6:$A$1806,Data!$B$6:$B$1806) -> 59.85699844 | X113: =LOOKUP($V113,Data!$A$6:$A$1806,Data!$C$6:$C$1806) -> 3811.50293 | Y113: =LOOKUP($V113,Data!$A$6:$A$1806,Data!$D$6:$D$1806) -> 335 | Z113: =IF($Z$1="+",LOOKUP($V113,Data!$A$6:$A$1806,Data!$E$6:$E$1806)*-1,LOOKUP($V113,Data!$A$6:$A$1806,Data!$E$6:$E$1806)) -> -215.598175 | AA113: =LOOKUP($V113,Data!$A$6:$A$1806,Data!$F$6:$F$1806) -> 11 | AB113: =LOOKUP($V113,Data!$A$6:$A$1806,Data!$G$6:$G$1806) -> 164.5 | AC113: =LOOKUP($V113,Data!$A$6:$A$1806,Data!$H$6:$H$1806) -> 10 | AD113: =LOOKUP($V113,Data!$A$6:$A$1806,Data!$I$6:$I$1806) -> 0 | AE113: =LOOKUP($V113,Data!$A$6:$A$1806,Data!$J$6:$J$1806) -> -103 | AF113: =LOOKUP($V113,Data!$A$6:$A$1806,Data!$K$6:$K$1806) -> 7565 | AG113: 114.4012451 | AH113: T+68 sec | AI113: 40098.10311
A114: T+70 sec | B114: 40098.10314 | C114: =LOOKUP(B114,Data!$A$6:$A$1806,Data!B$6:B$1806) -> 59.85200119 | D114: =LOOKUP(B114,Data!$A$6:$A$1806,Data!C$6:C$1806) -> 3814.862305 | H114: 118.3990479 | I114: 108.1177007 | L114: 0.5522043855 | M114: 3800.705498 | N114: =AVERAGE(D$79:D114) -> 3773.977695 | O114: =AVERAGE(M$79:M114) -> 3766.42163 | P114: 3697.231194 | Q114: =AVERAGE(P$79:P114) -> 3687.84372 | U114: T+70 sec | V114: 40098.10314 | W114: =LOOKUP($V114,Data!$A$6:$A$1806,Data!$B$6:$B$1806) -> 59.85200119 | X114: =LOOKUP($V114,Data!$A$6:$A$1806,Data!$C$6:$C$1806) -> 3814.862305 | Y114: =LOOKUP($V114,Data!$A$6:$A$1806,Data!$D$6:$D$1806) -> 335 | Z114: =IF($Z$1="+",LOOKUP($V114,Data!$A$6:$A$1806,Data!$E$6:$E$1806)*-1,LOOKUP($V114,Data!$A$6:$A$1806,Data!$E$6:$E$1806)) -> -215.598175 | AA114: =LOOKUP($V114,Data!$A$6:$A$1806,Data!$F$6:$F$1806) -> 12 | AB114: =LOOKUP($V114,Data!$A$6:$A$1806,Data!$G$6:$G$1806) -> 165 | AC114: =LOOKUP($V114,Data!$A$6:$A$1806,Data!$H$6:$H$1806) -> 10 | AD114: =LOOKUP($V114,Data!$A$6:$A$1806,Data!$I$6:$I$1806) -> 0 | AE114: =LOOKUP($V114,Data!$A$6:$A$1806,Data!$J$6:$J$1806) -> -103 | AF114: =LOOKUP($V114,Data!$A$6:$A$1806,Data!$K$6:$K$1806) -> 7560 | AG114: 118.3990479 | AH114: T+70 sec | AI114: 40098.10314
A115: T+72 sec | B115: 40098.10316 | C115: =LOOKUP(B115,Data!$A$6:$A$1806,Data!B$6:B$1806) -> 59.85200119 | D115: =LOOKUP(B115,Data!$A$6:$A$1806,Data!C$6:C$1806) -> 3814.862305 | H115: 118.3990479 | I115: 111.7161722 | L115: 0.5522043855 | M115: 3804.856174 | N115: =AVERAGE(D$79:D115) -> 3775.082684 | O115: =AVERAGE(M$79:M115) -> 3767.460402 | P115: 3697.783399 | Q115: =AVERAGE(P$79:P115) -> 3688.119822 | U115: T+72 sec | V115: 40098.10316 | W115: =LOOKUP($V115,Data!$A$6:$A$1806,Data!$B$6:$B$1806) -> 59.85200119 | X115: =LOOKUP($V115,Data!$A$6:$A$1806,Data!$C$6:$C$1806) -> 3814.862305 | Y115: =LOOKUP($V115,Data!$A$6:$A$1806,Data!$D$6:$D$1806) -> 335 | Z115: =IF($Z$1="+",LOOKUP($V115,Data!$A$6:$A$1806,Data!$E$6:$E$1806)*-1,LOOKUP($V115,Data!$A$6:$A$1806,Data!$E$6:$E$1806)) -> -215.598175 | AA115: =LOOKUP($V115,Data!$A$6:$A$1806,Data!$F$6:$F$1806) -> 12 | AB115: =LOOKUP($V115,Data!$A$6:$A$1806,Data!$G$6:$G$1806) -> 165 | AC115: =LOOKUP($V115,Data!$A$6:$A$1806,Data!$H$6:$H$1806) -> 10 | AD115: =LOOKUP($V115,Data!$A$6:$A$1806,Data!$I$6:$I$1806) -> 0 | AE115: =LOOKUP($V115,Data!$A$6:$A$1806,Data!$J$6:$J$1806) -> -103 | AF115: =LOOKUP($V115,Data!$A$6:$A$1806,Data!$K$6:$K$1806) -> 7560 | AG115: 118.3990479 | AH115: T+72 sec | AI115: 40098.10316
A116: T+74 sec | B116: 40098.10318 | C116: =LOOKUP(B116,Data!$A$6:$A$1806,Data!B$6:B$1806) -> 59.85800171 | D116: =LOOKUP(B116,Data!$A$6:$A$1806,Data!C$6:C$1806) -> 3825.642578 | H116: 113.5986328 | I116: 112.3750334 | L116: 0.5522043855 | M116: 3806.06724 | N116: =AVERAGE(D$79:D116) -> 3776.413208 | O116: =AVERAGE(M$79:M116) -> 3768.476371 | P116: 3698.335603 | Q116: =AVERAGE(P$79:P116) -> 3688.395924 | U116: T+74 sec | V116: 40098.10318 | W116: =LOOKUP($V116,Data!$A$6:$A$1806,Data!$B$6:$B$1806) -> 59.85800171 | X116: =LOOKUP($V116,Data!$A$6:$A$1806,Data!$C$6:$C$1806) -> 3825.642578 | Y116: =LOOKUP($V116,Data!$A$6:$A$1806,Data!$D$6:$D$1806) -> 335 | Z116: =IF($Z$1="+",LOOKUP($V116,Data!$A$6:$A$1806,Data!$E$6:$E$1806)*-1,LOOKUP($V116,Data!$A$6:$A$1806,Data!$E$6:$E$1806)) -> -215.598175 | AA116: =LOOKUP($V116,Data!$A$6:$A$1806,Data!$F$6:$F$1806) -> 13 | AB116: =LOOKUP($V116,Data!$A$6:$A$1806,Data!$G$6:$G$1806) -> 165.5 | AC116: =LOOKUP($V116,Data!$A$6:$A$1806,Data!$H$6:$H$1806) -> 10 | AD116: =LOOKUP($V116,Data!$A$6:$A$1806,Data!$I$6:$I$1806) -> 0 | AE116: =LOOKUP($V116,Data!$A$6:$A$1806,Data!$J$6:$J$1806) -> -103 | AF116: =LOOKUP($V116,Data!$A$6:$A$1806,Data!$K$6:$K$1806) -> 7563 | AG116: 113.5986328 | AH116: T+74 sec | AI116: 40098.10318
A117: T+76 sec | B117: 40098.10321 | C117: =LOOKUP(B117,Data!$A$6:$A$1806,Data!B$6:B$1806) -> 59.86600113 | D117: =LOOKUP(B117,Data!$A$6:$A$1806,Data!C$6:C$1806) -> 3826.053223 | H117: 107.1990967 | I117: 110.5634556 | L117: 0.5522043855 | M117: 3804.807866 | N117: =AVERAGE(D$79:D117) -> 3777.686029 | O117: =AVERAGE(M$79:M117) -> 3769.407948 | P117: 3698.887808 | Q117: =AVERAGE(P$79:P117) -> 3688.672026 | U117: T+76 sec | V117: 40098.10321 | W117: =LOOKUP($V117,Data!$A$6:$A$1806,Data!$B$6:$B$1806) -> 59.86600113 | X117: =LOOKUP($V117,Data!$A$6:$A$1806,Data!$C$6:$C$1806) -> 3826.053223 | Y117: =LOOKUP($V117,Data!$A$6:$A$1806,Data!$D$6:$D$1806) -> 335 | Z117: =IF($Z$1="+",LOOKUP($V117,Data!$A$6:$A$1806,Data!$E$6:$E$1806)*-1,LOOKUP($V117,Data!$A$6:$A$1806,Data!$E$6:$E$1806)) -> -218.3272552 | AA117: =LOOKUP($V117,Data!$A$6:$A$1806,Data!$F$6:$F$1806) -> 14 | AB117: =LOOKUP($V117,Data!$A$6:$A$1806,Data!$G$6:$G$1806) -> 166 | AC117: =LOOKUP($V117,Data!$A$6:$A$1806,Data!$H$6:$H$1806) -> 10 | AD117: =LOOKUP($V117,Data!$A$6:$A$1806,Data!$I$6:$I$1806) -> 0 | AE117: =LOOKUP($V117,Data!$A$6:$A$1806,Data!$J$6:$J$1806) -> -103 | AF117: =LOOKUP($V117,Data!$A$6:$A$1806,Data!$K$6:$K$1806) -> 7564 | AG117: 107.1990967 | AH117: T+76 sec | AI117: 40098.10321
A118: T+78 sec | B118: 40098.10323 | C118: =LOOKUP(B118,Data!$A$6:$A$1806,Data!B$6:B$1806) -> 59.86600113 | D118: =LOOKUP(B118,Data!$A$6:$A$1806,Data!C$6:C$1806) -> 3826.053223 | H118: 107.1990967 | I118: 109.38593 | L118: 0.5522043855 | M118: 3804.182545 | N118: =AVERAGE(D$79:D118) -> 3778.895209 | O118: =AVERAGE(M$79:M118) -> 3770.277313 | P118: 3699.440012 | Q118: =AVERAGE(P$79:P118) -> 3688.948129 | U118: T+78 sec | V118: 40098.10323 | W118: =LOOKUP($V118,Data!$A$6:$A$1806,Data!$B$6:$B$1806) -> 59.86600113 | X118: =LOOKUP($V118,Data!$A$6:$A$1806,Data!$C$6:$C$1806) -> 3826.053223 | Y118: =LOOKUP($V118,Data!$A$6:$A$1806,Data!$D$6:$D$1806) -> 335 | Z118: =IF($Z$1="+",LOOKUP($V118,Data!$A$6:$A$1806,Data!$E$6:$E$1806)*-1,LOOKUP($V118,Data!$A$6:$A$1806,Data!$E$6:$E$1806)) -> -218.3272552 | AA118: =LOOKUP($V118,Data!$A$6:$A$1806,Data!$F$6:$F$1806) -> 14 | AB118: =LOOKUP($V118,Data!$A$6:$A$1806,Data!$G$6:$G$1806) -> 166 | AC118: =LOOKUP($V118,Data!$A$6:$A$1806,Data!$H$6:$H$1806) -> 10 | AD118: =LOOKUP($V118,Data!$A$6:$A$1806,Data!$I$6:$I$1806) -> 0 | AE118: =LOOKUP($V118,Data!$A$6:$A$1806,Data!$J$6:$J$1806) -> -103 | AF118: =LOOKUP($V118,Data!$A$6:$A$1806,Data!$K$6:$K$1806) -> 7564 | AG118: 107.1990967 | AH118: T+78 sec | AI118: 40098.10323
A119: T+80 sec | B119: 40098.10325 | C119: =LOOKUP(B119,Data!$A$6:$A$1806,Data!B$6:B$1806) -> 59.86500168 | D119: =LOOKUP(B119,Data!$A$6:$A$1806,Data!C$6:C$1806) -> 3827.523926 | H119: 107.9986572 | I119: 108.9003845 | L119: 0.5522043855 | M119: 3804.249204 | N119: =AVERAGE(D$79:D119) -> 3780.081275 | O119: =AVERAGE(M$79:M119) -> 3771.105895 | P119: 3699.992216 | Q119: =AVERAGE(P$79:P119) -> 3689.224231 | U119: T+80 sec | V119: 40098.10325 | W119: =LOOKUP($V119,Data!$A$6:$A$1806,Data!$B$6:$B$1806) -> 59.86500168 | X119: =LOOKUP($V119,Data!$A$6:$A$1806,Data!$C$6:$C$1806) -> 3827.523926 | Y119: =LOOKUP($V119,Data!$A$6:$A$1806,Data!$D$6:$D$1806) -> 335 | Z119: =IF($Z$1="+",LOOKUP($V119,Data!$A$6:$A$1806,Data!$E$6:$E$1806)*-1,LOOKUP($V119,Data!$A$6:$A$1806,Data!$E$6:$E$1806)) -> -218.3272552 | AA119: =LOOKUP($V119,Data!$A$6:$A$1806,Data!$F$6:$F$1806) -> 15 | AB119: =LOOKUP($V119,Data!$A$6:$A$1806,Data!$G$6:$G$1806) -> 166.5 | AC119: =LOOKUP($V119,Data!$A$6:$A$1806,Data!$H$6:$H$1806) -> 10 | AD119: =LOOKUP($V119,Data!$A$6:$A$1806,Data!$I$6:$I$1806) -> 0 | AE119: =LOOKUP($V119,Data!$A$6:$A$1806,Data!$J$6:$J$1806) -> -103 | AF119: =LOOKUP($V119,Data!$A$6:$A$1806,Data!$K$6:$K$1806) -> 7566 | AG119: 107.9986572 | AH119: T+80 sec | AI119: 40098.10325
B120: 40098.10328 | C120: =LOOKUP(B120,Data!$A$6:$A$1806,Data!B$6:B$1806) -> 59.86600113 | D120: =LOOKUP(B120,Data!$A$6:$A$1806,Data!C$6:C$1806) -> 3826.753174 | H120: 107.1990967 | I120: 108.3049338 | L120: 0.5522043855 | M120: 3804.205958 | N120: =AVERAGE(D$79:D120) -> 3781.192511 | O120: =AVERAGE(M$79:M120) -> 3771.893992 | P120: 3700.544421 | Q120: =AVERAGE(P$79:P120) -> 3689.500333 | V120: 40098.10328 | W120: =LOOKUP($V120,Data!$A$6:$A$1806,Data!$B$6:$B$1806) -> 59.86600113 | X120: =LOOKUP($V120,Data!$A$6:$A$1806,Data!$C$6:$C$1806) -> 3826.753174 | Y120: =LOOKUP($V120,Data!$A$6:$A$1806,Data!$D$6:$D$1806) -> 335 | Z120: =IF($Z$1="+",LOOKUP($V120,Data!$A$6:$A$1806,Data!$E$6:$E$1806)*-1,LOOKUP($V120,Data!$A$6:$A$1806,Data!$E$6:$E$1806)) -> -218.3272552 | AA120: =LOOKUP($V120,Data!$A$6:$A$1806,Data!$F$6:$F$1806) -> 16 | AB120: =LOOKUP($V120,Data!$A$6:$A$1806,Data!$G$6:$G$1806) -> 167 | AC120: =LOOKUP($V120,Data!$A$6:$A$1806,Data!$H$6:$H$1806) -> 10 | AD120: =LOOKUP($V120,Data!$A$6:$A$1806,Data!$I$6:$I$1806) -> 0 | AE120: =LOOKUP($V120,Data!$A$6:$A$1806,Data!$J$6:$J$1806) -> -103 | AF120: =LOOKUP($V120,Data!$A$6:$A$1806,Data!$K$6:$K$1806) -> 7570 | AG120: 107.1990967
B121: 40098.1033 | C121: =LOOKUP(B121,Data!$A$6:$A$1806,Data!B$6:B$1806) -> 59.86600113 | D121: =LOOKUP(B121,Data!$A$6:$A$1806,Data!C$6:C$1806) -> 3826.753174 | H121: 107.1990967 | I121: 107.9178908 | L121: 0.5522043855 | M121: 3804.371119 | N121: =AVERAGE(D$79:D121) -> 3782.252061 | O121: =AVERAGE(M$79:M121) -> 3772.649274 | P121: 3701.096625 | Q121: =AVERAGE(P$79:P121) -> 3689.776435 | V121: 40098.1033 | W121: =LOOKUP($V121,Data!$A$6:$A$1806,Data!$B$6:$B$1806) -> 59.86600113 | X121: =LOOKUP($V121,Data!$A$6:$A$1806,Data!$C$6:$C$1806) -> 3826.753174 | Y121: =LOOKUP($V121,Data!$A$6:$A$1806,Data!$D$6:$D$1806) -> 335 | Z121: =IF($Z$1="+",LOOKUP($V121,Data!$A$6:$A$1806,Data!$E$6:$E$1806)*-1,LOOKUP($V121,Data!$A$6:$A$1806,Data!$E$6:$E$1806)) -> -218.3272552 | AA121: =LOOKUP($V121,Data!$A$6:$A$1806,Data!$F$6:$F$1806) -> 16 | AB121: =LOOKUP($V121,Data!$A$6:$A$1806,Data!$G$6:$G$1806) -> 167 | AC121: =LOOKUP($V121,Data!$A$6:$A$1806,Data!$H$6:$H$1806) -> 10 | AD121: =LOOKUP($V121,Data!$A$6:$A$1806,Data!$I$6:$I$1806) -> 0 | AE121: =LOOKUP($V121,Data!$A$6:$A$1806,Data!$J$6:$J$1806) -> -103 | AF121: =LOOKUP($V121,Data!$A$6:$A$1806,Data!$K$6:$K$1806) -> 7570 | AG121: 107.1990967
B122: 40098.10332 | C122: =LOOKUP(B122,Data!$A$6:$A$1806,Data!B$6:B$1806) -> 59.87099838 | D122: =LOOKUP(B122,Data!$A$6:$A$1806,Data!C$6:C$1806) -> 3826.453613 | H122: 103.2012939 | I122: 106.2670819 | L122: 0.5522043855 | M122: 3803.272514 | N122: =AVERAGE(D$79:D122) -> 3783.256642 | O122: =AVERAGE(M$79:M122) -> 3773.345257 | P122: 3701.64883 | Q122: =AVERAGE(P$79:P122) -> 3690.052537 | V122: 40098.10332 | W122: =LOOKUP($V122,Data!$A$6:$A$1806,Data!$B$6:$B$1806) -> 59.87099838 | X122: =LOOKUP($V122,Data!$A$6:$A$1806,Data!$C$6:$C$1806) -> 3826.453613 | Y122: =LOOKUP($V122,Data!$A$6:$A$1806,Data!$D$6:$D$1806) -> 335 | Z122: =IF($Z$1="+",LOOKUP($V122,Data!$A$6:$A$1806,Data!$E$6:$E$1806)*-1,LOOKUP($V122,Data!$A$6:$A$1806,Data!$E$6:$E$1806)) -> -218.3272552 | AA122: =LOOKUP($V122,Data!$A$6:$A$1806,Data!$F$6:$F$1806) -> 16 | AB122: =LOOKUP($V122,Data!$A$6:$A$1806,Data!$G$6:$G$1806) -> 167.5 | AC122: =LOOKUP($V122,Data!$A$6:$A$1806,Data!$H$6:$H$1806) -> 10 | AD122: =LOOKUP($V122,Data!$A$6:$A$1806,Data!$I$6:$I$1806) -> 0 | AE122: =LOOKUP($V122,Data!$A$6:$A$1806,Data!$J$6:$J$1806) -> -103 | AF122: =LOOKUP($V122,Data!$A$6:$A$1806,Data!$K$6:$K$1806) -> 7570 | AG122: 103.2012939
B123: 40098.10334 | C123: =LOOKUP(B123,Data!$A$6:$A$1806,Data!B$6:B$1806) -> 59.87900162 | D123: =LOOKUP(B123,Data!$A$6:$A$1806,Data!C$6:C$1806) -> 3825.713379 | H123: 96.79870605 | I123: 102.9531503 | L123: 0.5522043855 | M123: 3800.510787 | N123: =AVERAGE(D$79:D123) -> 3784.200125 | O123: =AVERAGE(M$79:M123) -> 3773.948935 | P123: 3702.201034 | Q123: =AVERAGE(P$79:P123) -> 3690.32864 | V123: 40098.10334 | W123: =LOOKUP($V123,Data!$A$6:$A$1806,Data!$B$6:$B$1806) -> 59.87900162 | X123: =LOOKUP($V123,Data!$A$6:$A$1806,Data!$C$6:$C$1806) -> 3825.713379 | Y123: =LOOKUP($V123,Data!$A$6:$A$1806,Data!$D$6:$D$1806) -> 335 | Z123: =IF($Z$1="+",LOOKUP($V123,Data!$A$6:$A$1806,Data!$E$6:$E$1806)*-1,LOOKUP($V123,Data!$A$6:$A$1806,Data!$E$6:$E$1806)) -> -218.3272552 | AA123: =LOOKUP($V123,Data!$A$6:$A$1806,Data!$F$6:$F$1806) -> 16 | AB123: =LOOKUP($V123,Data!$A$6:$A$1806,Data!$G$6:$G$1806) -> 168 | AC123: =LOOKUP($V123,Data!$A$6:$A$1806,Data!$H$6:$H$1806) -> 10 | AD123: =LOOKUP($V123,Data!$A$6:$A$1806,Data!$I$6:$I$1806) -> 0 | AE123: =LOOKUP($V123,Data!$A$6:$A$1806,Data!$J$6:$J$1806) -> -103 | AF123: =LOOKUP($V123,Data!$A$6:$A$1806,Data!$K$6:$K$1806) -> 7570 | AG123: 96.79870605
B124: 40098.10337 | C124: =LOOKUP(B124,Data!$A$6:$A$1806,Data!B$6:B$1806) -> 59.87900162 | D124: =LOOKUP(B124,Data!$A$6:$A$1806,Data!C$6:C$1806) -> 3825.713379 | H124: 96.79870605 | I124: 100.7990948 | L124: 0.5522043855 | M124: 3798.908936 | N124: =AVERAGE(D$79:D124) -> 3785.102587 | O124: =AVERAGE(M$79:M124) -> 3774.491544 | P124: 3702.753238 | Q124: =AVERAGE(P$79:P124) -> 3690.604742 | V124: 40098.10337 | W124: =LOOKUP($V124,Data!$A$6:$A$1806,Data!$B$6:$B$1806) -> 59.87900162 | X124: =LOOKUP($V124,Data!$A$6:$A$1806,Data!$C$6:$C$1806) -> 3825.713379 | Y124: =LOOKUP($V124,Data!$A$6:$A$1806,Data!$D$6:$D$1806) -> 335 | Z124: =IF($Z$1="+",LOOKUP($V124,Data!$A$6:$A$1806,Data!$E$6:$E$1806)*-1,LOOKUP($V124,Data!$A$6:$A$1806,Data!$E$6:$E$1806)) -> -218.3272552 | AA124: =LOOKUP($V124,Data!$A$6:$A$1806,Data!$F$6:$F$1806) -> 16 | AB124: =LOOKUP($V124,Data!$A$6:$A$1806,Data!$G$6:$G$1806) -> 168 | AC124: =LOOKUP($V124,Data!$A$6:$A$1806,Data!$H$6:$H$1806) -> 10 | AD124: =LOOKUP($V124,Data!$A$6:$A$1806,Data!$I$6:$I$1806) -> 0 | AE124: =LOOKUP($V124,Data!$A$6:$A$1806,Data!$J$6:$J$1806) -> -103 | AF124: =LOOKUP($V124,Data!$A$6:$A$1806,Data!$K$6:$K$1806) -> 7570 | AG124: 96.79870605
B125: 40098.10339 | C125: =LOOKUP(B125,Data!$A$6:$A$1806,Data!B$6:B$1806) -> 59.88000107 | D125: =LOOKUP(B125,Data!$A$6:$A$1806,Data!C$6:C$1806) -> 3822.505371 | H125: 95.99914551 | I125: 99.11911258 | L125: 0.5522043855 | M125: 3797.781158 | N125: =AVERAGE(D$79:D125) -> 3785.898391 | O125: =AVERAGE(M$79:M125) -> 3774.987068 | P125: 3703.305443 | Q125: =AVERAGE(P$79:P125) -> 3690.880844 | V125: 40098.10339 | W125: =LOOKUP($V125,Data!$A$6:$A$1806,Data!$B$6:$B$1806) -> 59.88000107 | X125: =LOOKUP($V125,Data!$A$6:$A$1806,Data!$C$6:$C$1806) -> 3822.505371 | Y125: =LOOKUP($V125,Data!$A$6:$A$1806,Data!$D$6:$D$1806) -> 335 | Z125: =IF($Z$1="+",LOOKUP($V125,Data!$A$6:$A$1806,Data!$E$6:$E$1806)*-1,LOOKUP($V125,Data!$A$6:$A$1806,Data!$E$6:$E$1806)) -> -217.379425 | AA125: =LOOKUP($V125,Data!$A$6:$A$1806,Data!$F$6:$F$1806) -> 16 | AB125: =LOOKUP($V125,Data!$A$6:$A$1806,Data!$G$6:$G$1806) -> 168.5 | AC125: =LOOKUP($V125,Data!$A$6:$A$1806,Data!$H$6:$H$1806) -> 10 | AD125: =LOOKUP($V125,Data!$A$6:$A$1806,Data!$I$6:$I$1806) -> 0 | AE125: =LOOKUP($V125,Data!$A$6:$A$1806,Data!$J$6:$J$1806) -> -103 | AF125: =LOOKUP($V125,Data!$A$6:$A$1806,Data!$K$6:$K$1806) -> 7570 | AG125: 95.99914551
B126: 40098.10341 | C126: =LOOKUP(B126,Data!$A$6:$A$1806,Data!B$6:B$1806) -> 59.88600159 | D126: =LOOKUP(B126,Data!$A$6:$A$1806,Data!C$6:C$1806) -> 3819.081055 | H126: 91.19873047 | I126: 96.34697884 | L126: 0.5522043855 | M126: 3795.561229 | N126: =AVERAGE(D$79:D126) -> 3786.589696 | O126: =AVERAGE(M$79:M126) -> 3775.415696 | P126: 3703.857647 | Q126: =AVERAGE(P$79:P126) -> 3691.156946 | V126: 40098.10341 | W126: =LOOKUP($V126,Data!$A$6:$A$1806,Data!$B$6:$B$1806) -> 59.88600159 | X126: =LOOKUP($V126,Data!$A$6:$A$1806,Data!$C$6:$C$1806) -> 3819.081055 | Y126: =LOOKUP($V126,Data!$A$6:$A$1806,Data!$D$6:$D$1806) -> 335 | Z126: =IF($Z$1="+",LOOKUP($V126,Data!$A$6:$A$1806,Data!$E$6:$E$1806)*-1,LOOKUP($V126,Data!$A$6:$A$1806,Data!$E$6:$E$1806)) -> -217.379425 | AA126: =LOOKUP($V126,Data!$A$6:$A$1806,Data!$F$6:$F$1806) -> 16 | AB126: =LOOKUP($V126,Data!$A$6:$A$1806,Data!$G$6:$G$1806) -> 169 | AC126: =LOOKUP($V126,Data!$A$6:$A$1806,Data!$H$6:$H$1806) -> 10 | AD126: =LOOKUP($V126,Data!$A$6:$A$1806,Data!$I$6:$I$1806) -> 0 | AE126: =LOOKUP($V126,Data!$A$6:$A$1806,Data!$J$6:$J$1806) -> -103 | AF126: =LOOKUP($V126,Data!$A$6:$A$1806,Data!$K$6:$K$1806) -> 7570 | AG126: 91.19873047
B127: 40098.10344 | C127: =LOOKUP(B127,Data!$A$6:$A$1806,Data!B$6:B$1806) -> 59.88600159 | D127: =LOOKUP(B127,Data!$A$6:$A$1806,Data!C$6:C$1806) -> 3819.081055 | H127: 91.19873047 | I127: 94.54509191 | L127: 0.5522043855 | M127: 3794.311546 | N127: =AVERAGE(D$79:D127) -> 3787.252785 | O127: =AVERAGE(M$79:M127) -> 3775.801326 | P127: 3704.409851 | Q127: =AVERAGE(P$79:P127) -> 3691.433048 | V127: 40098.10344 | W127: =LOOKUP($V127,Data!$A$6:$A$1806,Data!$B$6:$B$1806) -> 59.88600159 | X127: =LOOKUP($V127,Data!$A$6:$A$1806,Data!$C$6:$C$1806) -> 3819.081055 | Y127: =LOOKUP($V127,Data!$A$6:$A$1806,Data!$D$6:$D$1806) -> 335 | Z127: =IF($Z$1="+",LOOKUP($V127,Data!$A$6:$A$1806,Data!$E$6:$E$1806)*-1,LOOKUP($V127,Data!$A$6:$A$1806,Data!$E$6:$E$1806)) -> -217.379425 | AA127: =LOOKUP($V127,Data!$A$6:$A$1806,Data!$F$6:$F$1806) -> 16 | AB127: =LOOKUP($V127,Data!$A$6:$A$1806,Data!$G$6:$G$1806) -> 169 | AC127: =LOOKUP($V127,Data!$A$6:$A$1806,Data!$H$6:$H$1806) -> 10 | AD127: =LOOKUP($V127,Data!$A$6:$A$1806,Data!$I$6:$I$1806) -> 0 | AE127: =LOOKUP($V127,Data!$A$6:$A$1806,Data!$J$6:$J$1806) -> -103 | AF127: =LOOKUP($V127,Data!$A$6:$A$1806,Data!$K$6:$K$1806) -> 7570 | AG127: 91.19873047
B128: 40098.10346 | C128: =LOOKUP(B128,Data!$A$6:$A$1806,Data!B$6:B$1806) -> 59.88999939 | D128: =LOOKUP(B128,Data!$A$6:$A$1806,Data!C$6:C$1806) -> 3816.814697 | H128: 88.00048828 | I128: 92.25448064 | L128: 0.5522043855 | M128: 3792.57314 | N128: =AVERAGE(D$79:D128) -> 3787.844023 | O128: =AVERAGE(M$79:M128) -> 3776.136762 | P128: 3704.962056 | Q128: =AVERAGE(P$79:P128) -> 3691.709151 | V128: 40098.10346 | W128: =LOOKUP($V128,Data!$A$6:$A$1806,Data!$B$6:$B$1806) -> 59.88999939 | X128: =LOOKUP($V128,Data!$A$6:$A$1806,Data!$C$6:$C$1806) -> 3816.814697 | Y128: =LOOKUP($V128,Data!$A$6:$A$1806,Data!$D$6:$D$1806) -> 335 | Z128: =IF($Z$1="+",LOOKUP($V128,Data!$A$6:$A$1806,Data!$E$6:$E$1806)*-1,LOOKUP($V128,Data!$A$6:$A$1806,Data!$E$6:$E$1806)) -> -217.379425 | AA128: =LOOKUP($V128,Data!$A$6:$A$1806,Data!$F$6:$F$1806) -> 16 | AB128: =LOOKUP($V128,Data!$A$6:$A$1806,Data!$G$6:$G$1806) -> 169.5 | AC128: =LOOKUP($V128,Data!$A$6:$A$1806,Data!$H$6:$H$1806) -> 10 | AD128: =LOOKUP($V128,Data!$A$6:$A$1806,Data!$I$6:$I$1806) -> 0 | AE128: =LOOKUP($V128,Data!$A$6:$A$1806,Data!$J$6:$J$1806) -> -103 | AF128: =LOOKUP($V128,Data!$A$6:$A$1806,Data!$K$6:$K$1806) -> 7569 | AG128: 88.00048828
B129: 40098.10348 | C129: =LOOKUP(B129,Data!$A$6:$A$1806,Data!B$6:B$1806) -> 59.88899994 | D129: =LOOKUP(B129,Data!$A$6:$A$1806,Data!C$6:C$1806) -> 3815.009766 | H129: 88.80004883 | I129: 91.04542951 | L129: 0.5522043855 | M129: 3791.916293 | N129: =AVERAGE(D$79:D129) -> 3788.376685 | O129: =AVERAGE(M$79:M129) -> 3776.446165 | P129: 3705.51426 | Q129: =AVERAGE(P$79:P129) -> 3691.985253 | V129: 40098.10348 | W129: =LOOKUP($V129,Data!$A$6:$A$1806,Data!$B$6:$B$1806) -> 59.88899994 | X129: =LOOKUP($V129,Data!$A$6:$A$1806,Data!$C$6:$C$1806) -> 3815.009766 | Y129: =LOOKUP($V129,Data!$A$6:$A$1806,Data!$D$6:$D$1806) -> 335 | Z129: =IF($Z$1="+",LOOKUP($V129,Data!$A$6:$A$1806,Data!$E$6:$E$1806)*-1,LOOKUP($V129,Data!$A$6:$A$1806,Data!$E$6:$E$1806)) -> -217.379425 | AA129: =LOOKUP($V129,Data!$A$6:$A$1806,Data!$F$6:$F$1806) -> 16 | AB129: =LOOKUP($V129,Data!$A$6:$A$1806,Data!$G$6:$G$1806) -> 170 | AC129: =LOOKUP($V129,Data!$A$6:$A$1806,Data!$H$6:$H$1806) -> 10 | AD129: =LOOKUP($V129,Data!$A$6:$A$1806,Data!$I$6:$I$1806) -> 0 | AE129: =LOOKUP($V129,Data!$A$6:$A$1806,Data!$J$6:$J$1806) -> -103 | AF129: =LOOKUP($V129,Data!$A$6:$A$1806,Data!$K$6:$K$1806) -> 7575 | AG129: 88.80004883
B130: 40098.10351 | C130: =LOOKUP(B130,Data!$A$6:$A$1806,Data!B$6:B$1806) -> 59.88899994 | D130: =LOOKUP(B130,Data!$A$6:$A$1806,Data!C$6:C$1806) -> 3815.009766 | H130: 88.80004883 | I130: 90.25954627 | L130: 0.5522043855 | M130: 3791.682614 | N130: =AVERAGE(D$79:D130) -> 3788.88886 | O130: =AVERAGE(M$79:M130) -> 3776.739173 | P130: 3706.066465 | Q130: =AVERAGE(P$79:P130) -> 3692.261355 | V130: 40098.10351 | W130: =LOOKUP($V130,Data!$A$6:$A$1806,Data!$B$6:$B$1806) -> 59.88899994 | X130: =LOOKUP($V130,Data!$A$6:$A$1806,Data!$C$6:$C$1806) -> 3815.009766 | Y130: =LOOKUP($V130,Data!$A$6:$A$1806,Data!$D$6:$D$1806) -> 335 | Z130: =IF($Z$1="+",LOOKUP($V130,Data!$A$6:$A$1806,Data!$E$6:$E$1806)*-1,LOOKUP($V130,Data!$A$6:$A$1806,Data!$E$6:$E$1806)) -> -217.379425 | AA130: =LOOKUP($V130,Data!$A$6:$A$1806,Data!$F$6:$F$1806) -> 16 | AB130: =LOOKUP($V130,Data!$A$6:$A$1806,Data!$G$6:$G$1806) -> 170 | AC130: =LOOKUP($V130,Data!$A$6:$A$1806,Data!$H$6:$H$1806) -> 10 | AD130: =LOOKUP($V130,Data!$A$6:$A$1806,Data!$I$6:$I$1806) -> 0 | AE130: =LOOKUP($V130,Data!$A$6:$A$1806,Data!$J$6:$J$1806) -> -103 | AF130: =LOOKUP($V130,Data!$A$6:$A$1806,Data!$K$6:$K$1806) -> 7575 | AG130: 88.80004883
B131: 40098.10353 | C131: =LOOKUP(B131,Data!$A$6:$A$1806,Data!B$6:B$1806) -> 59.89300156 | D131: =LOOKUP(B131,Data!$A$6:$A$1806,Data!C$6:C$1806) -> 3811.838379 | H131: 85.59875488 | I131: 88.62826928 | L131: 0.5522043855 | M131: 3790.603541 | N131: =AVERAGE(D$79:D131) -> 3789.321869 | O131: =AVERAGE(M$79:M131) -> 3777.000765 | P131: 3706.618669 | Q131: =AVERAGE(P$79:P131) -> 3692.537457 | V131: 40098.10353 | W131: =LOOKUP($V131,Data!$A$6:$A$1806,Data!$B$6:$B$1806) -> 59.89300156 | X131: =LOOKUP($V131,Data!$A$6:$A$1806,Data!$C$6:$C$1806) -> 3811.838379 | Y131: =LOOKUP($V131,Data!$A$6:$A$1806,Data!$D$6:$D$1806) -> 335 | Z131: =IF($Z$1="+",LOOKUP($V131,Data!$A$6:$A$1806,Data!$E$6:$E$1806)*-1,LOOKUP($V131,Data!$A$6:$A$1806,Data!$E$6:$E$1806)) -> -217.379425 | AA131: =LOOKUP($V131,Data!$A$6:$A$1806,Data!$F$6:$F$1806) -> 16 | AB131: =LOOKUP($V131,Data!$A$6:$A$1806,Data!$G$6:$G$1806) -> 170.5 | AC131: =LOOKUP($V131,Data!$A$6:$A$1806,Data!$H$6:$H$1806) -> 10 | AD131: =LOOKUP($V131,Data!$A$6:$A$1806,Data!$I$6:$I$1806) -> 0 | AE131: =LOOKUP($V131,Data!$A$6:$A$1806,Data!$J$6:$J$1806) -> -103 | AF131: =LOOKUP($V131,Data!$A$6:$A$1806,Data!$K$6:$K$1806) -> 7573 | AG131: 85.59875488
B132: 40098.10355 | C132: =LOOKUP(B132,Data!$A$6:$A$1806,Data!B$6:B$1806) -> 59.90299988 | D132: =LOOKUP(B132,Data!$A$6:$A$1806,Data!C$6:C$1806) -> 3809.651855 | H132: 77.60009766 | I132: 84.76840921 | L132: 0.5522043855 | M132: 3787.295886 | N132: =AVERAGE(D$79:D132) -> 3789.698351 | O132: =AVERAGE(M$79:M132) -> 3777.191415 | P132: 3707.170873 | Q132: =AVERAGE(P$79:P132) -> 3692.813559 | V132: 40098.10355 | W132: =LOOKUP($V132,Data!$A$6:$A$1806,Data!$B$6:$B$1806) -> 59.90299988 | X132: =LOOKUP($V132,Data!$A$6:$A$1806,Data!$C$6:$C$1806) -> 3809.651855 | Y132: =LOOKUP($V132,Data!$A$6:$A$1806,Data!$D$6:$D$1806) -> 335 | Z132: =IF($Z$1="+",LOOKUP($V132,Data!$A$6:$A$1806,Data!$E$6:$E$1806)*-1,LOOKUP($V132,Data!$A$6:$A$1806,Data!$E$6:$E$1806)) -> -214.8303528 | AA132: =LOOKUP($V132,Data!$A$6:$A$1806,Data!$F$6:$F$1806) -> 16 | AB132: =LOOKUP($V132,Data!$A$6:$A$1806,Data!$G$6:$G$1806) -> 171 | AC132: =LOOKUP($V132,Data!$A$6:$A$1806,Data!$H$6:$H$1806) -> 10 | AD132: =LOOKUP($V132,Data!$A$6:$A$1806,Data!$I$6:$I$1806) -> 0 | AE132: =LOOKUP($V132,Data!$A$6:$A$1806,Data!$J$6:$J$1806) -> -103 | AF132: =LOOKUP($V132,Data!$A$6:$A$1806,Data!$K$6:$K$1806) -> 7571 | AG132: 77.60009766
B133: 40098.10358 | C133: =LOOKUP(B133,Data!$A$6:$A$1806,Data!B$6:B$1806) -> 59.90299988 | D133: =LOOKUP(B133,Data!$A$6:$A$1806,Data!C$6:C$1806) -> 3809.651855 | H133: 77.60009766 | I133: 82.25950017 | L133: 0.5522043855 | M133: 3785.339181 | N133: =AVERAGE(D$79:D133) -> 3790.061142 | O133: =AVERAGE(M$79:M133) -> 3777.339557 | P133: 3707.723078 | Q133: =AVERAGE(P$79:P133) -> 3693.089662 | V133: 40098.10358 | W133: =LOOKUP($V133,Data!$A$6:$A$1806,Data!$B$6:$B$1806) -> 59.90299988 | X133: =LOOKUP($V133,Data!$A$6:$A$1806,Data!$C$6:$C$1806) -> 3809.651855 | Y133: =LOOKUP($V133,Data!$A$6:$A$1806,Data!$D$6:$D$1806) -> 335 | Z133: =IF($Z$1="+",LOOKUP($V133,Data!$A$6:$A$1806,Data!$E$6:$E$1806)*-1,LOOKUP($V133,Data!$A$6:$A$1806,Data!$E$6:$E$1806)) -> -214.8303528 | AA133: =LOOKUP($V133,Data!$A$6:$A$1806,Data!$F$6:$F$1806) -> 16 | AB133: =LOOKUP($V133,Data!$A$6:$A$1806,Data!$G$6:$G$1806) -> 171 | AC133: =LOOKUP($V133,Data!$A$6:$A$1806,Data!$H$6:$H$1806) -> 10 | AD133: =LOOKUP($V133,Data!$A$6:$A$1806,Data!$I$6:$I$1806) -> 0 | AE133: =LOOKUP($V133,Data!$A$6:$A$1806,Data!$J$6:$J$1806) -> -103 | AF133: =LOOKUP($V133,Data!$A$6:$A$1806,Data!$K$6:$K$1806) -> 7571 | AG133: 77.60009766
B134: 40098.1036 | C134: =LOOKUP(B134,Data!$A$6:$A$1806,Data!B$6:B$1806) -> 59.90200043 | D134: =LOOKUP(B134,Data!$A$6:$A$1806,Data!C$6:C$1806) -> 3805.593262 | H134: 78.3996582 | I134: 80.90855548 | L134: 0.5522043855 | M134: 3784.540441 | N134: =AVERAGE(D$79:D134) -> 3790.338501 | O134: =AVERAGE(M$79:M134) -> 3777.468144 | P134: 3708.275282 | Q134: =AVERAGE(P$79:P134) -> 3693.365764 | V134: 40098.1036 | W134: =LOOKUP($V134,Data!$A$6:$A$1806,Data!$B$6:$B$1806) -> 59.90200043 | X134: =LOOKUP($V134,Data!$A$6:$A$1806,Data!$C$6:$C$1806) -> 3805.593262 | Y134: =LOOKUP($V134,Data!$A$6:$A$1806,Data!$D$6:$D$1806) -> 335 | Z134: =IF($Z$1="+",LOOKUP($V134,Data!$A$6:$A$1806,Data!$E$6:$E$1806)*-1,LOOKUP($V134,Data!$A$6:$A$1806,Data!$E$6:$E$1806)) -> -214.8303528 | AA134: =LOOKUP($V134,Data!$A$6:$A$1806,Data!$F$6:$F$1806) -> 16 | AB134: =LOOKUP($V134,Data!$A$6:$A$1806,Data!$G$6:$G$1806) -> 171.5 | AC134: =LOOKUP($V134,Data!$A$6:$A$1806,Data!$H$6:$H$1806) -> 10 | AD134: =LOOKUP($V134,Data!$A$6:$A$1806,Data!$I$6:$I$1806) -> 0 | AE134: =LOOKUP($V134,Data!$A$6:$A$1806,Data!$J$6:$J$1806) -> -103 | AF134: =LOOKUP($V134,Data!$A$6:$A$1806,Data!$K$6:$K$1806) -> 7573 | AG134: 78.3996582
B135: 40098.10362 | C135: =LOOKUP(B135,Data!$A$6:$A$1806,Data!B$6:B$1806) -> 59.90399933 | D135: =LOOKUP(B135,Data!$A$6:$A$1806,Data!C$6:C$1806) -> 3804.188477 | H135: 76.80053711 | I135: 79.47074905 | L135: 0.5522043855 | M135: 3783.654839 | N135: =AVERAGE(D$79:D135) -> 3790.581483 | O135: =AVERAGE(M$79:M135) -> 3777.576682 | P135: 3708.827487 | Q135: =AVERAGE(P$79:P135) -> 3693.641866 | V135: 40098.10362 | W135: =LOOKUP($V135,Data!$A$6:$A$1806,Data!$B$6:$B$1806) -> 59.90399933 | X135: =LOOKUP($V135,Data!$A$6:$A$1806,Data!$C$6:$C$1806) -> 3804.188477 | Y135: =LOOKUP($V135,Data!$A$6:$A$1806,Data!$D$6:$D$1806) -> 335 | Z135: =IF($Z$1="+",LOOKUP($V135,Data!$A$6:$A$1806,Data!$E$6:$E$1806)*-1,LOOKUP($V135,Data!$A$6:$A$1806,Data!$E$6:$E$1806)) -> -214.8303528 | AA135: =LOOKUP($V135,Data!$A$6:$A$1806,Data!$F$6:$F$1806) -> 16 | AB135: =LOOKUP($V135,Data!$A$6:$A$1806,Data!$G$6:$G$1806) -> 172 | AC135: =LOOKUP($V135,Data!$A$6:$A$1806,Data!$H$6:$H$1806) -> 10 | AD135: =LOOKUP($V135,Data!$A$6:$A$1806,Data!$I$6:$I$1806) -> 0 | AE135: =LOOKUP($V135,Data!$A$6:$A$1806,Data!$J$6:$J$1806) -> -103 | AF135: =LOOKUP($V135,Data!$A$6:$A$1806,Data!$K$6:$K$1806) -> 7575 | AG135: 76.80053711
B136: 40098.10365 | C136: =LOOKUP(B136,Data!$A$6:$A$1806,Data!B$6:B$1806) -> 59.90399933 | D136: =LOOKUP(B136,Data!$A$6:$A$1806,Data!C$6:C$1806) -> 3804.188477 | H136: 76.80053711 | I136: 78.53617487 | L136: 0.5522043855 | M136: 3783.272469 | N136: =AVERAGE(D$79:D136) -> 3790.816086 | O136: =AVERAGE(M$79:M136) -> 3777.674886 | P136: 3709.379691 | Q136: =AVERAGE(P$79:P136) -> 3693.917968 | V136: 40098.10365 | W136: =LOOKUP($V136,Data!$A$6:$A$1806,Data!$B$6:$B$1806) -> 59.90399933 | X136: =LOOKUP($V136,Data!$A$6:$A$1806,Data!$C$6:$C$1806) -> 3804.188477 | Y136: =LOOKUP($V136,Data!$A$6:$A$1806,Data!$D$6:$D$1806) -> 335 | Z136: =IF($Z$1="+",LOOKUP($V136,Data!$A$6:$A$1806,Data!$E$6:$E$1806)*-1,LOOKUP($V136,Data!$A$6:$A$1806,Data!$E$6:$E$1806)) -> -214.8303528 | AA136: =LOOKUP($V136,Data!$A$6:$A$1806,Data!$F$6:$F$1806) -> 16 | AB136: =LOOKUP($V136,Data!$A$6:$A$1806,Data!$G$6:$G$1806) -> 172 | AC136: =LOOKUP($V136,Data!$A$6:$A$1806,Data!$H$6:$H$1806) -> 10 | AD136: =LOOKUP($V136,Data!$A$6:$A$1806,Data!$I$6:$I$1806) -> 0 | AE136: =LOOKUP($V136,Data!$A$6:$A$1806,Data!$J$6:$J$1806) -> -103 | AF136: =LOOKUP($V136,Data!$A$6:$A$1806,Data!$K$6:$K$1806) -> 7575 | AG136: 76.80053711
B137: 40098.10367 | C137: =LOOKUP(B137,Data!$A$6:$A$1806,Data!B$6:B$1806) -> 59.9070015 | D137: =LOOKUP(B137,Data!$A$6:$A$1806,Data!C$6:C$1806) -> 3793.975098 | H137: 74.39880371 | I137: 77.08809497 | L137: 0.5522043855 | M137: 3782.376593 | N137: =AVERAGE(D$79:D137) -> 3790.869629 | O137: =AVERAGE(M$79:M137) -> 3777.754576 | P137: 3709.931895 | Q137: =AVERAGE(P$79:P137) -> 3694.19407 | V137: 40098.10367 | W137: =LOOKUP($V137,Data!$A$6:$A$1806,Data!$B$6:$B$1806) -> 59.9070015 | X137: =LOOKUP($V137,Data!$A$6:$A$1806,Data!$C$6:$C$1806) -> 3793.975098 | Y137: =LOOKUP($V137,Data!$A$6:$A$1806,Data!$D$6:$D$1806) -> 335 | Z137: =IF($Z$1="+",LOOKUP($V137,Data!$A$6:$A$1806,Data!$E$6:$E$1806)*-1,LOOKUP($V137,Data!$A$6:$A$1806,Data!$E$6:$E$1806)) -> -214.8303528 | AA137: =LOOKUP($V137,Data!$A$6:$A$1806,Data!$F$6:$F$1806) -> 16 | AB137: =LOOKUP($V137,Data!$A$6:$A$1806,Data!$G$6:$G$1806) -> 172.5 | AC137: =LOOKUP($V137,Data!$A$6:$A$1806,Data!$H$6:$H$1806) -> 10 | AD137: =LOOKUP($V137,Data!$A$6:$A$1806,Data!$I$6:$I$1806) -> 0 | AE137: =LOOKUP($V137,Data!$A$6:$A$1806,Data!$J$6:$J$1806) -> -103 | AF137: =LOOKUP($V137,Data!$A$6:$A$1806,Data!$K$6:$K$1806) -> 7577 | AG137: 74.39880371
B138: 40098.10369 | C138: =LOOKUP(B138,Data!$A$6:$A$1806,Data!B$6:B$1806) -> 59.91600037 | D138: =LOOKUP(B138,Data!$A$6:$A$1806,Data!C$6:C$1806) -> 3792.169434 | H138: 67.19970703 | I138: 73.62715919 | L138: 0.5522043855 | M138: 3779.467862 | N138: =AVERAGE(D$79:D138) -> 3790.891292 | O138: =AVERAGE(M$79:M138) -> 3777.78313 | P138: 3710.4841 | Q138: =AVERAGE(P$79:P138) -> 3694.470173 | V138: 40098.10369 | W138: =LOOKUP($V138,Data!$A$6:$A$1806,Data!$B$6:$B$1806) -> 59.91600037 | X138: =LOOKUP($V138,Data!$A$6:$A$1806,Data!$C$6:$C$1806) -> 3792.169434 | Y138: =LOOKUP($V138,Data!$A$6:$A$1806,Data!$D$6:$D$1806) -> 335 | Z138: =IF($Z$1="+",LOOKUP($V138,Data!$A$6:$A$1806,Data!$E$6:$E$1806)*-1,LOOKUP($V138,Data!$A$6:$A$1806,Data!$E$6:$E$1806)) -> -214.8303528 | AA138: =LOOKUP($V138,Data!$A$6:$A$1806,Data!$F$6:$F$1806) -> 16 | AB138: =LOOKUP($V138,Data!$A$6:$A$1806,Data!$G$6:$G$1806) -> 173 | AC138: =LOOKUP($V138,Data!$A$6:$A$1806,Data!$H$6:$H$1806) -> 10 | AD138: =LOOKUP($V138,Data!$A$6:$A$1806,Data!$I$6:$I$1806) -> 0 | AE138: =LOOKUP($V138,Data!$A$6:$A$1806,Data!$J$6:$J$1806) -> -103 | AF138: =LOOKUP($V138,Data!$A$6:$A$1806,Data!$K$6:$K$1806) -> 7577 | AG138: 67.19970703
B139: 40098.10372 | C139: =LOOKUP(B139,Data!$A$6:$A$1806,Data!B$6:B$1806) -> 59.91600037 | D139: =LOOKUP(B139,Data!$A$6:$A$1806,Data!C$6:C$1806) -> 3792.169434 | H139: 67.19970703 | I139: 71.37755093 | L139: 0.5522043855 | M139: 3777.770458 | N139: =AVERAGE(D$79:D139) -> 3790.912245 | O139: =AVERAGE(M$79:M139) -> 3777.782923 | P139: 3711.036304 | Q139: =AVERAGE(P$79:P139) -> 3694.746275 | V139: 40098.10372 | W139: =LOOKUP($V139,Data!$A$6:$A$1806,Data!$B$6:$B$1806) -> 59.91600037 | X139: =LOOKUP($V139,Data!$A$6:$A$1806,Data!$C$6:$C$1806) -> 3792.169434 | Y139: =LOOKUP($V139,Data!$A$6:$A$1806,Data!$D$6:$D$1806) -> 335 | Z139: =IF($Z$1="+",LOOKUP($V139,Data!$A$6:$A$1806,Data!$E$6:$E$1806)*-1,LOOKUP($V139,Data!$A$6:$A$1806,Data!$E$6:$E$1806)) -> -214.8303528 | AA139: =LOOKUP($V139,Data!$A$6:$A$1806,Data!$F$6:$F$1806) -> 16 | AB139: =LOOKUP($V139,Data!$A$6:$A$1806,Data!$G$6:$G$1806) -> 173 | AC139: =LOOKUP($V139,Data!$A$6:$A$1806,Data!$H$6:$H$1806) -> 10 | AD139: =LOOKUP($V139,Data!$A$6:$A$1806,Data!$I$6:$I$1806) -> 0 | AE139: =LOOKUP($V139,Data!$A$6:$A$1806,Data!$J$6:$J$1806) -> -103 | AF139: =LOOKUP($V139,Data!$A$6:$A$1806,Data!$K$6:$K$1806) -> 7577 | AG139: 67.19970703
B140: 40098.10374 | C140: =LOOKUP(B140,Data!$A$6:$A$1806,Data!B$6:B$1806) -> 59.91600037 | D140: =LOOKUP(B140,Data!$A$6:$A$1806,Data!C$6:C$1806) -> 3789.533691 | H140: 67.19970703 | I140: 69.91530557 | L140: 0.5522043855 | M140: 3776.860417 | N140: =AVERAGE(D$79:D140) -> 3790.890011 | O140: =AVERAGE(M$79:M140) -> 3777.768043 | P140: 3711.588508 | Q140: =AVERAGE(P$79:P140) -> 3695.022377 | V140: 40098.10374 | W140: =LOOKUP($V140,Data!$A$6:$A$1806,Data!$B$6:$B$1806) -> 59.91600037 | X140: =LOOKUP($V140,Data!$A$6:$A$1806,Data!$C$6:$C$1806) -> 3789.533691 | Y140: =LOOKUP($V140,Data!$A$6:$A$1806,Data!$D$6:$D$1806) -> 335 | Z140: =IF($Z$1="+",LOOKUP($V140,Data!$A$6:$A$1806,Data!$E$6:$E$1806)*-1,LOOKUP($V140,Data!$A$6:$A$1806,Data!$E$6:$E$1806)) -> -227.6559143 | AA140: =LOOKUP($V140,Data!$A$6:$A$1806,Data!$F$6:$F$1806) -> 16 | AB140: =LOOKUP($V140,Data!$A$6:$A$1806,Data!$G$6:$G$1806) -> 173.5 | AC140: =LOOKUP($V140,Data!$A$6:$A$1806,Data!$H$6:$H$1806) -> 10 | AD140: =LOOKUP($V140,Data!$A$6:$A$1806,Data!$I$6:$I$1806) -> 0 | AE140: =LOOKUP($V140,Data!$A$6:$A$1806,Data!$J$6:$J$1806) -> -103 | AF140: =LOOKUP($V140,Data!$A$6:$A$1806,Data!$K$6:$K$1806) -> 7578 | AG140: 67.19970703
B141: 40098.10376 | C141: =LOOKUP(B141,Data!$A$6:$A$1806,Data!B$6:B$1806) -> 59.91799927 | D141: =LOOKUP(B141,Data!$A$6:$A$1806,Data!C$6:C$1806) -> 3788.13208 | H141: 65.60058594 | I141: 68.4051537 | L141: 0.5522043855 | M141: 3775.90247 | N141: =AVERAGE(D$79:D141) -> 3790.846234 | O141: =AVERAGE(M$79:M141) -> 3777.738431 | P141: 3712.140713 | Q141: =AVERAGE(P$79:P141) -> 3695.298479 | V141: 40098.10376 | W141: =LOOKUP($V141,Data!$A$6:$A$1806,Data!$B$6:$B$1806) -> 59.91799927 | X141: =LOOKUP($V141,Data!$A$6:$A$1806,Data!$C$6:$C$1806) -> 3788.13208 | Y141: =LOOKUP($V141,Data!$A$6:$A$1806,Data!$D$6:$D$1806) -> 335 | Z141: =IF($Z$1="+",LOOKUP($V141,Data!$A$6:$A$1806,Data!$E$6:$E$1806)*-1,LOOKUP($V141,Data!$A$6:$A$1806,Data!$E$6:$E$1806)) -> -227.6559143 | AA141: =LOOKUP($V141,Data!$A$6:$A$1806,Data!$F$6:$F$1806) -> 16 | AB141: =LOOKUP($V141,Data!$A$6:$A$1806,Data!$G$6:$G$1806) -> 174 | AC141: =LOOKUP($V141,Data!$A$6:$A$1806,Data!$H$6:$H$1806) -> 10 | AD141: =LOOKUP($V141,Data!$A$6:$A$1806,Data!$I$6:$I$1806) -> 0 | AE141: =LOOKUP($V141,Data!$A$6:$A$1806,Data!$J$6:$J$1806) -> -103 | AF141: =LOOKUP($V141,Data!$A$6:$A$1806,Data!$K$6:$K$1806) -> 7579 | AG141: 65.60058594
B142: 40098.10378 | C142: =LOOKUP(B142,Data!$A$6:$A$1806,Data!B$6:B$1806) -> 59.91799927 | D142: =LOOKUP(B142,Data!$A$6:$A$1806,Data!C$6:C$1806) -> 3788.13208 | H142: 65.60058594 | I142: 67.42355498 | L142: 0.5522043855 | M142: 3775.473075 | N142: =AVERAGE(D$79:D142) -> 3790.803825 | O142: =AVERAGE(M$79:M142) -> 3777.703035 | P142: 3712.692917 | Q142: =AVERAGE(P$79:P142) -> 3695.574581 | V142: 40098.10378 | W142: =LOOKUP($V142,Data!$A$6:$A$1806,Data!$B$6:$B$1806) -> 59.91799927 | X142: =LOOKUP($V142,Data!$A$6:$A$1806,Data!$C$6:$C$1806) -> 3788.13208 | Y142: =LOOKUP($V142,Data!$A$6:$A$1806,Data!$D$6:$D$1806) -> 335 | Z142: =IF($Z$1="+",LOOKUP($V142,Data!$A$6:$A$1806,Data!$E$6:$E$1806)*-1,LOOKUP($V142,Data!$A$6:$A$1806,Data!$E$6:$E$1806)) -> -227.6559143 | AA142: =LOOKUP($V142,Data!$A$6:$A$1806,Data!$F$6:$F$1806) -> 16 | AB142: =LOOKUP($V142,Data!$A$6:$A$1806,Data!$G$6:$G$1806) -> 174 | AC142: =LOOKUP($V142,Data!$A$6:$A$1806,Data!$H$6:$H$1806) -> 10 | AD142: =LOOKUP($V142,Data!$A$6:$A$1806,Data!$I$6:$I$1806) -> 0 | AE142: =LOOKUP($V142,Data!$A$6:$A$1806,Data!$J$6:$J$1806) -> -103 | AF142: =LOOKUP($V142,Data!$A$6:$A$1806,Data!$K$6:$K$1806) -> 7579 | AG142: 65.60058594
B143: 40098.10381 | C143: =LOOKUP(B143,Data!$A$6:$A$1806,Data!B$6:B$1806) -> 59.91999817 | D143: =LOOKUP(B143,Data!$A$6:$A$1806,Data!C$6:C$1806) -> 3783.02832 | H143: 64.00146484 | I143: 66.22582343 | L143: 0.5522043855 | M143: 3774.827548 | N143: =AVERAGE(D$79:D143) -> 3790.684202 | O143: =AVERAGE(M$79:M143) -> 3777.658797 | P143: 3713.245122 | Q143: =AVERAGE(P$79:P143) -> 3695.850684 | V143: 40098.10381 | W143: =LOOKUP($V143,Data!$A$6:$A$1806,Data!$B$6:$B$1806) -> 59.91999817 | X143: =LOOKUP($V143,Data!$A$6:$A$1806,Data!$C$6:$C$1806) -> 3783.02832 | Y143: =LOOKUP($V143,Data!$A$6:$A$1806,Data!$D$6:$D$1806) -> 335 | Z143: =IF($Z$1="+",LOOKUP($V143,Data!$A$6:$A$1806,Data!$E$6:$E$1806)*-1,LOOKUP($V143,Data!$A$6:$A$1806,Data!$E$6:$E$1806)) -> -227.6559143 | AA143: =LOOKUP($V143,Data!$A$6:$A$1806,Data!$F$6:$F$1806) -> 16 | AB143: =LOOKUP($V143,Data!$A$6:$A$1806,Data!$G$6:$G$1806) -> 174.5 | AC143: =LOOKUP($V143,Data!$A$6:$A$1806,Data!$H$6:$H$1806) -> 10 | AD143: =LOOKUP($V143,Data!$A$6:$A$1806,Data!$I$6:$I$1806) -> 0 | AE143: =LOOKUP($V143,Data!$A$6:$A$1806,Data!$J$6:$J$1806) -> -103 | AF143: =LOOKUP($V143,Data!$A$6:$A$1806,Data!$K$6:$K$1806) -> 7580 | AG143: 64.00146484
B144: 40098.10383 | C144: =LOOKUP(B144,Data!$A$6:$A$1806,Data!B$6:B$1806) -> 59.91999817 | D144: =LOOKUP(B144,Data!$A$6:$A$1806,Data!C$6:C$1806) -> 3781.701172 | H144: 64.00146484 | I144: 65.44729793 | L144: =IF(B144>G$3,0,(K$21*0.000023148/K$22)) -> 0.5522043855 | M144: =M143+L144+(I144-I143) -> 3774.601227 | N144: =AVERAGE(D$79:D144) -> 3790.548096 | O144: =AVERAGE(M$79:M144) -> 3777.61247 | P144: 3713.797326 | Q144: =AVERAGE(P$79:P144) -> 3696.126786 | V144: 40098.10383 | W144: =LOOKUP($V144,Data!$A$6:$A$1806,Data!$B$6:$B$1806) -> 59.91999817 | X144: =LOOKUP($V144,Data!$A$6:$A$1806,Data!$C$6:$C$1806) -> 3781.701172 | Y144: =LOOKUP($V144,Data!$A$6:$A$1806,Data!$D$6:$D$1806) -> 335 | Z144: =IF($Z$1="+",LOOKUP($V144,Data!$A$6:$A$1806,Data!$E$6:$E$1806)*-1,LOOKUP($V144,Data!$A$6:$A$1806,Data!$E$6:$E$1806)) -> -227.6559143 | AA144: =LOOKUP($V144,Data!$A$6:$A$1806,Data!$F$6:$F$1806) -> 16 | AB144: =LOOKUP($V144,Data!$A$6:$A$1806,Data!$G$6:$G$1806) -> 175 | AC144: =LOOKUP($V144,Data!$A$6:$A$1806,Data!$H$6:$H$1806) -> 10 | AD144: =LOOKUP($V144,Data!$A$6:$A$1806,Data!$I$6:$I$1806) -> 0 | AE144: =LOOKUP($V144,Data!$A$6:$A$1806,Data!$J$6:$J$1806) -> -103 | AF144: =LOOKUP($V144,Data!$A$6:$A$1806,Data!$K$6:$K$1806) -> 7581 | AG144: 64.00146484
B145: 40098.10385 | C145: =LOOKUP(B145,Data!$A$6:$A$1806,Data!B$6:B$1806) -> 59.91999817 | D145: =LOOKUP(B145,Data!$A$6:$A$1806,Data!C$6:C$1806) -> 3781.701172 | H145: 64.00146484 | I145: 64.94125635 | L145: 0.5522043855 | M145: 3774.64739 | N145: =AVERAGE(D$79:D145) -> 3790.416052 | O145: =AVERAGE(M$79:M145) -> 3777.568215 | P145: 3714.34953 | Q145: =AVERAGE(P$79:P145) -> 3696.402888 | V145: =V144+TIME(0,0,$B$1) -> 40098.10385 | W145: =LOOKUP($V145,Data!$A$6:$A$1806,Data!$B$6:$B$1806) -> 59.91999817 | X145: =LOOKUP($V145,Data!$A$6:$A$1806,Data!$C$6:$C$1806) -> 3781.701172 | Y145: =LOOKUP($V145,Data!$A$6:$A$1806,Data!$D$6:$D$1806) -> 335 | Z145: =IF($Z$1="+",LOOKUP($V145,Data!$A$6:$A$1806,Data!$E$6:$E$1806)*-1,LOOKUP($V145,Data!$A$6:$A$1806,Data!$E$6:$E$1806)) -> -227.6559143 | AA145: =LOOKUP($V145,Data!$A$6:$A$1806,Data!$F$6:$F$1806) -> 16 | AB145: =LOOKUP($V145,Data!$A$6:$A$1806,Data!$G$6:$G$1806) -> 175 | AC145: =LOOKUP($V145,Data!$A$6:$A$1806,Data!$H$6:$H$1806) -> 10 | AD145: =LOOKUP($V145,Data!$A$6:$A$1806,Data!$I$6:$I$1806) -> 0 | AE145: =LOOKUP($V145,Data!$A$6:$A$1806,Data!$J$6:$J$1806) -> -103 | AF145: =LOOKUP($V145,Data!$A$6:$A$1806,Data!$K$6:$K$1806) -> 7581 | AG145: 64.00146484
B146: 40098.10388 | C146: =LOOKUP(B146,Data!$A$6:$A$1806,Data!B$6:B$1806) -> 59.91699982 | D146: =LOOKUP(B146,Data!$A$6:$A$1806,Data!C$6:C$1806) -> 3775.635498 | H146: 66.40014648 | I146: 65.4518679 | L146: 0.5522043855 | M146: 3775.710206 | N146: =AVERAGE(D$79:D146) -> 3790.198691 | O146: =AVERAGE(M$79:M146) -> 3777.540891 | P146: =P145+L146 -> 3714.901735 | Q146: =AVERAGE(P$79:P146) -> 3696.67899 | V146: 40098.10388 | W146: =LOOKUP($V146,Data!$A$6:$A$1806,Data!$B$6:$B$1806) -> 59.91699982 | X146: =LOOKUP($V146,Data!$A$6:$A$1806,Data!$C$6:$C$1806) -> 3775.635498 | Y146: =LOOKUP($V146,Data!$A$6:$A$1806,Data!$D$6:$D$1806) -> 335 | Z146: =IF($Z$1="+",LOOKUP($V146,Data!$A$6:$A$1806,Data!$E$6:$E$1806)*-1,LOOKUP($V146,Data!$A$6:$A$1806,Data!$E$6:$E$1806)) -> -227.6559143 | AA146: =LOOKUP($V146,Data!$A$6:$A$1806,Data!$F$6:$F$1806) -> 16 | AB146: =LOOKUP($V146,Data!$A$6:$A$1806,Data!$G$6:$G$1806) -> 175.5 | AC146: =LOOKUP($V146,Data!$A$6:$A$1806,Data!$H$6:$H$1806) -> 10 | AD146: =LOOKUP($V146,Data!$A$6:$A$1806,Data!$I$6:$I$1806) -> 0 | AE146: =LOOKUP($V146,Data!$A$6:$A$1806,Data!$J$6:$J$1806) -> -103 | AF146: =LOOKUP($V146,Data!$A$6:$A$1806,Data!$K$6:$K$1806) -> 7585 | AG146: 66.40014648
B147: 40098.1039 | C147: =LOOKUP(B147,Data!$A$6:$A$1806,Data!B$6:B$1806) -> 59.92100143 | D147: =LOOKUP(B147,Data!$A$6:$A$1806,Data!C$6:C$1806) -> 3774.604248 | H147: 63.19885254 | I147: 64.66331252 | L147: 0.5522043855 | M147: 3775.473855 | N147: =AVERAGE(D$79:D147) -> 3789.972685 | O147: =AVERAGE(M$79:M147) -> 3777.510934 | P147: 3715.453939 | Q147: =AVERAGE(P$79:P147) -> 3696.955092 | V147: 40098.1039 | W147: =LOOKUP($V147,Data!$A$6:$A$1806,Data!$B$6:$B$1806) -> 59.92100143 | X147: =LOOKUP($V147,Data!$A$6:$A$1806,Data!$C$6:$C$1806) -> 3774.604248 | Y147: =LOOKUP($V147,Data!$A$6:$A$1806,Data!$D$6:$D$1806) -> 335 | Z147: =IF($Z$1="+",LOOKUP($V147,Data!$A$6:$A$1806,Data!$E$6:$E$1806)*-1,LOOKUP($V147,Data!$A$6:$A$1806,Data!$E$6:$E$1806)) -> -225.0180817 | AA147: =LOOKUP($V147,Data!$A$6:$A$1806,Data!$F$6:$F$1806) -> 16 | AB147: =LOOKUP($V147,Data!$A$6:$A$1806,Data!$G$6:$G$1806) -> 176 | AC147: =LOOKUP($V147,Data!$A$6:$A$1806,Data!$H$6:$H$1806) -> 10 | AD147: =LOOKUP($V147,Data!$A$6:$A$1806,Data!$I$6:$I$1806) -> 0 | AE147: =LOOKUP($V147,Data!$A$6:$A$1806,Data!$J$6:$J$1806) -> -103 | AF147: =LOOKUP($V147,Data!$A$6:$A$1806,Data!$K$6:$K$1806) -> 7588 | AG147: 63.19885254
B148: 40098.10392 | C148: =LOOKUP(B148,Data!$A$6:$A$1806,Data!B$6:B$1806) -> 59.92100143 | D148: =LOOKUP(B148,Data!$A$6:$A$1806,Data!C$6:C$1806) -> 3774.604248 | H148: 63.19885254 | I148: 64.15075153 | L148: 0.5522043855 | M148: 3775.513498 | N148: =AVERAGE(D$79:D148) -> 3789.753135 | O148: =AVERAGE(M$79:M148) -> 3777.482399 | P148: 3716.006144 | Q148: =AVERAGE(P$79:P148) -> 3697.231194 | V148: 40098.10392 | W148: =LOOKUP($V148,Data!$A$6:$A$1806,Data!$B$6:$B$1806) -> 59.92100143 | X148: =LOOKUP($V148,Data!$A$6:$A$1806,Data!$C$6:$C$1806) -> 3774.604248 | Y148: =LOOKUP($V148,Data!$A$6:$A$1806,Data!$D$6:$D$1806) -> 335 | Z148: =IF($Z$1="+",LOOKUP($V148,Data!$A$6:$A$1806,Data!$E$6:$E$1806)*-1,LOOKUP($V148,Data!$A$6:$A$1806,Data!$E$6:$E$1806)) -> -225.0180817 | AA148: =LOOKUP($V148,Data!$A$6:$A$1806,Data!$F$6:$F$1806) -> 16 | AB148: =LOOKUP($V148,Data!$A$6:$A$1806,Data!$G$6:$G$1806) -> 176 | AC148: =LOOKUP($V148,Data!$A$6:$A$1806,Data!$H$6:$H$1806) -> 10 | AD148: =LOOKUP($V148,Data!$A$6:$A$1806,Data!$I$6:$I$1806) -> 0 | AE148: =LOOKUP($V148,Data!$A$6:$A$1806,Data!$J$6:$J$1806) -> -103 | AF148: =LOOKUP($V148,Data!$A$6:$A$1806,Data!$K$6:$K$1806) -> 7588 | AG148: 63.19885254
B149: 40098.10395 | C149: =LOOKUP(B149,Data!$A$6:$A$1806,Data!B$6:B$1806) -> 59.92300034 | D149: =LOOKUP(B149,Data!$A$6:$A$1806,Data!C$6:C$1806) -> 3773.957764 | H149: 61.59973145 | I149: 63.2578945 | L149: 0.5522043855 | M149: 3775.172845 | N149: =AVERAGE(D$79:D149) -> 3789.530665 | O149: =AVERAGE(M$79:M149) -> 3777.449871 | P149: 3716.558348 | Q149: =AVERAGE(P$79:P149) -> 3697.507297 | V149: 40098.10395 | W149: =LOOKUP($V149,Data!$A$6:$A$1806,Data!$B$6:$B$1806) -> 59.92300034 | X149: =LOOKUP($V149,Data!$A$6:$A$1806,Data!$C$6:$C$1806) -> 3773.957764 | Y149: =LOOKUP($V149,Data!$A$6:$A$1806,Data!$D$6:$D$1806) -> 335 | Z149: =IF($Z$1="+",LOOKUP($V149,Data!$A$6:$A$1806,Data!$E$6:$E$1806)*-1,LOOKUP($V149,Data!$A$6:$A$1806,Data!$E$6:$E$1806)) -> -225.0180817 | AA149: =LOOKUP($V149,Data!$A$6:$A$1806,Data!$F$6:$F$1806) -> 16 | AB149: =LOOKUP($V149,Data!$A$6:$A$1806,Data!$G$6:$G$1806) -> 176.5 | AC149: =LOOKUP($V149,Data!$A$6:$A$1806,Data!$H$6:$H$1806) -> 10 | AD149: =LOOKUP($V149,Data!$A$6:$A$1806,Data!$I$6:$I$1806) -> 0 | AE149: =LOOKUP($V149,Data!$A$6:$A$1806,Data!$J$6:$J$1806) -> -103 | AF149: =LOOKUP($V149,Data!$A$6:$A$1806,Data!$K$6:$K$1806) -> 7589 | AG149: 61.59973145
B150: 40098.10397 | C150: =LOOKUP(B150,Data!$A$6:$A$1806,Data!B$6:B$1806) -> 59.92499924 | D150: =LOOKUP(B150,Data!$A$6:$A$1806,Data!C$6:C$1806) -> 3772.722412 | H150: 60.00061035 | I150: 62.11784505 | L150: 0.5522043855 | M150: 3774.585 | N150: =AVERAGE(D$79:D150) -> 3789.297217 | O150: =AVERAGE(M$79:M150) -> 3777.410081 | P150: 3717.110552 | Q150: =AVERAGE(P$79:P150) -> 3697.783399 | V150: 40098.10397 | W150: =LOOKUP($V150,Data!$A$6:$A$1806,Data!$B$6:$B$1806) -> 59.92499924 | X150: =LOOKUP($V150,Data!$A$6:$A$1806,Data!$C$6:$C$1806) -> 3772.722412 | Y150: =LOOKUP($V150,Data!$A$6:$A$1806,Data!$D$6:$D$1806) -> 335 | Z150: =IF($Z$1="+",LOOKUP($V150,Data!$A$6:$A$1806,Data!$E$6:$E$1806)*-1,LOOKUP($V150,Data!$A$6:$A$1806,Data!$E$6:$E$1806)) -> -225.0180817 | AA150: =LOOKUP($V150,Data!$A$6:$A$1806,Data!$F$6:$F$1806) -> 0 | AB150: =LOOKUP($V150,Data!$A$6:$A$1806,Data!$G$6:$G$1806) -> 177 | AC150: =LOOKUP($V150,Data!$A$6:$A$1806,Data!$H$6:$H$1806) -> 10 | AD150: =LOOKUP($V150,Data!$A$6:$A$1806,Data!$I$6:$I$1806) -> 0 | AE150: =LOOKUP($V150,Data!$A$6:$A$1806,Data!$J$6:$J$1806) -> -103 | AF150: =LOOKUP($V150,Data!$A$6:$A$1806,Data!$K$6:$K$1806) -> 7589 | AG150: 60.00061035
B151: 40098.10399 | C151: =LOOKUP(B151,Data!$A$6:$A$1806,Data!B$6:B$1806) -> 59.92499924 | D151: =LOOKUP(B151,Data!$A$6:$A$1806,Data!C$6:C$1806) -> 3772.722412 | H151: 60.00061035 | I151: 61.3768129 | L151: 0.5522043855 | M151: 3774.396173 | N151: =AVERAGE(D$79:D151) -> 3789.070165 | O151: =AVERAGE(M$79:M151) -> 3777.368794 | P151: 3717.662757 | Q151: =AVERAGE(P$79:P151) -> 3698.059501 | V151: 40098.10399 | W151: =LOOKUP($V151,Data!$A$6:$A$1806,Data!$B$6:$B$1806) -> 59.92499924 | X151: =LOOKUP($V151,Data!$A$6:$A$1806,Data!$C$6:$C$1806) -> 3772.722412 | Y151: =LOOKUP($V151,Data!$A$6:$A$1806,Data!$D$6:$D$1806) -> 335 | Z151: =IF($Z$1="+",LOOKUP($V151,Data!$A$6:$A$1806,Data!$E$6:$E$1806)*-1,LOOKUP($V151,Data!$A$6:$A$1806,Data!$E$6:$E$1806)) -> -225.0180817 | AA151: =LOOKUP($V151,Data!$A$6:$A$1806,Data!$F$6:$F$1806) -> 0 | AB151: =LOOKUP($V151,Data!$A$6:$A$1806,Data!$G$6:$G$1806) -> 177 | AC151: =LOOKUP($V151,Data!$A$6:$A$1806,Data!$H$6:$H$1806) -> 10 | AD151: =LOOKUP($V151,Data!$A$6:$A$1806,Data!$I$6:$I$1806) -> 0 | AE151: =LOOKUP($V151,Data!$A$6:$A$1806,Data!$J$6:$J$1806) -> -103 | AF151: =LOOKUP($V151,Data!$A$6:$A$1806,Data!$K$6:$K$1806) -> 7589 | AG151: 60.00061035
B152: 40098.10402 | C152: =LOOKUP(B152,Data!$A$6:$A$1806,Data!B$6:B$1806) -> 59.9280014 | D152: =LOOKUP(B152,Data!$A$6:$A$1806,Data!C$6:C$1806) -> 3769.629639 | H152: 57.59887695 | I152: 60.05453532 | L152: 0.5522043855 | M152: 3773.626099 | N152: =AVERAGE(D$79:D152) -> 3788.807456 | O152: =AVERAGE(M$79:M152) -> 3777.318217 | P152: 3718.214961 | Q152: =AVERAGE(P$79:P152) -> 3698.335603 | V152: 40098.10402 | W152: =LOOKUP($V152,Data!$A$6:$A$1806,Data!$B$6:$B$1806) -> 59.9280014 | X152: =LOOKUP($V152,Data!$A$6:$A$1806,Data!$C$6:$C$1806) -> 3769.629639 | Y152: =LOOKUP($V152,Data!$A$6:$A$1806,Data!$D$6:$D$1806) -> 335 | Z152: =IF($Z$1="+",LOOKUP($V152,Data!$A$6:$A$1806,Data!$E$6:$E$1806)*-1,LOOKUP($V152,Data!$A$6:$A$1806,Data!$E$6:$E$1806)) -> -225.0180817 | AA152: =LOOKUP($V152,Data!$A$6:$A$1806,Data!$F$6:$F$1806) -> 0 | AB152: =LOOKUP($V152,Data!$A$6:$A$1806,Data!$G$6:$G$1806) -> 177.5 | AC152: =LOOKUP($V152,Data!$A$6:$A$1806,Data!$H$6:$H$1806) -> 10 | AD152: =LOOKUP($V152,Data!$A$6:$A$1806,Data!$I$6:$I$1806) -> 0 | AE152: =LOOKUP($V152,Data!$A$6:$A$1806,Data!$J$6:$J$1806) -> -103 | AF152: =LOOKUP($V152,Data!$A$6:$A$1806,Data!$K$6:$K$1806) -> 7590 | AG152: 57.59887695
B153: 40098.10404 | C153: =LOOKUP(B153,Data!$A$6:$A$1806,Data!B$6:B$1806) -> 59.93199921 | D153: =LOOKUP(B153,Data!$A$6:$A$1806,Data!C$6:C$1806) -> 3768.707031 | H153: 54.40063477 | I153: 58.07567013 | L153: 0.5522043855 | M153: 3772.199439 | N153: =AVERAGE(D$79:D153) -> 3788.53945 | O153: =AVERAGE(M$79:M153) -> 3777.249967 | P153: 3718.767166 | Q153: =AVERAGE(P$79:P153) -> 3698.611705 | V153: 40098.10404 | W153: =LOOKUP($V153,Data!$A$6:$A$1806,Data!$B$6:$B$1806) -> 59.93199921 | X153: =LOOKUP($V153,Data!$A$6:$A$1806,Data!$C$6:$C$1806) -> 3768.707031 | Y153: =LOOKUP($V153,Data!$A$6:$A$1806,Data!$D$6:$D$1806) -> 335 | Z153: =IF($Z$1="+",LOOKUP($V153,Data!$A$6:$A$1806,Data!$E$6:$E$1806)*-1,LOOKUP($V153,Data!$A$6:$A$1806,Data!$E$6:$E$1806)) -> -225.0180817 | AA153: =LOOKUP($V153,Data!$A$6:$A$1806,Data!$F$6:$F$1806) -> 0 | AB153: =LOOKUP($V153,Data!$A$6:$A$1806,Data!$G$6:$G$1806) -> 178 | AC153: =LOOKUP($V153,Data!$A$6:$A$1806,Data!$H$6:$H$1806) -> 10 | AD153: =LOOKUP($V153,Data!$A$6:$A$1806,Data!$I$6:$I$1806) -> 0 | AE153: =LOOKUP($V153,Data!$A$6:$A$1806,Data!$J$6:$J$1806) -> -103 | AF153: =LOOKUP($V153,Data!$A$6:$A$1806,Data!$K$6:$K$1806) -> 7590 | AG153: 54.40063477
B154: 40098.10406 | C154: =LOOKUP(B154,Data!$A$6:$A$1806,Data!B$6:B$1806) -> 59.93199921 | D154: =LOOKUP(B154,Data!$A$6:$A$1806,Data!C$6:C$1806) -> 3768.707031 | H154: 54.40063477 | I154: 56.78940775 | L154: 0.5522043855 | M154: 3771.465381 | N154: =AVERAGE(D$79:D154) -> 3788.278497 | O154: =AVERAGE(M$79:M154) -> 3777.173854 | P154: 3719.31937 | Q154: =AVERAGE(P$79:P154) -> 3698.887808 | V154: 40098.10406 | W154: =LOOKUP($V154,Data!$A$6:$A$1806,Data!$B$6:$B$1806) -> 59.93199921 | X154: =LOOKUP($V154,Data!$A$6:$A$1806,Data!$C$6:$C$1806) -> 3768.707031 | Y154: =LOOKUP($V154,Data!$A$6:$A$1806,Data!$D$6:$D$1806) -> 335 | Z154: =IF($Z$1="+",LOOKUP($V154,Data!$A$6:$A$1806,Data!$E$6:$E$1806)*-1,LOOKUP($V154,Data!$A$6:$A$1806,Data!$E$6:$E$1806)) -> -225.0180817 | AA154: =LOOKUP($V154,Data!$A$6:$A$1806,Data!$F$6:$F$1806) -> 0 | AB154: =LOOKUP($V154,Data!$A$6:$A$1806,Data!$G$6:$G$1806) -> 178 | AC154: =LOOKUP($V154,Data!$A$6:$A$1806,Data!$H$6:$H$1806) -> 10 | AD154: =LOOKUP($V154,Data!$A$6:$A$1806,Data!$I$6:$I$1806) -> 0 | AE154: =LOOKUP($V154,Data!$A$6:$A$1806,Data!$J$6:$J$1806) -> -103 | AF154: =LOOKUP($V154,Data!$A$6:$A$1806,Data!$K$6:$K$1806) -> 7590 | AG154: 54.40063477
B155: 40098.10409 | C155: =LOOKUP(B155,Data!$A$6:$A$1806,Data!B$6:B$1806) -> 59.92699814 | D155: =LOOKUP(B155,Data!$A$6:$A$1806,Data!C$6:C$1806) -> 3767.020996 | H155: 58.40148926 | I155: 57.35363628 | L155: 0.5522043855 | M155: 3772.581814 | N155: =AVERAGE(D$79:D155) -> 3788.002426 | O155: =AVERAGE(M$79:M155) -> 3777.114217 | P155: 3719.871574 | Q155: =AVERAGE(P$79:P155) -> 3699.16391 | V155: 40098.10409 | W155: =LOOKUP($V155,Data!$A$6:$A$1806,Data!$B$6:$B$1806) -> 59.92699814 | X155: =LOOKUP($V155,Data!$A$6:$A$1806,Data!$C$6:$C$1806) -> 3767.020996 | Y155: =LOOKUP($V155,Data!$A$6:$A$1806,Data!$D$6:$D$1806) -> 335 | Z155: =IF($Z$1="+",LOOKUP($V155,Data!$A$6:$A$1806,Data!$E$6:$E$1806)*-1,LOOKUP($V155,Data!$A$6:$A$1806,Data!$E$6:$E$1806)) -> -228.3651581 | AA155: =LOOKUP($V155,Data!$A$6:$A$1806,Data!$F$6:$F$1806) -> 0 | AB155: =LOOKUP($V155,Data!$A$6:$A$1806,Data!$G$6:$G$1806) -> 178.5 | AC155: =LOOKUP($V155,Data!$A$6:$A$1806,Data!$H$6:$H$1806) -> 10 | AD155: =LOOKUP($V155,Data!$A$6:$A$1806,Data!$I$6:$I$1806) -> 0 | AE155: =LOOKUP($V155,Data!$A$6:$A$1806,Data!$J$6:$J$1806) -> -103 | AF155: =LOOKUP($V155,Data!$A$6:$A$1806,Data!$K$6:$K$1806) -> 7590 | AG155: 58.40148926
B156: 40098.10411 | C156: =LOOKUP(B156,Data!$A$6:$A$1806,Data!B$6:B$1806) -> 59.93099976 | D156: =LOOKUP(B156,Data!$A$6:$A$1806,Data!C$6:C$1806) -> 3767.407959 | H156: 55.20019531 | I156: 56.59993194 | L156: 0.5522043855 | M156: 3772.380314 | N156: =AVERAGE(D$79:D156) -> 3787.738394 | O156: =AVERAGE(M$79:M156) -> 3777.053526 | P156: 3720.423779 | Q156: =AVERAGE(P$79:P156) -> 3699.440012 | V156: 40098.10411 | W156: =LOOKUP($V156,Data!$A$6:$A$1806,Data!$B$6:$B$1806) -> 59.93099976 | X156: =LOOKUP($V156,Data!$A$6:$A$1806,Data!$C$6:$C$1806) -> 3767.407959 | Y156: =LOOKUP($V156,Data!$A$6:$A$1806,Data!$D$6:$D$1806) -> 335 | Z156: =IF($Z$1="+",LOOKUP($V156,Data!$A$6:$A$1806,Data!$E$6:$E$1806)*-1,LOOKUP($V156,Data!$A$6:$A$1806,Data!$E$6:$E$1806)) -> -228.3651581 | AA156: =LOOKUP($V156,Data!$A$6:$A$1806,Data!$F$6:$F$1806) -> 0 | AB156: =LOOKUP($V156,Data!$A$6:$A$1806,Data!$G$6:$G$1806) -> 179 | AC156: =LOOKUP($V156,Data!$A$6:$A$1806,Data!$H$6:$H$1806) -> 10 | AD156: =LOOKUP($V156,Data!$A$6:$A$1806,Data!$I$6:$I$1806) -> 0 | AE156: =LOOKUP($V156,Data!$A$6:$A$1806,Data!$J$6:$J$1806) -> -103 | AF156: =LOOKUP($V156,Data!$A$6:$A$1806,Data!$K$6:$K$1806) -> 7591 | AG156: 55.20019531
B157: 40098.10413 | C157: =LOOKUP(B157,Data!$A$6:$A$1806,Data!B$6:B$1806) -> 59.93099976 | D157: =LOOKUP(B157,Data!$A$6:$A$1806,Data!C$6:C$1806) -> 3767.407959 | H157: 55.20019531 | I157: 56.11002412 | L157: 0.5522043855 | M157: 3772.44261 | N157: =AVERAGE(D$79:D157) -> 3787.481047 | O157: =AVERAGE(M$79:M157) -> 3776.99516 | P157: 3720.975983 | Q157: =AVERAGE(P$79:P157) -> 3699.716114 | V157: 40098.10413 | W157: =LOOKUP($V157,Data!$A$6:$A$1806,Data!$B$6:$B$1806) -> 59.93099976 | X157: =LOOKUP($V157,Data!$A$6:$A$1806,Data!$C$6:$C$1806) -> 3767.407959 | Y157: =LOOKUP($V157,Data!$A$6:$A$1806,Data!$D$6:$D$1806) -> 335 | Z157: =IF($Z$1="+",LOOKUP($V157,Data!$A$6:$A$1806,Data!$E$6:$E$1806)*-1,LOOKUP($V157,Data!$A$6:$A$1806,Data!$E$6:$E$1806)) -> -228.3651581 | AA157: =LOOKUP($V157,Data!$A$6:$A$1806,Data!$F$6:$F$1806) -> 0 | AB157: =LOOKUP($V157,Data!$A$6:$A$1806,Data!$G$6:$G$1806) -> 179 | AC157: =LOOKUP($V157,Data!$A$6:$A$1806,Data!$H$6:$H$1806) -> 10 | AD157: =LOOKUP($V157,Data!$A$6:$A$1806,Data!$I$6:$I$1806) -> 0 | AE157: =LOOKUP($V157,Data!$A$6:$A$1806,Data!$J$6:$J$1806) -> -103 | AF157: =LOOKUP($V157,Data!$A$6:$A$1806,Data!$K$6:$K$1806) -> 7591 | AG157: 55.20019531
B158: 40098.10416 | C158: =LOOKUP(B158,Data!$A$6:$A$1806,Data!B$6:B$1806) -> 59.92900085 | D158: =LOOKUP(B158,Data!$A$6:$A$1806,Data!C$6:C$1806) -> 3766.259033 | H158: 56.79931641 | I158: 56.35127642 | L158: 0.5522043855 | M158: 3773.236067 | N158: =AVERAGE(D$79:D158) -> 3787.215771 | O158: =AVERAGE(M$79:M158) -> 3776.948171 | P158: 3721.528187 | Q158: =AVERAGE(P$79:P158) -> 3699.992216 | V158: 40098.10416 | W158: =LOOKUP($V158,Data!$A$6:$A$1806,Data!$B$6:$B$1806) -> 59.92900085 | X158: =LOOKUP($V158,Data!$A$6:$A$1806,Data!$C$6:$C$1806) -> 3766.259033 | Y158: =LOOKUP($V158,Data!$A$6:$A$1806,Data!$D$6:$D$1806) -> 335 | Z158: =IF($Z$1="+",LOOKUP($V158,Data!$A$6:$A$1806,Data!$E$6:$E$1806)*-1,LOOKUP($V158,Data!$A$6:$A$1806,Data!$E$6:$E$1806)) -> -228.3651581 | AA158: =LOOKUP($V158,Data!$A$6:$A$1806,Data!$F$6:$F$1806) -> 0 | AB158: =LOOKUP($V158,Data!$A$6:$A$1806,Data!$G$6:$G$1806) -> 179.5 | AC158: =LOOKUP($V158,Data!$A$6:$A$1806,Data!$H$6:$H$1806) -> 10 | AD158: =LOOKUP($V158,Data!$A$6:$A$1806,Data!$I$6:$I$1806) -> 0 | AE158: =LOOKUP($V158,Data!$A$6:$A$1806,Data!$J$6:$J$1806) -> -103 | AF158: =LOOKUP($V158,Data!$A$6:$A$1806,Data!$K$6:$K$1806) -> 7591 | AG158: 56.79931641
B159: 40098.10418 | C159: =LOOKUP(B159,Data!$A$6:$A$1806,Data!B$6:B$1806) -> 59.93099976 | D159: =LOOKUP(B159,Data!$A$6:$A$1806,Data!C$6:C$1806) -> 3765.671631 | H159: 55.20019531 | I159: 55.94839803 | L159: 0.5522043855 | M159: 3773.385393 | N159: =AVERAGE(D$79:D159) -> 3786.949794 | O159: =AVERAGE(M$79:M159) -> 3776.904186 | P159: 3722.080392 | Q159: =AVERAGE(P$79:P159) -> 3700.268319 | V159: 40098.10418 | W159: =LOOKUP($V159,Data!$A$6:$A$1806,Data!$B$6:$B$1806) -> 59.93099976 | X159: =LOOKUP($V159,Data!$A$6:$A$1806,Data!$C$6:$C$1806) -> 3765.671631 | Y159: =LOOKUP($V159,Data!$A$6:$A$1806,Data!$D$6:$D$1806) -> 335 | Z159: =IF($Z$1="+",LOOKUP($V159,Data!$A$6:$A$1806,Data!$E$6:$E$1806)*-1,LOOKUP($V159,Data!$A$6:$A$1806,Data!$E$6:$E$1806)) -> -228.3651581 | AA159: =LOOKUP($V159,Data!$A$6:$A$1806,Data!$F$6:$F$1806) -> 0 | AB159: =LOOKUP($V159,Data!$A$6:$A$1806,Data!$G$6:$G$1806) -> 180 | AC159: =LOOKUP($V159,Data!$A$6:$A$1806,Data!$H$6:$H$1806) -> 10 | AD159: =LOOKUP($V159,Data!$A$6:$A$1806,Data!$I$6:$I$1806) -> 0 | AE159: =LOOKUP($V159,Data!$A$6:$A$1806,Data!$J$6:$J$1806) -> -103 | AF159: =LOOKUP($V159,Data!$A$6:$A$1806,Data!$K$6:$K$1806) -> 7591 | AG159: 55.20019531
B160: 40098.1042 | C160: =LOOKUP(B160,Data!$A$6:$A$1806,Data!B$6:B$1806) -> 59.93099976 | D160: =LOOKUP(B160,Data!$A$6:$A$1806,Data!C$6:C$1806) -> 3765.671631 | H160: 55.20019531 | I160: 55.68652708 | L160: 0.5522043855 | M160: 3773.675726 | N160: =AVERAGE(D$79:D160) -> 3786.690305 | O160: =AVERAGE(M$79:M160) -> 3776.864815 | P160: 3722.632596 | Q160: =AVERAGE(P$79:P160) -> 3700.544421 | V160: 40098.1042 | W160: =LOOKUP($V160,Data!$A$6:$A$1806,Data!$B$6:$B$1806) -> 59.93099976 | X160: =LOOKUP($V160,Data!$A$6:$A$1806,Data!$C$6:$C$1806) -> 3765.671631 | Y160: =LOOKUP($V160,Data!$A$6:$A$1806,Data!$D$6:$D$1806) -> 335 | Z160: =IF($Z$1="+",LOOKUP($V160,Data!$A$6:$A$1806,Data!$E$6:$E$1806)*-1,LOOKUP($V160,Data!$A$6:$A$1806,Data!$E$6:$E$1806)) -> -228.3651581 | AA160: =LOOKUP($V160,Data!$A$6:$A$1806,Data!$F$6:$F$1806) -> 0 | AB160: =LOOKUP($V160,Data!$A$6:$A$1806,Data!$G$6:$G$1806) -> 180 | AC160: =LOOKUP($V160,Data!$A$6:$A$1806,Data!$H$6:$H$1806) -> 10 | AD160: =LOOKUP($V160,Data!$A$6:$A$1806,Data!$I$6:$I$1806) -> 0 | AE160: =LOOKUP($V160,Data!$A$6:$A$1806,Data!$J$6:$J$1806) -> -103 | AF160: =LOOKUP($V160,Data!$A$6:$A$1806,Data!$K$6:$K$1806) -> 7591 | AG160: 55.20019531
B161: 40098.10422 | C161: =LOOKUP(B161,Data!$A$6:$A$1806,Data!B$6:B$1806) -> 59.93700027 | D161: =LOOKUP(B161,Data!$A$6:$A$1806,Data!C$6:C$1806) -> 3766.122559 | H161: 50.39978027 | I161: 53.8361657 | L161: 0.5522043855 | M161: 3772.377569 | N161: =AVERAGE(D$79:D161) -> 3786.4425 | O161: =AVERAGE(M$79:M161) -> 3776.810752 | P161: 3723.184801 | Q161: =AVERAGE(P$79:P161) -> 3700.820523 | V161: 40098.10422 | W161: =LOOKUP($V161,Data!$A$6:$A$1806,Data!$B$6:$B$1806) -> 59.93700027 | X161: =LOOKUP($V161,Data!$A$6:$A$1806,Data!$C$6:$C$1806) -> 3766.122559 | Y161: =LOOKUP($V161,Data!$A$6:$A$1806,Data!$D$6:$D$1806) -> 335 | Z161: =IF($Z$1="+",LOOKUP($V161,Data!$A$6:$A$1806,Data!$E$6:$E$1806)*-1,LOOKUP($V161,Data!$A$6:$A$1806,Data!$E$6:$E$1806)) -> -228.3651581 | AA161: =LOOKUP($V161,Data!$A$6:$A$1806,Data!$F$6:$F$1806) -> 0 | AB161: =LOOKUP($V161,Data!$A$6:$A$1806,Data!$G$6:$G$1806) -> 180.5 | AC161: =LOOKUP($V161,Data!$A$6:$A$1806,Data!$H$6:$H$1806) -> 10 | AD161: =LOOKUP($V161,Data!$A$6:$A$1806,Data!$I$6:$I$1806) -> 0 | AE161: =LOOKUP($V161,Data!$A$6:$A$1806,Data!$J$6:$J$1806) -> -103 | AF161: =LOOKUP($V161,Data!$A$6:$A$1806,Data!$K$6:$K$1806) -> 7592 | AG161: 50.39978027
B162: 40098.10425 | C162: =LOOKUP(B162,Data!$A$6:$A$1806,Data!B$6:B$1806) -> 59.94499969 | D162: =LOOKUP(B162,Data!$A$6:$A$1806,Data!C$6:C$1806) -> 3765.10498 | H162: 44.00024414 | I162: 50.39359315 | L162: 0.5522043855 | M162: 3769.487201 | N162: =AVERAGE(D$79:D162) -> 3786.188482 | O162: =AVERAGE(M$79:M162) -> 3776.723567 | P162: 3723.737005 | Q162: =AVERAGE(P$79:P162) -> 3701.096625 | V162: 40098.10425 | W162: =LOOKUP($V162,Data!$A$6:$A$1806,Data!$B$6:$B$1806) -> 59.94499969 | X162: =LOOKUP($V162,Data!$A$6:$A$1806,Data!$C$6:$C$1806) -> 3765.10498 | Y162: =LOOKUP($V162,Data!$A$6:$A$1806,Data!$D$6:$D$1806) -> 335 | Z162: =IF($Z$1="+",LOOKUP($V162,Data!$A$6:$A$1806,Data!$E$6:$E$1806)*-1,LOOKUP($V162,Data!$A$6:$A$1806,Data!$E$6:$E$1806)) -> -234.0753326 | AA162: =LOOKUP($V162,Data!$A$6:$A$1806,Data!$F$6:$F$1806) -> 0 | AB162: =LOOKUP($V162,Data!$A$6:$A$1806,Data!$G$6:$G$1806) -> 181 | AC162: =LOOKUP($V162,Data!$A$6:$A$1806,Data!$H$6:$H$1806) -> 10 | AD162: =LOOKUP($V162,Data!$A$6:$A$1806,Data!$I$6:$I$1806) -> 0 | AE162: =LOOKUP($V162,Data!$A$6:$A$1806,Data!$J$6:$J$1806) -> -103 | AF162: =LOOKUP($V162,Data!$A$6:$A$1806,Data!$K$6:$K$1806) -> 7592 | AG162: 44.00024414
B163: 40098.10427 | C163: =LOOKUP(B163,Data!$A$6:$A$1806,Data!B$6:B$1806) -> 59.94499969 | D163: =LOOKUP(B163,Data!$A$6:$A$1806,Data!C$6:C$1806) -> 3765.10498 | H163: 44.00024414 | I163: 48.155921 | L163: 0.5522043855 | M163: 3767.801733 | N163: =AVERAGE(D$79:D163) -> 3785.940441 | O163: =AVERAGE(M$79:M163) -> 3776.618604 | P163: 3724.289209 | Q163: =AVERAGE(P$79:P163) -> 3701.372727 | V163: 40098.10427 | W163: =LOOKUP($V163,Data!$A$6:$A$1806,Data!$B$6:$B$1806) -> 59.94499969 | X163: =LOOKUP($V163,Data!$A$6:$A$1806,Data!$C$6:$C$1806) -> 3765.10498 | Y163: =LOOKUP($V163,Data!$A$6:$A$1806,Data!$D$6:$D$1806) -> 335 | Z163: =IF($Z$1="+",LOOKUP($V163,Data!$A$6:$A$1806,Data!$E$6:$E$1806)*-1,LOOKUP($V163,Data!$A$6:$A$1806,Data!$E$6:$E$1806)) -> -234.0753326 | AA163: =LOOKUP($V163,Data!$A$6:$A$1806,Data!$F$6:$F$1806) -> 0 | AB163: =LOOKUP($V163,Data!$A$6:$A$1806,Data!$G$6:$G$1806) -> 181 | AC163: =LOOKUP($V163,Data!$A$6:$A$1806,Data!$H$6:$H$1806) -> 10 | AD163: =LOOKUP($V163,Data!$A$6:$A$1806,Data!$I$6:$I$1806) -> 0 | AE163: =LOOKUP($V163,Data!$A$6:$A$1806,Data!$J$6:$J$1806) -> -103 | AF163: =LOOKUP($V163,Data!$A$6:$A$1806,Data!$K$6:$K$1806) -> 7592 | AG163: 44.00024414
B164: 40098.10429 | C164: =LOOKUP(B164,Data!$A$6:$A$1806,Data!B$6:B$1806) -> 59.94900131 | D164: =LOOKUP(B164,Data!$A$6:$A$1806,Data!C$6:C$1806) -> 3758.387207 | H164: 40.7989502 | I164: 45.58098122 | L164: 0.5522043855 | M164: 3765.778998 | N164: =AVERAGE(D$79:D164) -> 3785.620055 | O164: =AVERAGE(M$79:M164) -> 3776.492562 | P164: 3724.841414 | Q164: =AVERAGE(P$79:P164) -> 3701.64883 | V164: 40098.10429 | W164: =LOOKUP($V164,Data!$A$6:$A$1806,Data!$B$6:$B$1806) -> 59.94900131 | X164: =LOOKUP($V164,Data!$A$6:$A$1806,Data!$C$6:$C$1806) -> 3758.387207 | Y164: =LOOKUP($V164,Data!$A$6:$A$1806,Data!$D$6:$D$1806) -> 335 | Z164: =IF($Z$1="+",LOOKUP($V164,Data!$A$6:$A$1806,Data!$E$6:$E$1806)*-1,LOOKUP($V164,Data!$A$6:$A$1806,Data!$E$6:$E$1806)) -> -234.0753326 | AA164: =LOOKUP($V164,Data!$A$6:$A$1806,Data!$F$6:$F$1806) -> 0 | AB164: =LOOKUP($V164,Data!$A$6:$A$1806,Data!$G$6:$G$1806) -> 181.5 | AC164: =LOOKUP($V164,Data!$A$6:$A$1806,Data!$H$6:$H$1806) -> 10 | AD164: =LOOKUP($V164,Data!$A$6:$A$1806,Data!$I$6:$I$1806) -> 0 | AE164: =LOOKUP($V164,Data!$A$6:$A$1806,Data!$J$6:$J$1806) -> -103 | AF164: =LOOKUP($V164,Data!$A$6:$A$1806,Data!$K$6:$K$1806) -> 7593 | AG164: 40.7989502
B165: 40098.10432 | C165: =LOOKUP(B165,Data!$A$6:$A$1806,Data!B$6:B$1806) -> 59.94200134 | D165: =LOOKUP(B165,Data!$A$6:$A$1806,Data!C$6:C$1806) -> 3753.922363 | H165: 46.39892578 | I165: 45.86726181 | L165: 0.5522043855 | M165: 3766.617483 | N165: =AVERAGE(D$79:D165) -> 3785.255713 | O165: =AVERAGE(M$79:M165) -> 3776.379055 | P165: 3725.393618 | Q165: =AVERAGE(P$79:P165) -> 3701.924932 | V165: 40098.10432 | W165: =LOOKUP($V165,Data!$A$6:$A$1806,Data!$B$6:$B$1806) -> 59.94200134 | X165: =LOOKUP($V165,Data!$A$6:$A$1806,Data!$C$6:$C$1806) -> 3753.922363 | Y165: =LOOKUP($V165,Data!$A$6:$A$1806,Data!$D$6:$D$1806) -> 335 | Z165: =IF($Z$1="+",LOOKUP($V165,Data!$A$6:$A$1806,Data!$E$6:$E$1806)*-1,LOOKUP($V165,Data!$A$6:$A$1806,Data!$E$6:$E$1806)) -> -234.0753326 | AA165: =LOOKUP($V165,Data!$A$6:$A$1806,Data!$F$6:$F$1806) -> 0 | AB165: =LOOKUP($V165,Data!$A$6:$A$1806,Data!$G$6:$G$1806) -> 182 | AC165: =LOOKUP($V165,Data!$A$6:$A$1806,Data!$H$6:$H$1806) -> 10 | AD165: =LOOKUP($V165,Data!$A$6:$A$1806,Data!$I$6:$I$1806) -> 0 | AE165: =LOOKUP($V165,Data!$A$6:$A$1806,Data!$J$6:$J$1806) -> -103 | AF165: =LOOKUP($V165,Data!$A$6:$A$1806,Data!$K$6:$K$1806) -> 7594 | AG165: 46.39892578
B166: 40098.10434 | C166: =LOOKUP(B166,Data!$A$6:$A$1806,Data!B$6:B$1806) -> 59.94200134 | D166: =LOOKUP(B166,Data!$A$6:$A$1806,Data!C$6:C$1806) -> 3753.922363 | H166: 46.39892578 | I166: 46.0533442 | L166: 0.5522043855 | M166: 3767.35577 | N166: =AVERAGE(D$79:D166) -> 3784.899653 | O166: =AVERAGE(M$79:M166) -> 3776.276518 | P166: 3725.945823 | Q166: =AVERAGE(P$79:P166) -> 3702.201034 | V166: 40098.10434 | W166: =LOOKUP($V166,Data!$A$6:$A$1806,Data!$B$6:$B$1806) -> 59.94200134 | X166: =LOOKUP($V166,Data!$A$6:$A$1806,Data!$C$6:$C$1806) -> 3753.922363 | Y166: =LOOKUP($V166,Data!$A$6:$A$1806,Data!$D$6:$D$1806) -> 335 | Z166: =IF($Z$1="+",LOOKUP($V166,Data!$A$6:$A$1806,Data!$E$6:$E$1806)*-1,LOOKUP($V166,Data!$A$6:$A$1806,Data!$E$6:$E$1806)) -> -234.0753326 | AA166: =LOOKUP($V166,Data!$A$6:$A$1806,Data!$F$6:$F$1806) -> 0 | AB166: =LOOKUP($V166,Data!$A$6:$A$1806,Data!$G$6:$G$1806) -> 182 | AC166: =LOOKUP($V166,Data!$A$6:$A$1806,Data!$H$6:$H$1806) -> 10 | AD166: =LOOKUP($V166,Data!$A$6:$A$1806,Data!$I$6:$I$1806) -> 0 | AE166: =LOOKUP($V166,Data!$A$6:$A$1806,Data!$J$6:$J$1806) -> -103 | AF166: =LOOKUP($V166,Data!$A$6:$A$1806,Data!$K$6:$K$1806) -> 7594 | AG166: 46.39892578
B167: 40098.10436 | C167: =LOOKUP(B167,Data!$A$6:$A$1806,Data!B$6:B$1806) -> 59.94100189 | D167: =LOOKUP(B167,Data!$A$6:$A$1806,Data!C$6:C$1806) -> 3746.888672 | H167: 47.19848633 | I167: 46.45414395 | L167: 0.5522043855 | M167: 3768.308774 | N167: =AVERAGE(D$79:D167) -> 3784.472563 | O167: =AVERAGE(M$79:M167) -> 3776.186993 | P167: 3726.498027 | Q167: =AVERAGE(P$79:P167) -> 3702.477136 | V167: 40098.10436 | W167: =LOOKUP($V167,Data!$A$6:$A$1806,Data!$B$6:$B$1806) -> 59.94100189 | X167: =LOOKUP($V167,Data!$A$6:$A$1806,Data!$C$6:$C$1806) -> 3746.888672 | Y167: =LOOKUP($V167,Data!$A$6:$A$1806,Data!$D$6:$D$1806) -> 335 | Z167: =IF($Z$1="+",LOOKUP($V167,Data!$A$6:$A$1806,Data!$E$6:$E$1806)*-1,LOOKUP($V167,Data!$A$6:$A$1806,Data!$E$6:$E$1806)) -> -234.0753326 | AA167: =LOOKUP($V167,Data!$A$6:$A$1806,Data!$F$6:$F$1806) -> 0 | AB167: =LOOKUP($V167,Data!$A$6:$A$1806,Data!$G$6:$G$1806) -> 182.5 | AC167: =LOOKUP($V167,Data!$A$6:$A$1806,Data!$H$6:$H$1806) -> 10 | AD167: =LOOKUP($V167,Data!$A$6:$A$1806,Data!$I$6:$I$1806) -> 0 | AE167: =LOOKUP($V167,Data!$A$6:$A$1806,Data!$J$6:$J$1806) -> -103 | AF167: =LOOKUP($V167,Data!$A$6:$A$1806,Data!$K$6:$K$1806) -> 7595 | AG167: 47.19848633
B168: 40098.10439 | C168: =LOOKUP(B168,Data!$A$6:$A$1806,Data!B$6:B$1806) -> 59.94499969 | D168: =LOOKUP(B168,Data!$A$6:$A$1806,Data!C$6:C$1806) -> 3747.875488 | H168: 44.00024414 | I168: 45.59527901 | L168: 0.5522043855 | M168: 3768.002113 | N168: =AVERAGE(D$79:D168) -> 3784.065929 | O168: =AVERAGE(M$79:M168) -> 3776.09605 | P168: 3727.050231 | Q168: =AVERAGE(P$79:P168) -> 3702.753238 | V168: 40098.10439 | W168: =LOOKUP($V168,Data!$A$6:$A$1806,Data!$B$6:$B$1806) -> 59.94499969 | X168: =LOOKUP($V168,Data!$A$6:$A$1806,Data!$C$6:$C$1806) -> 3747.875488 | Y168: =LOOKUP($V168,Data!$A$6:$A$1806,Data!$D$6:$D$1806) -> 335 | Z168: =IF($Z$1="+",LOOKUP($V168,Data!$A$6:$A$1806,Data!$E$6:$E$1806)*-1,LOOKUP($V168,Data!$A$6:$A$1806,Data!$E$6:$E$1806)) -> -234.0753326 | AA168: =LOOKUP($V168,Data!$A$6:$A$1806,Data!$F$6:$F$1806) -> 0 | AB168: =LOOKUP($V168,Data!$A$6:$A$1806,Data!$G$6:$G$1806) -> 183 | AC168: =LOOKUP($V168,Data!$A$6:$A$1806,Data!$H$6:$H$1806) -> 10 | AD168: =LOOKUP($V168,Data!$A$6:$A$1806,Data!$I$6:$I$1806) -> 0 | AE168: =LOOKUP($V168,Data!$A$6:$A$1806,Data!$J$6:$J$1806) -> -103 | AF168: =LOOKUP($V168,Data!$A$6:$A$1806,Data!$K$6:$K$1806) -> 7655 | AG168: 44.00024414
B169: 40098.10441 | C169: =LOOKUP(B169,Data!$A$6:$A$1806,Data!B$6:B$1806) -> 59.94499969 | D169: =LOOKUP(B169,Data!$A$6:$A$1806,Data!C$6:C$1806) -> 3747.875488 | H169: 44.00024414 | I169: 45.03701681 | L169: 0.5522043855 | M169: 3767.996056 | N169: =AVERAGE(D$79:D169) -> 3783.668232 | O169: =AVERAGE(M$79:M169) -> 3776.007039 | P169: 3727.602436 | Q169: =AVERAGE(P$79:P169) -> 3703.029341 | V169: 40098.10441 | W169: =LOOKUP($V169,Data!$A$6:$A$1806,Data!$B$6:$B$1806) -> 59.94499969 | X169: =LOOKUP($V169,Data!$A$6:$A$1806,Data!$C$6:$C$1806) -> 3747.875488 | Y169: =LOOKUP($V169,Data!$A$6:$A$1806,Data!$D$6:$D$1806) -> 335 | Z169: =IF($Z$1="+",LOOKUP($V169,Data!$A$6:$A$1806,Data!$E$6:$E$1806)*-1,LOOKUP($V169,Data!$A$6:$A$1806,Data!$E$6:$E$1806)) -> -234.0753326 | AA169: =LOOKUP($V169,Data!$A$6:$A$1806,Data!$F$6:$F$1806) -> 0 | AB169: =LOOKUP($V169,Data!$A$6:$A$1806,Data!$G$6:$G$1806) -> 183 | AC169: =LOOKUP($V169,Data!$A$6:$A$1806,Data!$H$6:$H$1806) -> 10 | AD169: =LOOKUP($V169,Data!$A$6:$A$1806,Data!$I$6:$I$1806) -> 0 | AE169: =LOOKUP($V169,Data!$A$6:$A$1806,Data!$J$6:$J$1806) -> -103 | AF169: =LOOKUP($V169,Data!$A$6:$A$1806,Data!$K$6:$K$1806) -> 7655 | AG169: 44.00024414
B170: 40098.10443 | C170: =LOOKUP(B170,Data!$A$6:$A$1806,Data!B$6:B$1806) -> 59.94800186 | D170: =LOOKUP(B170,Data!$A$6:$A$1806,Data!C$6:C$1806) -> 3748.661133 | H170: 41.59851074 | I170: 43.83353969 | L170: 0.5522043855 | M170: 3767.344783 | N170: =AVERAGE(D$79:D170) -> 3783.28772 | O170: =AVERAGE(M$79:M170) -> 3775.912884 | P170: 3728.15464 | Q170: =AVERAGE(P$79:P170) -> 3703.305443 | V170: 40098.10443 | W170: =LOOKUP($V170,Data!$A$6:$A$1806,Data!$B$6:$B$1806) -> 59.94800186 | X170: =LOOKUP($V170,Data!$A$6:$A$1806,Data!$C$6:$C$1806) -> 3748.661133 | Y170: =LOOKUP($V170,Data!$A$6:$A$1806,Data!$D$6:$D$1806) -> 335 | Z170: =IF($Z$1="+",LOOKUP($V170,Data!$A$6:$A$1806,Data!$E$6:$E$1806)*-1,LOOKUP($V170,Data!$A$6:$A$1806,Data!$E$6:$E$1806)) -> -228.7981567 | AA170: =LOOKUP($V170,Data!$A$6:$A$1806,Data!$F$6:$F$1806) -> 0 | AB170: =LOOKUP($V170,Data!$A$6:$A$1806,Data!$G$6:$G$1806) -> 183.5 | AC170: =LOOKUP($V170,Data!$A$6:$A$1806,Data!$H$6:$H$1806) -> 10 | AD170: =LOOKUP($V170,Data!$A$6:$A$1806,Data!$I$6:$I$1806) -> 0 | AE170: =LOOKUP($V170,Data!$A$6:$A$1806,Data!$J$6:$J$1806) -> -103 | AF170: =LOOKUP($V170,Data!$A$6:$A$1806,Data!$K$6:$K$1806) -> 7656 | AG170: 41.59851074
B171: 40098.10446 | C171: =LOOKUP(B171,Data!$A$6:$A$1806,Data!B$6:B$1806) -> 59.94900131 | D171: =LOOKUP(B171,Data!$A$6:$A$1806,Data!C$6:C$1806) -> 3746.706055 | H171: 40.7989502 | I171: =L$13*H171+(1-L$13)*I170 -> 42.77143336 | L171: 0.5522043855 | M171: 3766.834881 | N171: =AVERAGE(D$79:D171) -> 3782.894368 | O171: =AVERAGE(M$79:M171) -> 3775.815271 | P171: 3728.706844 | Q171: =AVERAGE(P$79:P171) -> 3703.581545 | V171: 40098.10446 | W171: =LOOKUP($V171,Data!$A$6:$A$1806,Data!$B$6:$B$1806) -> 59.94900131 | X171: =LOOKUP($V171,Data!$A$6:$A$1806,Data!$C$6:$C$1806) -> 3746.706055 | Y171: =LOOKUP($V171,Data!$A$6:$A$1806,Data!$D$6:$D$1806) -> 335 | Z171: =IF($Z$1="+",LOOKUP($V171,Data!$A$6:$A$1806,Data!$E$6:$E$1806)*-1,LOOKUP($V171,Data!$A$6:$A$1806,Data!$E$6:$E$1806)) -> -228.7981567 | AA171: =LOOKUP($V171,Data!$A$6:$A$1806,Data!$F$6:$F$1806) -> 0 | AB171: =LOOKUP($V171,Data!$A$6:$A$1806,Data!$G$6:$G$1806) -> 184 | AC171: =LOOKUP($V171,Data!$A$6:$A$1806,Data!$H$6:$H$1806) -> 10 | AD171: =LOOKUP($V171,Data!$A$6:$A$1806,Data!$I$6:$I$1806) -> 0 | AE171: =LOOKUP($V171,Data!$A$6:$A$1806,Data!$J$6:$J$1806) -> -103 | AF171: =LOOKUP($V171,Data!$A$6:$A$1806,Data!$K$6:$K$1806) -> 7656 | AG171: 40.7989502
B172: 40098.10448 | C172: =LOOKUP(B172,Data!$A$6:$A$1806,Data!B$6:B$1806) -> 59.94900131 | D172: =LOOKUP(B172,Data!$A$6:$A$1806,Data!C$6:C$1806) -> 3746.706055 | H172: =(IF((C172-L$2)>0,((C172-L$2-L$5)/((L$4*L$2)-L$5)*L$3*-1),((C172-L$2+L$5)/((L$4*L$2)-L$5)*L$3*-1))) -> 40.7989502 | I172: 42.08106425 | L172: 0.5522043855 | M172: 3766.696716 | N172: =AVERAGE(D$79:D172) -> 3782.509386 | O172: =AVERAGE(M$79:M172) -> 3775.718265 | P172: 3729.259049 | Q172: =AVERAGE(P$79:P172) -> 3703.857647 | V172: 40098.10448 | W172: =LOOKUP($V172,Data!$A$6:$A$1806,Data!$B$6:$B$1806) -> 59.94900131 | X172: =LOOKUP($V172,Data!$A$6:$A$1806,Data!$C$6:$C$1806) -> 3746.706055 | Y172: =LOOKUP($V172,Data!$A$6:$A$1806,Data!$D$6:$D$1806) -> 335 | Z172: =IF($Z$1="+",LOOKUP($V172,Data!$A$6:$A$1806,Data!$E$6:$E$1806)*-1,LOOKUP($V172,Data!$A$6:$A$1806,Data!$E$6:$E$1806)) -> -228.7981567 | AA172: =LOOKUP($V172,Data!$A$6:$A$1806,Data!$F$6:$F$1806) -> 0 | AB172: =LOOKUP($V172,Data!$A$6:$A$1806,Data!$G$6:$G$1806) -> 184 | AC172: =LOOKUP($V172,Data!$A$6:$A$1806,Data!$H$6:$H$1806) -> 10 | AD172: =LOOKUP($V172,Data!$A$6:$A$1806,Data!$I$6:$I$1806) -> 0 | AE172: =LOOKUP($V172,Data!$A$6:$A$1806,Data!$J$6:$J$1806) -> -103 | AF172: =LOOKUP($V172,Data!$A$6:$A$1806,Data!$K$6:$K$1806) -> 7656 | AG172: =(IF((W172-$L$2)>0,((W172-$L$2-$L$5)/(($L$4*$L$2)-$L$5)*$L$3*-1),((W172-$L$2+$L$5)/(($L$4*$L$2)-$L$5)*$L$3*-1))) -> 40.7989502
B173: 40098.1045 | C173: =LOOKUP(B173,Data!$A$6:$A$1806,Data!B$6:B$1806) -> 59.95100021 | D173: =LOOKUP(B173,Data!$A$6:$A$1806,Data!C$6:C$1806) -> 3742.741455 | H173: 39.1998291 | I173: 41.07263195 | L173: 0.5522043855 | M173: 3766.240488 | N173: =AVERAGE(D$79:D173) -> 3782.090777 | O173: =AVERAGE(M$79:M173) -> 3775.618499 | P173: 3729.811253 | Q173: =AVERAGE(P$79:P173) -> 3704.133749 | V173: 40098.1045 | W173: =LOOKUP($V173,Data!$A$6:$A$1806,Data!$B$6:$B$1806) -> 59.95100021 | X173: =LOOKUP($V173,Data!$A$6:$A$1806,Data!$C$6:$C$1806) -> 3742.741455 | Y173: =LOOKUP($V173,Data!$A$6:$A$1806,Data!$D$6:$D$1806) -> 335 | Z173: =IF($Z$1="+",LOOKUP($V173,Data!$A$6:$A$1806,Data!$E$6:$E$1806)*-1,LOOKUP($V173,Data!$A$6:$A$1806,Data!$E$6:$E$1806)) -> -228.7981567 | AA173: =LOOKUP($V173,Data!$A$6:$A$1806,Data!$F$6:$F$1806) -> 0 | AB173: =LOOKUP($V173,Data!$A$6:$A$1806,Data!$G$6:$G$1806) -> 184.5 | AC173: =LOOKUP($V173,Data!$A$6:$A$1806,Data!$H$6:$H$1806) -> 10 | AD173: =LOOKUP($V173,Data!$A$6:$A$1806,Data!$I$6:$I$1806) -> 0 | AE173: =LOOKUP($V173,Data!$A$6:$A$1806,Data!$J$6:$J$1806) -> -103 | AF173: =LOOKUP($V173,Data!$A$6:$A$1806,Data!$K$6:$K$1806) -> 7657 | AG173: 39.1998291
B174: =B173+TIME(0,0,$B$1) -> 40098.10453 | C174: =LOOKUP(B174,Data!$A$6:$A$1806,Data!B$6:B$1806) -> 59.95299911 | D174: =LOOKUP(B174,Data!$A$6:$A$1806,Data!C$6:C$1806) -> 3740.259033 | H174: 37.60070801 | I174: 39.85745857 | L174: 0.5522043855 | M174: 3765.577519 | N174: =AVERAGE(D$79:D174) -> 3781.655029 | O174: =AVERAGE(M$79:M174) -> 3775.513905 | P174: 3730.363458 | Q174: =AVERAGE(P$79:P174) -> 3704.409851 | V174: 40098.10453 | W174: =LOOKUP($V174,Data!$A$6:$A$1806,Data!$B$6:$B$1806) -> 59.95299911 | X174: =LOOKUP($V174,Data!$A$6:$A$1806,Data!$C$6:$C$1806) -> 3740.259033 | Y174: =LOOKUP($V174,Data!$A$6:$A$1806,Data!$D$6:$D$1806) -> 335 | Z174: =IF($Z$1="+",LOOKUP($V174,Data!$A$6:$A$1806,Data!$E$6:$E$1806)*-1,LOOKUP($V174,Data!$A$6:$A$1806,Data!$E$6:$E$1806)) -> -228.7981567 | AA174: =LOOKUP($V174,Data!$A$6:$A$1806,Data!$F$6:$F$1806) -> 0 | AB174: =LOOKUP($V174,Data!$A$6:$A$1806,Data!$G$6:$G$1806) -> 185 | AC174: =LOOKUP($V174,Data!$A$6:$A$1806,Data!$H$6:$H$1806) -> 10 | AD174: =LOOKUP($V174,Data!$A$6:$A$1806,Data!$I$6:$I$1806) -> 0 | AE174: =LOOKUP($V174,Data!$A$6:$A$1806,Data!$J$6:$J$1806) -> -103 | AF174: =LOOKUP($V174,Data!$A$6:$A$1806,Data!$K$6:$K$1806) -> 7657 | AG174: 37.60070801
B175: 40098.10455 | C175: =LOOKUP(B175,Data!$A$6:$A$1806,Data!B$6:B$1806) -> 59.95299911 | D175: =LOOKUP(B175,Data!$A$6:$A$1806,Data!C$6:C$1806) -> 3740.259033 | H175: 37.60070801 | I175: 39.06759587 | L175: 0.5522043855 | M175: 3765.339861 | N175: =AVERAGE(D$79:D175) -> 3781.228266 | O175: =AVERAGE(M$79:M175) -> 3775.409018 | P175: 3730.915662 | Q175: =AVERAGE(P$79:P175) -> 3704.685954 | V175: 40098.10455 | W175: =LOOKUP($V175,Data!$A$6:$A$1806,Data!$B$6:$B$1806) -> 59.95299911 | X175: =LOOKUP($V175,Data!$A$6:$A$1806,Data!$C$6:$C$1806) -> 3740.259033 | Y175: =LOOKUP($V175,Data!$A$6:$A$1806,Data!$D$6:$D$1806) -> 335 | Z175: =IF($Z$1="+",LOOKUP($V175,Data!$A$6:$A$1806,Data!$E$6:$E$1806)*-1,LOOKUP($V175,Data!$A$6:$A$1806,Data!$E$6:$E$1806)) -> -228.7981567 | AA175: =LOOKUP($V175,Data!$A$6:$A$1806,Data!$F$6:$F$1806) -> 0 | AB175: =LOOKUP($V175,Data!$A$6:$A$1806,Data!$G$6:$G$1806) -> 185 | AC175: =LOOKUP($V175,Data!$A$6:$A$1806,Data!$H$6:$H$1806) -> 10 | AD175: =LOOKUP($V175,Data!$A$6:$A$1806,Data!$I$6:$I$1806) -> 0 | AE175: =LOOKUP($V175,Data!$A$6:$A$1806,Data!$J$6:$J$1806) -> -103 | AF175: =LOOKUP($V175,Data!$A$6:$A$1806,Data!$K$6:$K$1806) -> 7657 | AG175: 37.60070801
B176: 40098.10457 | C176: =LOOKUP(B176,Data!$A$6:$A$1806,Data!B$6:B$1806) -> 59.95100021 | D176: =LOOKUP(B176,Data!$A$6:$A$1806,Data!C$6:C$1806) -> 3731.38208 | H176: 39.1998291 | I176: 39.1138775 | L176: 0.5522043855 | M176: 3765.938347 | N176: =AVERAGE(D$79:D176) -> 3780.719632 | O176: =AVERAGE(M$79:M176) -> 3775.312379 | P176: 3731.467866 | Q176: =AVERAGE(P$79:P176) -> 3704.962056 | V176: 40098.10457 | W176: =LOOKUP($V176,Data!$A$6:$A$1806,Data!$B$6:$B$1806) -> 59.95100021 | X176: =LOOKUP($V176,Data!$A$6:$A$1806,Data!$C$6:$C$1806) -> 3731.38208 | Y176: =LOOKUP($V176,Data!$A$6:$A$1806,Data!$D$6:$D$1806) -> 335 | Z176: =IF($Z$1="+",LOOKUP($V176,Data!$A$6:$A$1806,Data!$E$6:$E$1806)*-1,LOOKUP($V176,Data!$A$6:$A$1806,Data!$E$6:$E$1806)) -> -228.7981567 | AA176: =LOOKUP($V176,Data!$A$6:$A$1806,Data!$F$6:$F$1806) -> 0 | AB176: =LOOKUP($V176,Data!$A$6:$A$1806,Data!$G$6:$G$1806) -> 185.5 | AC176: =LOOKUP($V176,Data!$A$6:$A$1806,Data!$H$6:$H$1806) -> 10 | AD176: =LOOKUP($V176,Data!$A$6:$A$1806,Data!$I$6:$I$1806) -> 0 | AE176: =LOOKUP($V176,Data!$A$6:$A$1806,Data!$J$6:$J$1806) -> -103 | AF176: =LOOKUP($V176,Data!$A$6:$A$1806,Data!$K$6:$K$1806) -> 7658 | AG176: 39.1998291
B177: 40098.10459 | C177: =LOOKUP(B177,Data!$A$6:$A$1806,Data!B$6:B$1806) -> 59.95199966 | D177: =LOOKUP(B177,Data!$A$6:$A$1806,Data!C$6:C$1806) -> 3727.838379 | H177: 38.40026855 | I177: 38.86411437 | L177: 0.5522043855 | M177: 3766.240788 | N177: =AVERAGE(D$79:D177) -> 3780.185478 | O177: =AVERAGE(M$79:M177) -> 3775.220746 | P177: 3732.020071 | Q177: =AVERAGE(P$79:P177) -> 3705.238158 | V177: 40098.10459 | W177: =LOOKUP($V177,Data!$A$6:$A$1806,Data!$B$6:$B$1806) -> 59.95199966 | X177: =LOOKUP($V177,Data!$A$6:$A$1806,Data!$C$6:$C$1806) -> 3727.838379 | Y177: =LOOKUP($V177,Data!$A$6:$A$1806,Data!$D$6:$D$1806) -> 335 | Z177: =IF($Z$1="+",LOOKUP($V177,Data!$A$6:$A$1806,Data!$E$6:$E$1806)*-1,LOOKUP($V177,Data!$A$6:$A$1806,Data!$E$6:$E$1806)) -> -229.4669647 | AA177: =LOOKUP($V177,Data!$A$6:$A$1806,Data!$F$6:$F$1806) -> 0 | AB177: =LOOKUP($V177,Data!$A$6:$A$1806,Data!$G$6:$G$1806) -> 186 | AC177: =LOOKUP($V177,Data!$A$6:$A$1806,Data!$H$6:$H$1806) -> 10 | AD177: =LOOKUP($V177,Data!$A$6:$A$1806,Data!$I$6:$I$1806) -> 0 | AE177: =LOOKUP($V177,Data!$A$6:$A$1806,Data!$J$6:$J$1806) -> -103 | AF177: =LOOKUP($V177,Data!$A$6:$A$1806,Data!$K$6:$K$1806) -> 7658 | AG177: 38.40026855
B178: 40098.10462 | C178: =LOOKUP(B178,Data!$A$6:$A$1806,Data!B$6:B$1806) -> 59.95199966 | D178: =LOOKUP(B178,Data!$A$6:$A$1806,Data!C$6:C$1806) -> 3727.838379 | H178: 38.40026855 | I178: 38.70176834 | L178: 0.5522043855 | M178: 3766.630647 | N178: =AVERAGE(D$79:D178) -> 3779.662007 | O178: =AVERAGE(M$79:M178) -> 3775.134845 | P178: 3732.572275 | Q178: =AVERAGE(P$79:P178) -> 3705.51426 | V178: 40098.10462 | W178: =LOOKUP($V178,Data!$A$6:$A$1806,Data!$B$6:$B$1806) -> 59.95199966 | X178: =LOOKUP($V178,Data!$A$6:$A$1806,Data!$C$6:$C$1806) -> 3727.838379 | Y178: =LOOKUP($V178,Data!$A$6:$A$1806,Data!$D$6:$D$1806) -> 335 | Z178: =IF($Z$1="+",LOOKUP($V178,Data!$A$6:$A$1806,Data!$E$6:$E$1806)*-1,LOOKUP($V178,Data!$A$6:$A$1806,Data!$E$6:$E$1806)) -> -229.4669647 | AA178: =LOOKUP($V178,Data!$A$6:$A$1806,Data!$F$6:$F$1806) -> 0 | AB178: =LOOKUP($V178,Data!$A$6:$A$1806,Data!$G$6:$G$1806) -> 186 | AC178: =LOOKUP($V178,Data!$A$6:$A$1806,Data!$H$6:$H$1806) -> 10 | AD178: =LOOKUP($V178,Data!$A$6:$A$1806,Data!$I$6:$I$1806) -> 0 | AE178: =LOOKUP($V178,Data!$A$6:$A$1806,Data!$J$6:$J$1806) -> -103 | AF178: =LOOKUP($V178,Data!$A$6:$A$1806,Data!$K$6:$K$1806) -> 7658 | AG178: 38.40026855
B179: 40098.10464 | C179: =LOOKUP(B179,Data!$A$6:$A$1806,Data!B$6:B$1806) -> 59.95199966 | D179: =LOOKUP(B179,Data!$A$6:$A$1806,Data!C$6:C$1806) -> 3722.648926 | H179: 38.40026855 | I179: 38.59624341 | L179: 0.5522043855 | M179: 3767.077326 | N179: =AVERAGE(D$79:D179) -> 3779.097521 | O179: =AVERAGE(M$79:M179) -> 3775.055068 | P179: 3733.12448 | Q179: =AVERAGE(P$79:P179) -> 3705.790362 | V179: 40098.10464 | W179: =LOOKUP($V179,Data!$A$6:$A$1806,Data!$B$6:$B$1806) -> 59.95199966 | X179: =LOOKUP($V179,Data!$A$6:$A$1806,Data!$C$6:$C$1806) -> 3722.648926 | Y179: =LOOKUP($V179,Data!$A$6:$A$1806,Data!$D$6:$D$1806) -> 335 | Z179: =IF($Z$1="+",LOOKUP($V179,Data!$A$6:$A$1806,Data!$E$6:$E$1806)*-1,LOOKUP($V179,Data!$A$6:$A$1806,Data!$E$6:$E$1806)) -> -249.3375702 | AA179: =LOOKUP($V179,Data!$A$6:$A$1806,Data!$F$6:$F$1806) -> 0 | AB179: =LOOKUP($V179,Data!$A$6:$A$1806,Data!$G$6:$G$1806) -> 186.5 | AC179: =LOOKUP($V179,Data!$A$6:$A$1806,Data!$H$6:$H$1806) -> 10 | AD179: =LOOKUP($V179,Data!$A$6:$A$1806,Data!$I$6:$I$1806) -> 0 | AE179: =LOOKUP($V179,Data!$A$6:$A$1806,Data!$J$6:$J$1806) -> -103 | AF179: =LOOKUP($V179,Data!$A$6:$A$1806,Data!$K$6:$K$1806) -> 7659 | AG179: 38.40026855
B180: 40098.10466 | C180: =LOOKUP(B180,Data!$A$6:$A$1806,Data!B$6:B$1806) -> 59.95199966 | D180: =LOOKUP(B180,Data!$A$6:$A$1806,Data!C$6:C$1806) -> 3720.578125 | H180: 38.40026855 | I180: 38.52765221 | L180: 0.5522043855 | M180: 3767.560939 | N180: =AVERAGE(D$79:D180) -> 3778.523801 | O180: =AVERAGE(M$79:M180) -> 3774.981596 | P180: 3733.676684 | Q180: =AVERAGE(P$79:P180) -> 3706.066465 | V180: 40098.10466 | W180: =LOOKUP($V180,Data!$A$6:$A$1806,Data!$B$6:$B$1806) -> 59.95199966 | X180: =LOOKUP($V180,Data!$A$6:$A$1806,Data!$C$6:$C$1806) -> 3720.578125 | Y180: =LOOKUP($V180,Data!$A$6:$A$1806,Data!$D$6:$D$1806) -> 335 | Z180: =IF($Z$1="+",LOOKUP($V180,Data!$A$6:$A$1806,Data!$E$6:$E$1806)*-1,LOOKUP($V180,Data!$A$6:$A$1806,Data!$E$6:$E$1806)) -> -249.3375702 | AA180: =LOOKUP($V180,Data!$A$6:$A$1806,Data!$F$6:$F$1806) -> 0 | AB180: =LOOKUP($V180,Data!$A$6:$A$1806,Data!$G$6:$G$1806) -> 187 | AC180: =LOOKUP($V180,Data!$A$6:$A$1806,Data!$H$6:$H$1806) -> 10 | AD180: =LOOKUP($V180,Data!$A$6:$A$1806,Data!$I$6:$I$1806) -> 0 | AE180: =LOOKUP($V180,Data!$A$6:$A$1806,Data!$J$6:$J$1806) -> -103 | AF180: =LOOKUP($V180,Data!$A$6:$A$1806,Data!$K$6:$K$1806) -> 7659 | AG180: 38.40026855
B181: 40098.10469 | C181: =LOOKUP(B181,Data!$A$6:$A$1806,Data!B$6:B$1806) -> 59.95199966 | D181: =LOOKUP(B181,Data!$A$6:$A$1806,Data!C$6:C$1806) -> 3720.578125 | H181: 38.40026855 | I181: 38.48306793 | L181: 0.5522043855 | M181: 3768.068559 | N181: =AVERAGE(D$79:D181) -> 3777.961222 | O181: =AVERAGE(M$79:M181) -> 3774.914479 | P181: 3734.228888 | Q181: =AVERAGE(P$79:P181) -> 3706.342567 | V181: 40098.10469 | W181: =LOOKUP($V181,Data!$A$6:$A$1806,Data!$B$6:$B$1806) -> 59.95199966 | X181: =LOOKUP($V181,Data!$A$6:$A$1806,Data!$C$6:$C$1806) -> 3720.578125 | Y181: =LOOKUP($V181,Data!$A$6:$A$1806,Data!$D$6:$D$1806) -> 335 | Z181: =IF($Z$1="+",LOOKUP($V181,Data!$A$6:$A$1806,Data!$E$6:$E$1806)*-1,LOOKUP($V181,Data!$A$6:$A$1806,Data!$E$6:$E$1806)) -> -249.3375702 | AA181: =LOOKUP($V181,Data!$A$6:$A$1806,Data!$F$6:$F$1806) -> 0 | AB181: =LOOKUP($V181,Data!$A$6:$A$1806,Data!$G$6:$G$1806) -> 187 | AC181: =LOOKUP($V181,Data!$A$6:$A$1806,Data!$H$6:$H$1806) -> 10 | AD181: =LOOKUP($V181,Data!$A$6:$A$1806,Data!$I$6:$I$1806) -> 0 | AE181: =LOOKUP($V181,Data!$A$6:$A$1806,Data!$J$6:$J$1806) -> -103 | AF181: =LOOKUP($V181,Data!$A$6:$A$1806,Data!$K$6:$K$1806) -> 7659 | AG181: 38.40026855
B182: 40098.10471 | C182: =LOOKUP(B182,Data!$A$6:$A$1806,Data!B$6:B$1806) -> 59.95399857 | D182: =LOOKUP(B182,Data!$A$6:$A$1806,Data!C$6:C$1806) -> 3718.141846 | H182: 36.80114746 | I182: 37.89439577 | L182: 0.5522043855 | M182: 3768.032091 | N182: =AVERAGE(D$79:D182) -> 3777.386036 | O182: =AVERAGE(M$79:M182) -> 3774.848303 | P182: 3734.781093 | Q182: =AVERAGE(P$79:P182) -> 3706.618669 | V182: 40098.10471 | W182: =LOOKUP($V182,Data!$A$6:$A$1806,Data!$B$6:$B$1806) -> 59.95399857 | X182: =LOOKUP($V182,Data!$A$6:$A$1806,Data!$C$6:$C$1806) -> 3718.141846 | Y182: =LOOKUP($V182,Data!$A$6:$A$1806,Data!$D$6:$D$1806) -> 335 | Z182: =IF($Z$1="+",LOOKUP($V182,Data!$A$6:$A$1806,Data!$E$6:$E$1806)*-1,LOOKUP($V182,Data!$A$6:$A$1806,Data!$E$6:$E$1806)) -> -249.3375702 | AA182: =LOOKUP($V182,Data!$A$6:$A$1806,Data!$F$6:$F$1806) -> 0 | AB182: =LOOKUP($V182,Data!$A$6:$A$1806,Data!$G$6:$G$1806) -> 187.5 | AC182: =LOOKUP($V182,Data!$A$6:$A$1806,Data!$H$6:$H$1806) -> 10 | AD182: =LOOKUP($V182,Data!$A$6:$A$1806,Data!$I$6:$I$1806) -> 0 | AE182: =LOOKUP($V182,Data!$A$6:$A$1806,Data!$J$6:$J$1806) -> -103 | AF182: =LOOKUP($V182,Data!$A$6:$A$1806,Data!$K$6:$K$1806) -> 7659 | AG182: 36.80114746
B183: 40098.10473 | C183: =LOOKUP(B183,Data!$A$6:$A$1806,Data!B$6:B$1806) -> 59.95299911 | D183: =LOOKUP(B183,Data!$A$6:$A$1806,Data!C$6:C$1806) -> 3715.752686 | H183: 37.60070801 | I183: 37.79160505 | L183: 0.5522043855 | M183: 3768.481505 | N183: =AVERAGE(D$79:D183) -> 3776.799051 | O183: =AVERAGE(M$79:M183) -> 3774.787666 | P183: 3735.333297 | Q183: =AVERAGE(P$79:P183) -> 3706.894771 | V183: 40098.10473 | W183: =LOOKUP($V183,Data!$A$6:$A$1806,Data!$B$6:$B$1806) -> 59.95299911 | X183: =LOOKUP($V183,Data!$A$6:$A$1806,Data!$C$6:$C$1806) -> 3715.752686 | Y183: =LOOKUP($V183,Data!$A$6:$A$1806,Data!$D$6:$D$1806) -> 335 | Z183: =IF($Z$1="+",LOOKUP($V183,Data!$A$6:$A$1806,Data!$E$6:$E$1806)*-1,LOOKUP($V183,Data!$A$6:$A$1806,Data!$E$6:$E$1806)) -> -249.3375702 | AA183: =LOOKUP($V183,Data!$A$6:$A$1806,Data!$F$6:$F$1806) -> 0 | AB183: =LOOKUP($V183,Data!$A$6:$A$1806,Data!$G$6:$G$1806) -> 188 | AC183: =LOOKUP($V183,Data!$A$6:$A$1806,Data!$H$6:$H$1806) -> 10 | AD183: =LOOKUP($V183,Data!$A$6:$A$1806,Data!$I$6:$I$1806) -> 0 | AE183: =LOOKUP($V183,Data!$A$6:$A$1806,Data!$J$6:$J$1806) -> -103 | AF183: =LOOKUP($V183,Data!$A$6:$A$1806,Data!$K$6:$K$1806) -> 7660 | AG183: 37.60070801
B184: 40098.10476 | C184: =LOOKUP(B184,Data!$A$6:$A$1806,Data!B$6:B$1806) -> 59.95299911 | D184: =LOOKUP(B184,Data!$A$6:$A$1806,Data!C$6:C$1806) -> 3715.752686 | H184: 37.60070801 | I184: 37.72479109 | L184: 0.5522043855 | M184: 3768.966896 | N184: =AVERAGE(D$79:D184) -> 3776.223142 | O184: =AVERAGE(M$79:M184) -> 3774.732753 | P184: 3735.885501 | Q184: =AVERAGE(P$79:P184) -> 3707.170873 | V184: 40098.10476 | W184: =LOOKUP($V184,Data!$A$6:$A$1806,Data!$B$6:$B$1806) -> 59.95299911 | X184: =LOOKUP($V184,Data!$A$6:$A$1806,Data!$C$6:$C$1806) -> 3715.752686 | Y184: =LOOKUP($V184,Data!$A$6:$A$1806,Data!$D$6:$D$1806) -> 335 | Z184: =IF($Z$1="+",LOOKUP($V184,Data!$A$6:$A$1806,Data!$E$6:$E$1806)*-1,LOOKUP($V184,Data!$A$6:$A$1806,Data!$E$6:$E$1806)) -> -249.3375702 | AA184: =LOOKUP($V184,Data!$A$6:$A$1806,Data!$F$6:$F$1806) -> 0 | AB184: =LOOKUP($V184,Data!$A$6:$A$1806,Data!$G$6:$G$1806) -> 188 | AC184: =LOOKUP($V184,Data!$A$6:$A$1806,Data!$H$6:$H$1806) -> 10 | AD184: =LOOKUP($V184,Data!$A$6:$A$1806,Data!$I$6:$I$1806) -> 0 | AE184: =LOOKUP($V184,Data!$A$6:$A$1806,Data!$J$6:$J$1806) -> -103 | AF184: =LOOKUP($V184,Data!$A$6:$A$1806,Data!$K$6:$K$1806) -> 7660 | AG184: 37.60070801
B185: 40098.10478 | C185: =LOOKUP(B185,Data!$A$6:$A$1806,Data!B$6:B$1806) -> 59.95299911 | D185: =LOOKUP(B185,Data!$A$6:$A$1806,Data!C$6:C$1806) -> 3713.483643 | H185: 37.60070801 | I185: 37.68136201 | L185: 0.5522043855 | M185: 3769.475671 | N185: =AVERAGE(D$79:D185) -> 3775.636792 | O185: =AVERAGE(M$79:M185) -> 3774.683622 | P185: 3736.437706 | Q185: =AVERAGE(P$79:P185) -> 3707.446976 | V185: 40098.10478 | W185: =LOOKUP($V185,Data!$A$6:$A$1806,Data!$B$6:$B$1806) -> 59.95299911 | X185: =LOOKUP($V185,Data!$A$6:$A$1806,Data!$C$6:$C$1806) -> 3713.483643 | Y185: =LOOKUP($V185,Data!$A$6:$A$1806,Data!$D$6:$D$1806) -> 335 | Z185: =IF($Z$1="+",LOOKUP($V185,Data!$A$6:$A$1806,Data!$E$6:$E$1806)*-1,LOOKUP($V185,Data!$A$6:$A$1806,Data!$E$6:$E$1806)) -> -249.3375702 | AA185: =LOOKUP($V185,Data!$A$6:$A$1806,Data!$F$6:$F$1806) -> 0 | AB185: =LOOKUP($V185,Data!$A$6:$A$1806,Data!$G$6:$G$1806) -> 188.5 | AC185: =LOOKUP($V185,Data!$A$6:$A$1806,Data!$H$6:$H$1806) -> 10 | AD185: =LOOKUP($V185,Data!$A$6:$A$1806,Data!$I$6:$I$1806) -> 0 | AE185: =LOOKUP($V185,Data!$A$6:$A$1806,Data!$J$6:$J$1806) -> -103 | AF185: =LOOKUP($V185,Data!$A$6:$A$1806,Data!$K$6:$K$1806) -> 7660 | AG185: 37.60070801
B186: 40098.1048 | C186: =LOOKUP(B186,Data!$A$6:$A$1806,Data!B$6:B$1806) -> 59.95399857 | D186: =LOOKUP(B186,Data!$A$6:$A$1806,Data!C$6:C$1806) -> 3710.848145 | H186: 36.80114746 | I186: 37.37328692 | L186: 0.5522043855 | M186: 3769.7198 | N186: =AVERAGE(D$79:D186) -> 3775.036897 | O186: =AVERAGE(M$79:M186) -> 3774.637661 | P186: 3736.98991 | Q186: =AVERAGE(P$79:P186) -> 3707.723078 | V186: 40098.1048 | W186: =LOOKUP($V186,Data!$A$6:$A$1806,Data!$B$6:$B$1806) -> 59.95399857 | X186: =LOOKUP($V186,Data!$A$6:$A$1806,Data!$C$6:$C$1806) -> 3710.848145 | Y186: =LOOKUP($V186,Data!$A$6:$A$1806,Data!$D$6:$D$1806) -> 335 | Z186: =IF($Z$1="+",LOOKUP($V186,Data!$A$6:$A$1806,Data!$E$6:$E$1806)*-1,LOOKUP($V186,Data!$A$6:$A$1806,Data!$E$6:$E$1806)) -> -258.2781677 | AA186: =LOOKUP($V186,Data!$A$6:$A$1806,Data!$F$6:$F$1806) -> 0 | AB186: =LOOKUP($V186,Data!$A$6:$A$1806,Data!$G$6:$G$1806) -> 189 | AC186: =LOOKUP($V186,Data!$A$6:$A$1806,Data!$H$6:$H$1806) -> 10 | AD186: =LOOKUP($V186,Data!$A$6:$A$1806,Data!$I$6:$I$1806) -> 0 | AE186: =LOOKUP($V186,Data!$A$6:$A$1806,Data!$J$6:$J$1806) -> -103 | AF186: =LOOKUP($V186,Data!$A$6:$A$1806,Data!$K$6:$K$1806) -> 7661 | AG186: 36.80114746
B187: 40098.10483 | C187: =LOOKUP(B187,Data!$A$6:$A$1806,Data!B$6:B$1806) -> 59.95399857 | D187: =LOOKUP(B187,Data!$A$6:$A$1806,Data!C$6:C$1806) -> 3710.848145 | H187: 36.80114746 | I187: 37.17303811 | L187: 0.5522043855 | M187: 3770.071756 | N187: =AVERAGE(D$79:D187) -> 3774.448009 | O187: =AVERAGE(M$79:M187) -> 3774.595771 | P187: 3737.542115 | Q187: =AVERAGE(P$79:P187) -> 3707.99918 | V187: 40098.10483 | W187: =LOOKUP($V187,Data!$A$6:$A$1806,Data!$B$6:$B$1806) -> 59.95399857 | X187: =LOOKUP($V187,Data!$A$6:$A$1806,Data!$C$6:$C$1806) -> 3710.848145 | Y187: =LOOKUP($V187,Data!$A$6:$A$1806,Data!$D$6:$D$1806) -> 335 | Z187: =IF($Z$1="+",LOOKUP($V187,Data!$A$6:$A$1806,Data!$E$6:$E$1806)*-1,LOOKUP($V187,Data!$A$6:$A$1806,Data!$E$6:$E$1806)) -> -258.2781677 | AA187: =LOOKUP($V187,Data!$A$6:$A$1806,Data!$F$6:$F$1806) -> 0 | AB187: =LOOKUP($V187,Data!$A$6:$A$1806,Data!$G$6:$G$1806) -> 189 | AC187: =LOOKUP($V187,Data!$A$6:$A$1806,Data!$H$6:$H$1806) -> 10 | AD187: =LOOKUP($V187,Data!$A$6:$A$1806,Data!$I$6:$I$1806) -> 0 | AE187: =LOOKUP($V187,Data!$A$6:$A$1806,Data!$J$6:$J$1806) -> -103 | AF187: =LOOKUP($V187,Data!$A$6:$A$1806,Data!$K$6:$K$1806) -> 7661 | AG187: 36.80114746
B188: 40098.10485 | C188: =LOOKUP(B188,Data!$A$6:$A$1806,Data!B$6:B$1806) -> 59.95399857 | D188: =LOOKUP(B188,Data!$A$6:$A$1806,Data!C$6:C$1806) -> 3712.091797 | H188: 36.80114746 | I188: 37.04287638 | L188: 0.5522043855 | M188: 3770.493798 | N188: =AVERAGE(D$79:D188) -> 3773.881135 | O188: =AVERAGE(M$79:M188) -> 3774.558481 | P188: 3738.094319 | Q188: =AVERAGE(P$79:P188) -> 3708.275282 | V188: 40098.10485 | W188: =LOOKUP($V188,Data!$A$6:$A$1806,Data!$B$6:$B$1806) -> 59.95399857 | X188: =LOOKUP($V188,Data!$A$6:$A$1806,Data!$C$6:$C$1806) -> 3712.091797 | Y188: =LOOKUP($V188,Data!$A$6:$A$1806,Data!$D$6:$D$1806) -> 335 | Z188: =IF($Z$1="+",LOOKUP($V188,Data!$A$6:$A$1806,Data!$E$6:$E$1806)*-1,LOOKUP($V188,Data!$A$6:$A$1806,Data!$E$6:$E$1806)) -> -258.2781677 | AA188: =LOOKUP($V188,Data!$A$6:$A$1806,Data!$F$6:$F$1806) -> 0 | AB188: =LOOKUP($V188,Data!$A$6:$A$1806,Data!$G$6:$G$1806) -> 189.5 | AC188: =LOOKUP($V188,Data!$A$6:$A$1806,Data!$H$6:$H$1806) -> 10 | AD188: =LOOKUP($V188,Data!$A$6:$A$1806,Data!$I$6:$I$1806) -> 0 | AE188: =LOOKUP($V188,Data!$A$6:$A$1806,Data!$J$6:$J$1806) -> -103 | AF188: =LOOKUP($V188,Data!$A$6:$A$1806,Data!$K$6:$K$1806) -> 7661 | AG188: 36.80114746
B189: 40098.10487 | C189: =LOOKUP(B189,Data!$A$6:$A$1806,Data!B$6:B$1806) -> 59.95700073 | D189: =LOOKUP(B189,Data!$A$6:$A$1806,Data!C$6:C$1806) -> 3714.622559 | H189: 34.39941406 | I189: 36.11766457 | L189: 0.5522043855 | M189: 3770.120791 | N189: =AVERAGE(D$79:D189) -> 3773.347274 | O189: =AVERAGE(M$79:M189) -> 3774.518502 | P189: 3738.646523 | Q189: =AVERAGE(P$79:P189) -> 3708.551384 | V189: 40098.10487 | W189: =LOOKUP($V189,Data!$A$6:$A$1806,Data!$B$6:$B$1806) -> 59.95700073 | X189: =LOOKUP($V189,Data!$A$6:$A$1806,Data!$C$6:$C$1806) -> 3714.622559 | Y189: =LOOKUP($V189,Data!$A$6:$A$1806,Data!$D$6:$D$1806) -> 335 | Z189: =IF($Z$1="+",LOOKUP($V189,Data!$A$6:$A$1806,Data!$E$6:$E$1806)*-1,LOOKUP($V189,Data!$A$6:$A$1806,Data!$E$6:$E$1806)) -> -258.2781677 | AA189: =LOOKUP($V189,Data!$A$6:$A$1806,Data!$F$6:$F$1806) -> 0 | AB189: =LOOKUP($V189,Data!$A$6:$A$1806,Data!$G$6:$G$1806) -> 190 | AC189: =LOOKUP($V189,Data!$A$6:$A$1806,Data!$H$6:$H$1806) -> 10 | AD189: =LOOKUP($V189,Data!$A$6:$A$1806,Data!$I$6:$I$1806) -> 0 | AE189: =LOOKUP($V189,Data!$A$6:$A$1806,Data!$J$6:$J$1806) -> -103 | AF189: =LOOKUP($V189,Data!$A$6:$A$1806,Data!$K$6:$K$1806) -> 7625.4 | AG189: 34.39941406
B190: 40098.1049 | C190: =LOOKUP(B190,Data!$A$6:$A$1806,Data!B$6:B$1806) -> 59.95700073 | D190: =LOOKUP(B190,Data!$A$6:$A$1806,Data!C$6:C$1806) -> 3714.622559 | H190: 34.39941406 | I190: 35.51627689 | L190: 0.5522043855 | M190: 3770.071608 | N190: =AVERAGE(D$79:D190) -> 3772.822946 | O190: =AVERAGE(M$79:M190) -> 3774.478797 | P190: 3739.198728 | Q190: =AVERAGE(P$79:P190) -> 3708.827487 | V190: 40098.1049 | W190: =LOOKUP($V190,Data!$A$6:$A$1806,Data!$B$6:$B$1806) -> 59.95700073 | X190: =LOOKUP($V190,Data!$A$6:$A$1806,Data!$C$6:$C$1806) -> 3714.622559 | Y190: =LOOKUP($V190,Data!$A$6:$A$1806,Data!$D$6:$D$1806) -> 335 | Z190: =IF($Z$1="+",LOOKUP($V190,Data!$A$6:$A$1806,Data!$E$6:$E$1806)*-1,LOOKUP($V190,Data!$A$6:$A$1806,Data!$E$6:$E$1806)) -> -258.2781677 | AA190: =LOOKUP($V190,Data!$A$6:$A$1806,Data!$F$6:$F$1806) -> 0 | AB190: =LOOKUP($V190,Data!$A$6:$A$1806,Data!$G$6:$G$1806) -> 190 | AC190: =LOOKUP($V190,Data!$A$6:$A$1806,Data!$H$6:$H$1806) -> 10 | AD190: =LOOKUP($V190,Data!$A$6:$A$1806,Data!$I$6:$I$1806) -> 0 | AE190: =LOOKUP($V190,Data!$A$6:$A$1806,Data!$J$6:$J$1806) -> -103 | AF190: =LOOKUP($V190,Data!$A$6:$A$1806,Data!$K$6:$K$1806) -> 7625.4 | AG190: 34.39941406
B191: 40098.10492 | C191: =LOOKUP(B191,Data!$A$6:$A$1806,Data!B$6:B$1806) -> 59.95600128 | D191: =LOOKUP(B191,Data!$A$6:$A$1806,Data!C$6:C$1806) -> 3716.168213 | H191: 35.19897461 | I191: 35.40522109 | L191: 0.5522043855 | M191: 3770.512756 | N191: =AVERAGE(D$79:D191) -> 3772.321576 | O191: =AVERAGE(M$79:M191) -> 3774.4437 | P191: 3739.750932 | Q191: =AVERAGE(P$79:P191) -> 3709.103589 | V191: 40098.10492 | W191: =LOOKUP($V191,Data!$A$6:$A$1806,Data!$B$6:$B$1806) -> 59.95600128 | X191: =LOOKUP($V191,Data!$A$6:$A$1806,Data!$C$6:$C$1806) -> 3716.168213 | Y191: =LOOKUP($V191,Data!$A$6:$A$1806,Data!$D$6:$D$1806) -> 335 | Z191: =IF($Z$1="+",LOOKUP($V191,Data!$A$6:$A$1806,Data!$E$6:$E$1806)*-1,LOOKUP($V191,Data!$A$6:$A$1806,Data!$E$6:$E$1806)) -> -258.2781677 | AA191: =LOOKUP($V191,Data!$A$6:$A$1806,Data!$F$6:$F$1806) -> 0 | AB191: =LOOKUP($V191,Data!$A$6:$A$1806,Data!$G$6:$G$1806) -> 190.5 | AC191: =LOOKUP($V191,Data!$A$6:$A$1806,Data!$H$6:$H$1806) -> 10 | AD191: =LOOKUP($V191,Data!$A$6:$A$1806,Data!$I$6:$I$1806) -> 0 | AE191: =LOOKUP($V191,Data!$A$6:$A$1806,Data!$J$6:$J$1806) -> -103 | AF191: =LOOKUP($V191,Data!$A$6:$A$1806,Data!$K$6:$K$1806) -> 7625.73 | AG191: 35.19897461
B192: 40098.10494 | C192: =LOOKUP(B192,Data!$A$6:$A$1806,Data!B$6:B$1806) -> 59.95600128 | D192: =LOOKUP(B192,Data!$A$6:$A$1806,Data!C$6:C$1806) -> 3716.461426 | H192: 35.19897461 | I192: 35.33303482 | L192: 0.5522043855 | M192: 3770.992774 | N192: =AVERAGE(D$79:D192) -> 3771.831575 | O192: =AVERAGE(M$79:M192) -> 3774.413428 | P192: 3740.303137 | Q192: =AVERAGE(P$79:P192) -> 3709.379691 | V192: 40098.10494 | W192: =LOOKUP($V192,Data!$A$6:$A$1806,Data!$B$6:$B$1806) -> 59.95600128 | X192: =LOOKUP($V192,Data!$A$6:$A$1806,Data!$C$6:$C$1806) -> 3716.461426 | Y192: =LOOKUP($V192,Data!$A$6:$A$1806,Data!$D$6:$D$1806) -> 335 | Z192: =IF($Z$1="+",LOOKUP($V192,Data!$A$6:$A$1806,Data!$E$6:$E$1806)*-1,LOOKUP($V192,Data!$A$6:$A$1806,Data!$E$6:$E$1806)) -> -258.2781677 | AA192: =LOOKUP($V192,Data!$A$6:$A$1806,Data!$F$6:$F$1806) -> 0 | AB192: =LOOKUP($V192,Data!$A$6:$A$1806,Data!$G$6:$G$1806) -> 191 | AC192: =LOOKUP($V192,Data!$A$6:$A$1806,Data!$H$6:$H$1806) -> 10 | AD192: =LOOKUP($V192,Data!$A$6:$A$1806,Data!$I$6:$I$1806) -> 0 | AE192: =LOOKUP($V192,Data!$A$6:$A$1806,Data!$J$6:$J$1806) -> -103 | AF192: =LOOKUP($V192,Data!$A$6:$A$1806,Data!$K$6:$K$1806) -> 7626.06 | AG192: 35.19897461
B193: 40098.10497 | C193: =LOOKUP(B193,Data!$A$6:$A$1806,Data!B$6:B$1806) -> 59.95600128 | D193: =LOOKUP(B193,Data!$A$6:$A$1806,Data!C$6:C$1806) -> 3716.461426 | H193: 35.19897461 | I193: 35.28611375 | L193: 0.5522043855 | M193: 3771.498058 | N193: =AVERAGE(D$79:D193) -> 3771.350096 | O193: =AVERAGE(M$79:M193) -> 3774.388077 | P193: 3740.855341 | Q193: =AVERAGE(P$79:P193) -> 3709.655793 | V193: 40098.10497 | W193: =LOOKUP($V193,Data!$A$6:$A$1806,Data!$B$6:$B$1806) -> 59.95600128 | X193: =LOOKUP($V193,Data!$A$6:$A$1806,Data!$C$6:$C$1806) -> 3716.461426 | Y193: =LOOKUP($V193,Data!$A$6:$A$1806,Data!$D$6:$D$1806) -> 335 | Z193: =IF($Z$1="+",LOOKUP($V193,Data!$A$6:$A$1806,Data!$E$6:$E$1806)*-1,LOOKUP($V193,Data!$A$6:$A$1806,Data!$E$6:$E$1806)) -> -258.2781677 | AA193: =LOOKUP($V193,Data!$A$6:$A$1806,Data!$F$6:$F$1806) -> 0 | AB193: =LOOKUP($V193,Data!$A$6:$A$1806,Data!$G$6:$G$1806) -> 191 | AC193: =LOOKUP($V193,Data!$A$6:$A$1806,Data!$H$6:$H$1806) -> 10 | AD193: =LOOKUP($V193,Data!$A$6:$A$1806,Data!$I$6:$I$1806) -> 0 | AE193: =LOOKUP($V193,Data!$A$6:$A$1806,Data!$J$6:$J$1806) -> -103 | AF193: =LOOKUP($V193,Data!$A$6:$A$1806,Data!$K$6:$K$1806) -> 7626.06 | AG193: 35.19897461
B194: 40098.10499 | C194: =LOOKUP(B194,Data!$A$6:$A$1806,Data!B$6:B$1806) -> 59.95500183 | D194: =LOOKUP(B194,Data!$A$6:$A$1806,Data!C$6:C$1806) -> 3717.759033 | H194: 35.99853516 | I194: 35.53546124 | L194: 0.5522043855 | M194: 3772.29961 | N194: =AVERAGE(D$79:D194) -> 3770.888104 | O194: =AVERAGE(M$79:M194) -> 3774.370073 | P194: 3741.407545 | Q194: =AVERAGE(P$79:P194) -> 3709.931895 | V194: 40098.10499 | W194: =LOOKUP($V194,Data!$A$6:$A$1806,Data!$B$6:$B$1806) -> 59.95500183 | X194: =LOOKUP($V194,Data!$A$6:$A$1806,Data!$C$6:$C$1806) -> 3717.759033 | Y194: =LOOKUP($V194,Data!$A$6:$A$1806,Data!$D$6:$D$1806) -> 335 | Z194: =IF($Z$1="+",LOOKUP($V194,Data!$A$6:$A$1806,Data!$E$6:$E$1806)*-1,LOOKUP($V194,Data!$A$6:$A$1806,Data!$E$6:$E$1806)) -> -258.4063721 | AA194: =LOOKUP($V194,Data!$A$6:$A$1806,Data!$F$6:$F$1806) -> 0 | AB194: =LOOKUP($V194,Data!$A$6:$A$1806,Data!$G$6:$G$1806) -> 191.5 | AC194: =LOOKUP($V194,Data!$A$6:$A$1806,Data!$H$6:$H$1806) -> 10 | AD194: =LOOKUP($V194,Data!$A$6:$A$1806,Data!$I$6:$I$1806) -> 0 | AE194: =LOOKUP($V194,Data!$A$6:$A$1806,Data!$J$6:$J$1806) -> -103 | AF194: =LOOKUP($V194,Data!$A$6:$A$1806,Data!$K$6:$K$1806) -> 7626.39 | AG194: 35.99853516
B195: 40098.10501 | C195: =LOOKUP(B195,Data!$A$6:$A$1806,Data!B$6:B$1806) -> 59.96099854 | D195: =LOOKUP(B195,Data!$A$6:$A$1806,Data!C$6:C$1806) -> 3722.361328 | H195: 31.20117188 | I195: 34.01845996 | L195: 0.5522043855 | M195: 3771.334813 | N195: =AVERAGE(D$79:D195) -> 3770.473345 | O195: =AVERAGE(M$79:M195) -> 3774.344131 | P195: 3741.95975 | Q195: =AVERAGE(P$79:P195) -> 3710.207998 | V195: 40098.10501 | W195: =LOOKUP($V195,Data!$A$6:$A$1806,Data!$B$6:$B$1806) -> 59.96099854 | X195: =LOOKUP($V195,Data!$A$6:$A$1806,Data!$C$6:$C$1806) -> 3722.361328 | Y195: =LOOKUP($V195,Data!$A$6:$A$1806,Data!$D$6:$D$1806) -> 335 | Z195: =IF($Z$1="+",LOOKUP($V195,Data!$A$6:$A$1806,Data!$E$6:$E$1806)*-1,LOOKUP($V195,Data!$A$6:$A$1806,Data!$E$6:$E$1806)) -> -258.4063721 | AA195: =LOOKUP($V195,Data!$A$6:$A$1806,Data!$F$6:$F$1806) -> 0 | AB195: =LOOKUP($V195,Data!$A$6:$A$1806,Data!$G$6:$G$1806) -> 192 | AC195: =LOOKUP($V195,Data!$A$6:$A$1806,Data!$H$6:$H$1806) -> 10 | AD195: =LOOKUP($V195,Data!$A$6:$A$1806,Data!$I$6:$I$1806) -> 0 | AE195: =LOOKUP($V195,Data!$A$6:$A$1806,Data!$J$6:$J$1806) -> -103 | AF195: =LOOKUP($V195,Data!$A$6:$A$1806,Data!$K$6:$K$1806) -> 7626.72 | AG195: 31.20117188
B196: 40098.10503 | C196: =LOOKUP(B196,Data!$A$6:$A$1806,Data!B$6:B$1806) -> 59.96099854 | D196: =LOOKUP(B196,Data!$A$6:$A$1806,Data!C$6:C$1806) -> 3722.361328 | H196: 31.20117188 | I196: 33.03240913 | L196: 0.5522043855 | M196: 3770.900966 | N196: =AVERAGE(D$79:D196) -> 3770.065616 | O196: =AVERAGE(M$79:M196) -> 3774.314951 | P196: 3742.511954 | Q196: =AVERAGE(P$79:P196) -> 3710.4841 | V196: 40098.10503 | W196: =LOOKUP($V196,Data!$A$6:$A$1806,Data!$B$6:$B$1806) -> 59.96099854 | X196: =LOOKUP($V196,Data!$A$6:$A$1806,Data!$C$6:$C$1806) -> 3722.361328 | Y196: =LOOKUP($V196,Data!$A$6:$A$1806,Data!$D$6:$D$1806) -> 335 | Z196: =IF($Z$1="+",LOOKUP($V196,Data!$A$6:$A$1806,Data!$E$6:$E$1806)*-1,LOOKUP($V196,Data!$A$6:$A$1806,Data!$E$6:$E$1806)) -> -258.4063721 | AA196: =LOOKUP($V196,Data!$A$6:$A$1806,Data!$F$6:$F$1806) -> 0 | AB196: =LOOKUP($V196,Data!$A$6:$A$1806,Data!$G$6:$G$1806) -> 192 | AC196: =LOOKUP($V196,Data!$A$6:$A$1806,Data!$H$6:$H$1806) -> 10 | AD196: =LOOKUP($V196,Data!$A$6:$A$1806,Data!$I$6:$I$1806) -> 0 | AE196: =LOOKUP($V196,Data!$A$6:$A$1806,Data!$J$6:$J$1806) -> -103 | AF196: =LOOKUP($V196,Data!$A$6:$A$1806,Data!$K$6:$K$1806) -> 7626.72 | AG196: 31.20117188
B197: 40098.10506 | C197: =LOOKUP(B197,Data!$A$6:$A$1806,Data!B$6:B$1806) -> 59.9620018 | D197: =LOOKUP(B197,Data!$A$6:$A$1806,Data!C$6:C$1806) -> 3722.657959 | H197: 30.39855957 | I197: 32.11056179 | L197: 0.5522043855 | M197: 3770.531323 | N197: =AVERAGE(D$79:D197) -> 3769.667232 | O197: =AVERAGE(M$79:M197) -> 3774.283156 | P197: 3743.064158 | Q197: =AVERAGE(P$79:P197) -> 3710.760202 | V197: 40098.10506 | W197: =LOOKUP($V197,Data!$A$6:$A$1806,Data!$B$6:$B$1806) -> 59.9620018 | X197: =LOOKUP($V197,Data!$A$6:$A$1806,Data!$C$6:$C$1806) -> 3722.657959 | Y197: =LOOKUP($V197,Data!$A$6:$A$1806,Data!$D$6:$D$1806) -> 335 | Z197: =IF($Z$1="+",LOOKUP($V197,Data!$A$6:$A$1806,Data!$E$6:$E$1806)*-1,LOOKUP($V197,Data!$A$6:$A$1806,Data!$E$6:$E$1806)) -> -258.4063721 | AA197: =LOOKUP($V197,Data!$A$6:$A$1806,Data!$F$6:$F$1806) -> 0 | AB197: =LOOKUP($V197,Data!$A$6:$A$1806,Data!$G$6:$G$1806) -> 192.5 | AC197: =LOOKUP($V197,Data!$A$6:$A$1806,Data!$H$6:$H$1806) -> 10 | AD197: =LOOKUP($V197,Data!$A$6:$A$1806,Data!$I$6:$I$1806) -> 0 | AE197: =LOOKUP($V197,Data!$A$6:$A$1806,Data!$J$6:$J$1806) -> -103 | AF197: =LOOKUP($V197,Data!$A$6:$A$1806,Data!$K$6:$K$1806) -> 7627.05 | AG197: 30.39855957
B198: 40098.10508 | C198: =LOOKUP(B198,Data!$A$6:$A$1806,Data!B$6:B$1806) -> 59.9679985 | D198: =LOOKUP(B198,Data!$A$6:$A$1806,Data!C$6:C$1806) -> 3722.266602 | H198: 25.60119629 | I198: 29.83228386 | L198: 0.5522043855 | M198: 3768.80525 | N198: =AVERAGE(D$79:D198) -> 3769.272227 | O198: =AVERAGE(M$79:M198) -> 3774.237507 | P198: 3743.616363 | Q198: =AVERAGE(P$79:P198) -> 3711.036304 | V198: 40098.10508 | W198: =LOOKUP($V198,Data!$A$6:$A$1806,Data!$B$6:$B$1806) -> 59.9679985 | X198: =LOOKUP($V198,Data!$A$6:$A$1806,Data!$C$6:$C$1806) -> 3722.266602 | Y198: =LOOKUP($V198,Data!$A$6:$A$1806,Data!$D$6:$D$1806) -> 335 | Z198: =IF($Z$1="+",LOOKUP($V198,Data!$A$6:$A$1806,Data!$E$6:$E$1806)*-1,LOOKUP($V198,Data!$A$6:$A$1806,Data!$E$6:$E$1806)) -> -258.4063721 | AA198: =LOOKUP($V198,Data!$A$6:$A$1806,Data!$F$6:$F$1806) -> 0 | AB198: =LOOKUP($V198,Data!$A$6:$A$1806,Data!$G$6:$G$1806) -> 193 | AC198: =LOOKUP($V198,Data!$A$6:$A$1806,Data!$H$6:$H$1806) -> 10 | AD198: =LOOKUP($V198,Data!$A$6:$A$1806,Data!$I$6:$I$1806) -> 0 | AE198: =LOOKUP($V198,Data!$A$6:$A$1806,Data!$J$6:$J$1806) -> -103 | AF198: =LOOKUP($V198,Data!$A$6:$A$1806,Data!$K$6:$K$1806) -> 7627.38 | AG198: 25.60119629
B199: 40098.1051 | C199: =LOOKUP(B199,Data!$A$6:$A$1806,Data!B$6:B$1806) -> 59.9679985 | D199: =LOOKUP(B199,Data!$A$6:$A$1806,Data!C$6:C$1806) -> 3722.266602 | H199: 25.60119629 | I199: 28.35140321 | L199: 0.5522043855 | M199: 3767.876573 | N199: =AVERAGE(D$79:D199) -> 3768.883751 | O199: =AVERAGE(M$79:M199) -> 3774.184937 | P199: 3744.168567 | Q199: =AVERAGE(P$79:P199) -> 3711.312406 | V199: 40098.1051 | W199: =LOOKUP($V199,Data!$A$6:$A$1806,Data!$B$6:$B$1806) -> 59.9679985 | X199: =LOOKUP($V199,Data!$A$6:$A$1806,Data!$C$6:$C$1806) -> 3722.266602 | Y199: =LOOKUP($V199,Data!$A$6:$A$1806,Data!$D$6:$D$1806) -> 335 | Z199: =IF($Z$1="+",LOOKUP($V199,Data!$A$6:$A$1806,Data!$E$6:$E$1806)*-1,LOOKUP($V199,Data!$A$6:$A$1806,Data!$E$6:$E$1806)) -> -258.4063721 | AA199: =LOOKUP($V199,Data!$A$6:$A$1806,Data!$F$6:$F$1806) -> 0 | AB199: =LOOKUP($V199,Data!$A$6:$A$1806,Data!$G$6:$G$1806) -> 193 | AC199: =LOOKUP($V199,Data!$A$6:$A$1806,Data!$H$6:$H$1806) -> 10 | AD199: =LOOKUP($V199,Data!$A$6:$A$1806,Data!$I$6:$I$1806) -> 0 | AE199: =LOOKUP($V199,Data!$A$6:$A$1806,Data!$J$6:$J$1806) -> -103 | AF199: =LOOKUP($V199,Data!$A$6:$A$1806,Data!$K$6:$K$1806) -> 7627.38 | AG199: 25.60119629
B200: 40098.10513 | C200: =LOOKUP(B200,Data!$A$6:$A$1806,Data!B$6:B$1806) -> 59.9659996 | D200: =LOOKUP(B200,Data!$A$6:$A$1806,Data!C$6:C$1806) -> 3721.786621 | H200: 27.20031738 | I200: 27.94852317 | L200: 0.5522043855 | M200: 3768.025898 | N200: =AVERAGE(D$79:D200) -> 3768.497709 | O200: =AVERAGE(M$79:M200) -> 3774.134453 | P200: 3744.720772 | Q200: =AVERAGE(P$79:P200) -> 3711.588508 | V200: 40098.10513 | W200: =LOOKUP($V200,Data!$A$6:$A$1806,Data!$B$6:$B$1806) -> 59.9659996 | X200: =LOOKUP($V200,Data!$A$6:$A$1806,Data!$C$6:$C$1806) -> 3721.786621 | Y200: =LOOKUP($V200,Data!$A$6:$A$1806,Data!$D$6:$D$1806) -> 335 | Z200: =IF($Z$1="+",LOOKUP($V200,Data!$A$6:$A$1806,Data!$E$6:$E$1806)*-1,LOOKUP($V200,Data!$A$6:$A$1806,Data!$E$6:$E$1806)) -> -258.4063721 | AA200: =LOOKUP($V200,Data!$A$6:$A$1806,Data!$F$6:$F$1806) -> 0 | AB200: =LOOKUP($V200,Data!$A$6:$A$1806,Data!$G$6:$G$1806) -> 193.5 | AC200: =LOOKUP($V200,Data!$A$6:$A$1806,Data!$H$6:$H$1806) -> 10 | AD200: =LOOKUP($V200,Data!$A$6:$A$1806,Data!$I$6:$I$1806) -> 0 | AE200: =LOOKUP($V200,Data!$A$6:$A$1806,Data!$J$6:$J$1806) -> -103 | AF200: =LOOKUP($V200,Data!$A$6:$A$1806,Data!$K$6:$K$1806) -> 7627.71 | AG200: 27.20031738
B201: 40098.10515 | C201: =LOOKUP(B201,Data!$A$6:$A$1806,Data!B$6:B$1806) -> 59.9679985 | D201: =LOOKUP(B201,Data!$A$6:$A$1806,Data!C$6:C$1806) -> 3723.09082 | H201: 25.60119629 | I201: 27.12695876 | L201: 0.5522043855 | M201: 3767.756538 | N201: =AVERAGE(D$79:D201) -> 3768.128547 | O201: =AVERAGE(M$79:M201) -> 3774.0826 | P201: 3745.272976 | Q201: =AVERAGE(P$79:P201) -> 3711.864611 | V201: 40098.10515 | W201: =LOOKUP($V201,Data!$A$6:$A$1806,Data!$B$6:$B$1806) -> 59.9679985 | X201: =LOOKUP($V201,Data!$A$6:$A$1806,Data!$C$6:$C$1806) -> 3723.09082 | Y201: =LOOKUP($V201,Data!$A$6:$A$1806,Data!$D$6:$D$1806) -> 335 | Z201: =IF($Z$1="+",LOOKUP($V201,Data!$A$6:$A$1806,Data!$E$6:$E$1806)*-1,LOOKUP($V201,Data!$A$6:$A$1806,Data!$E$6:$E$1806)) -> -260.5388794 | AA201: =LOOKUP($V201,Data!$A$6:$A$1806,Data!$F$6:$F$1806) -> 0 | AB201: =LOOKUP($V201,Data!$A$6:$A$1806,Data!$G$6:$G$1806) -> 194 | AC201: =LOOKUP($V201,Data!$A$6:$A$1806,Data!$H$6:$H$1806) -> 10 | AD201: =LOOKUP($V201,Data!$A$6:$A$1806,Data!$I$6:$I$1806) -> 0 | AE201: =LOOKUP($V201,Data!$A$6:$A$1806,Data!$J$6:$J$1806) -> -103 | AF201: =LOOKUP($V201,Data!$A$6:$A$1806,Data!$K$6:$K$1806) -> 7628.04 | AG201: 25.60119629
... 328 more rows

Sheet Graph 20 to 52s

Sheet Sustained Graph

Sheet Form 1 Summary Data
G1: Value A Data | I1: BA Performance | R1: Value B | S1: 20 to 52 second Average Period Evaluation
I2: JOU | J2: Non- | M2: Transferred | N2: Contingent | T2: JOU | U2: Non- | X2: Transferred | Y2: Contingent
A3: Date | B3: A Point | C3: FPointA | D3: A Value | E3: t(0) Time | F3: C Value | H3: Net | I3: Dynamic | J3: Conforming | K3: Pumped | L3: Ramping | M3: Frequency | N3: BA | O3: BA | P3: BA | Q3: Bias | S3: Net | T3: Dynamic | U3: Conforming | V3: Pumped | W3: Ramping | X3: Frequency | Y3: BA | Z3: Initial | AA3: Initial | AB3: Sustained | AC3: BA | AD3: BA | AE3: Bias
B4: Time | C4: Hz | D4: Hz | F4: Hz | H4: Actual | I4: Schedules | J4: Load | K4: Hydro | L4: Units | M4: Response | N4: Lost Generation | O4: Bias | P4: Load | Q4: Setting | S4: Actual | T4: Schedules | U4: Load | V4: Hydro | W4: Units | X4: Response | Y4: Lost Generation | Z4: Performance | AA4: Performance | AB4: Performance | AC4: Bias | AD4: Load | AE4: Setting
G5: Frequency | H5: Interchange | I5: Imp(-) Exp (+) | J5: Load (-) | K5: Load (-) Gen (+) | L5: Gen (+) | M5: Rec (-) Del (+) | N5: Load (-) Gen (+) | O5: Setting | Q5: EPFR | R5: Frequency | S5: Interchange | T5: Imp(-) Exp (+) | U5: Load (-) | V5: Load (-) Gen (+) | W5: Gen (+) | X5: Rec (-) Del (+) | Y5: Load (-) Gen (+) | Z5: Adjusted | AA5: Unadjusted | AC5: Setting | AE5: EPFR
G6: Hz | H6: MW | I6: MW | J6: MW | K6: MW | L6: MW | M6: MW | N6: MW | O6: MW/0.1 Hz | P6: MW | Q6: MW | R6: Hz | S6: MW | T6: MW | U6: MW | V6: MW | W6: MW | X6: MW | Y6: MW | Z6: P.U. | AA6: P.U. | AB6: P.U. | AC6: MW/0.1 Hz | AD6: MW | AE6: MW
A7: =Evaluation!AN2 -> 2009-10-12T02:27:21 | B7: =Evaluation!G2 -> 40098.10233 | C7: =Evaluation!S2 -> 60.03900146 | D7: =Evaluation!S3 -> 60.04174995 | E7: =Evaluation!G2 -> 40098.10233 | F7: =Evaluation!S4 -> 59.83599854 | G7: =Evaluation!AN4 -> 60.04174995 | H7: =Evaluation!AN7 -> 3647.045868 | I7: =Evaluation!AN15 -> 350 | J7: =Evaluation!AN16 -> -165.4295559 | K7: =Evaluation!AN17 -> 0 | L7: =Evaluation!AN18 -> 151.8125 | M7: =Evaluation!AN19 -> -4.174995422 | N7: =Evaluation!AN20 -> 15 | O7: =Evaluation!AS15 -> -103 | P7: =Evaluation!AS23 -> 7600.19625 | Q7: =Evaluation!AS17 -> -43.00245285 | R7: =Evaluation!AN5 -> 59.88870598 | S7: =Evaluation!AN8 -> 3787.775003 | T7: =Evaluation!AN23 -> 335 | U7: =Evaluation!AN16 -> -165.4295559 | V7: =Evaluation!AN25 -> 2.117647059 | W7: =Evaluation!AN26 -> 159.1764706 | X7: =Evaluation!AN27 -> 11.12940171 | Y7: =Evaluation!AN28 -> 0 | Z7: =Evaluation!AN34 -> 1.578450874 | AA7: =Evaluation!AN33 -> 1.149417498 | AB7: =Evaluation!$K$33 -> 0.9291079677 | AC7: =Evaluation!AS16 -> -103 | AD7: =Evaluation!AS24 -> 7570 | AE7: =Evaluation!AS18 -> 114.6328376

Sheet Instructions
A1: Steps | B1: To be completed for each event evaluated.
A2: 1 | B2: Set-up Data collection in exact same order as the "Data" sheet of this work book. Data should be in this order:
B3: Column A: Date and Time in this format, mm/dd/yy HH:MM:SS
B4: Column B: Frequency Hz
B5: Column C: Net Actual Interchange
B6: Column D: Joint Owned Unit dynamic schedule
B7: Column E: Non Conforming Load
B8: Column F: Pumped Hydro
B9: Column G: Ramping units
B10: Column H: Transferred Frequency Response
B11: Column I: Contingent BA Lost load or generation
B12: Column J: BA Bias Setting
B13: Column K: BA Load
A15: 2 | B15: Note: Columns D, E, F, G and H are optional data. If you choose not to use these, leave the columns blank. Do not delete the columns. Use the sign (+/-) convention defined in FRS Form 1.
A16: 3 | B16: Data compression must be turned off for each data point. Quality data will give you quality results in the evaluation.
A17: 4 | B17: Data must be at 3 second sample rate for the full 25 minute minimum collection period that starts a minimum of two (2) minutes before the event begins and includes a minimum of 15 minutes after the beginning of the event.
B18: The spreadsheet will work with up to 60 minutes of data. Be sure the "Data" worksheet is clear of any old data. If you start your data collection exactly 10 minutes before the event time in Form 1, the row number in cell C8
B19: of the Entry Data sheet will be correct most of the time. If using PI historian as your data source, use "PasteSpecial/Values" to enter data into the spreadsheet. Do not include historian data collection formulas in the data.
A20: 5 | B20: Once data is in place in the "Data" worksheet, determine when the beginning of the event occurred. This is accomplished by knowing the UTC event time from Form 1.
B21: Convert the UTC event time to your PI data time and then scroll through the Data worksheet column B data of frequency and observe when frequency moves from the normal, pre-event frequency.
B22: This will usually be a single change in frequency of 0.008 to 0.010 Hz more or less. Note the row number in the worksheet that this change occurs. In this sample data spreadsheet this occurs in row 206 of the data.
A23: 6 | B23: Edit cell "C8" of the "Entry Data" worksheet, change the formula in the cell "C8" to reference the row number identified in step 5 above. In the sample data of this workbook this formula is: "=Data!A206"
B24: If the correct row is selected, the "Graph 20 to 52s" worksheet will indicate the first change in frequency of the event on the center vertical grid line of the graph (Red Trend).
A25: 7 | B25: Determine the end of the event to be evaluated. Use the same rules that are used for DCS only look at frequency instead of ACE. Scroll down the frequency data in column B of the "Data" worksheet until frequency reaches 60 Hz or the
B26: pre-disturbance value. Note the row number in the worksheet that this occurs. In this sample data spreadsheet this occurs in row 317.
A27: 8 | B27: Edit cell "C11" of the "Evaluation" worksheet, change the formula in the cell "C11" to reference the row number identified in step 7 above. In the sample data of this workbook this formula is: "=Data!A317"
A28: 9 | B28: Use the "copy" button provided to copy the evaluation and event specific data for the "FRS Form 1" of this field trial. This data is summarized in the correct order on worksheet "Form 1 Summary Data" of this workbook.
B29: Use PasteSpecial/Values when pasting the data into FRS Form 1 on the appropriate event row.
A30: 10 | B30: Save this Form 2 using the file name convention on the Entry Data worksheet. Return all completed Form 2s with your Form 1 to NERC.
A34: Steps | B34: To be completed the first time you use Form 2 for your BA.
A35: A | B35: Enter the Balancing Authority name as you want it to appear on the graphs in cell "B1" of the "Entry Data" worksheet. For example: "NYISO".
A36: B | B36: Enter your Balancing Authorities Frequency Response Obligation in cell "B2" of the "Entry Data" worksheet. For example: -80 MW/0.1 Hz (This value could change annually and must be a negative value)
A37: C | B37: For informational and educational purposes, a "Sustained" performance evaluation is provided in the "Evaluation" worksheet and in the "Sustained" Graph. This evaluation uses a Time Constant (TC) to model the frequency response of your BA.
B38: The time constant is located in cell "L13" of the "Evaluation" spreadsheet and should be edited for the types of generators in your BA. Presently this time constant is set at 0.35.
B39: The higher the value of the time constant, the faster the delivery of frequency response is expected. Setting the TC to 1.0 effectively turns off the delay and instantaneous frequency response will be modeled. Do not set higher than 1.0.
B40: This time constant is only used in the "Sustained" evaluation and is not used for the Field Trial evaluation of performance to the FRO.
B41: A typical setting for this time constant is 0.08 to 0.15 for hydro units, 0.10 to 0.20 for large steam turbines and 0.20 to 0.40 for combustion turbines.
B42: By observing the slope of your "Interchange Actual" on the "Sustained" Graph, adjust the time constant until the initial slope of the "Target" is similar.
B43: When set appropriately, the "Target" trend on the "Sustained" graph will model what Interchange Actual should have done during the event recovery period based on your minimum FRO (Value entered in Cell B2 of the Data Entry sheet).

Sheet Adj Graph JOU

Sheet Adj Graph NCL

Sheet Adj Graph PmpHyd

Sheet Adj Graph RampGen

Sheet Adj Graph MWper0.1Hz

Sheet Adj Graph ContingentBA

Sheet BA LoadDampening

Sheet BA BiasSetting
